Local authority department which incurred the expenditure,Service Division,Cost Centre,Summary of the Purpose of Expenditure,Expense Type,Expense Code,Detailed Expense Type,Date of Transaction,Transaction Number,Beneficiary,Merchant Category Number,Merchant Category,Gross Amount,VAT,Net Amount
Children and Young Peoples Services,Head of Education and Skills,071801,Selby Cottage Childcare Centre,Supplies and Services,324117,Provisions E324,01-Feb-2019,000006172026974,ASDA GROCERIES ONLINE,5411,Catering costs - provisions,66.09,0.00,66.09
Children and Young Peoples Services,Head of Education and Skills,071801,Selby Cottage Childcare Centre,Supplies and Services,324117,Provisions E324,01-Feb-2019,000006172026978,ASDA GROCERIES ONLINE,5411,Catering costs - provisions,-0.25,0.00,-0.25
Regeneration and Local Services,Direct Services,010383,C&G - South Street Cleansing,Supplies and Services,312011,Newspapers books and periodicals E312,01-Feb-2019,000006172027178,C.L.A.S.S,5251,Books-school library,27.00,4.50,22.50
Dedicated Schools Grant,DSG High Needs Block,079050,SENSS-Sensory,Supplies and Services,304403,Equipment and Materials,01-Feb-2019,000006172027236,AMZN Mktp UK MI1P35LT4,5942,Other consumables,19.50,0.00,19.50
Children and Young Peoples Services,Head of Childrens Social Care,085332,Middlestone Moor CU,Supplies and Services,304083,Equipment and Materials,01-Feb-2019,000006172027266,W BOYES & CO LTD NEWTO,5310,Catering equipment,4.99,0.00,4.99
Children and Young Peoples Services,Head of Childrens Social Care,085332,Middlestone Moor CU,Supplies and Services,308011,Furniture,01-Feb-2019,000006172027270,FRANKS THE FLOORING ST,5713,Furniture repair and replacement,99.00,0.00,99.00
Children and Young Peoples Services,Head of Childrens Social Care,085332,Middlestone Moor CU,Supplies and Services,324117,Provisions E324,01-Feb-2019,000006172027272,ALDI 59 774,5411,Catering costs - provisions,20.65,0.00,20.65
Children and Young Peoples Services,Head of Childrens Social Care,085332,Middlestone Moor CU,Supplies and Services,324117,Provisions E324,01-Feb-2019,000006172027278,ALDI 74 774,5411,Catering costs - provisions,13.76,0.00,13.76
Regeneration and Local Services,Economic Development and Housing,030699,Business Growth and Innovation General,Supplies and Services,304999,Equipment and Materials,01-Feb-2019,000006172027288,LinkedIn 3587722646 ln,5968,Misc equipment tools and materials,2.91,0.00,2.91
Regeneration and Local Services,Direct Services,010367,C&G - South Grounds Maintenance,Supplies and Services,304221,Equipment and Materials,01-Feb-2019,000006172027456,SCREWFIX PETERLEE,5211,Direct materials,62.28,10.38,51.90
Regeneration and Local Services,Direct Services,021242,Catering - County Hall,Premises,145009,Cleaning and Domestic Supplies,01-Feb-2019,000006172027536,ALLIANCE DISPOSABLES L,2842,Other cleaning and domestic costs,641.18,106.86,534.32
Regeneration and Local Services,Direct Services,021242,Catering - County Hall,Supplies and Services,324117,Provisions E324,01-Feb-2019,000006172027546,JR HOLLAND FOODSERVICE,5499,Catering costs - provisions,130.28,0.00,130.28
Regeneration and Local Services,Direct Services,021242,Catering - County Hall,Supplies and Services,324117,Provisions E324,01-Feb-2019,000006172027552,JR HOLLAND FOODSERVICE,5499,Catering costs - provisions,13.84,0.00,13.84
Regeneration and Local Services,Culture & Sport,054812,Gala Theatre - Catering etc,Premises,145009,Cleaning and Domestic Supplies,01-Feb-2019,000006172027608,ALLIANCE DISPOSABLES L,2842,Other cleaning and domestic costs,185.98,31.00,154.98
Children and Young Peoples Services,Head of Childrens Social Care,085342,9 Cedar Drive Aycliffe,Supplies and Services,348037,Subsistence E348,01-Feb-2019,000006172027986,THE OLIVE GARDEN,5812,Subsistence,25.90,0.00,25.90
Children and Young Peoples Services,Head of Childrens Social Care,085334,West Rainton Satelite Home,Supplies and Services,328041,Clothing uniforms and laundry E328,01-Feb-2019,000006172028026,ARGOS LTD,5310,Clothing uniforms and laundry,49.99,0.00,49.99
Children and Young Peoples Services,"Head of Early Help, Inclusion and Vulnerable Children",085957,Secure Management,Supplies and Services,328041,Clothing uniforms and laundry E328,01-Feb-2019,000006172028152,FOOTASYLUM PLC,5691,Clothing uniforms and laundry,-19.99,0.00,-19.99
Regeneration and Local Services,Culture & Sport,054813,Gala Theatre - Technical,Supplies and Services,304259,Equipment and Materials,01-Feb-2019,000006172028160,Prime Video MI34H1LN4,5735,Equipment-purchase and rental,5.99,0.00,5.99
Regeneration and Local Services,Culture & Sport,054813,Gala Theatre - Technical,Supplies and Services,312011,Newspapers books and periodicals E312,01-Feb-2019,000006172028164,AMZN MKTP UK MI1EX6L04,5942,Books-school library,17.48,0.00,17.48
Regeneration and Local Services,Direct Services,010301,C&G - North Grounds Maintenance,Supplies and Services,304221,Equipment and Materials,01-Feb-2019,000006172028256,WWW.ARCO.CO.UK,5085,Direct materials,62.04,0.00,62.04
Regeneration and Local Services,Culture & Sport,011060,Hardwick Park Catering,Supplies and Services,324117,Provisions E324,01-Feb-2019,000006172028264,JR HOLLAND FOODSERVICE,5499,Catering costs - provisions,13.86,0.00,13.86
Children and Young Peoples Services,Head of Childrens Social Care,085551,Short Break Services-Park Hse Sher,Employees,040149,Recruitment Instruction and Training,01-Feb-2019,000006172028450,Fletchers,7629,Training-all costs,85.00,0.00,85.00
Children and Young Peoples Services,Head of Childrens Social Care,085551,Short Break Services-Park Hse Sher,Supplies and Services,324117,Provisions E324,01-Feb-2019,000006172028454,ALDI 59 774,5411,Catering costs - provisions,60.47,10.08,50.39
Resources,Finance & Transactional Services,065180,Collections,Supplies and Services,338048,Services,01-Feb-2019,000006172028544,HMCOURTS-SERVICE.G,9222,Court costs 338048,"1,971.50",0.00,1971.50
Resources,Finance & Transactional Services,065180,Collections,Supplies and Services,338048,Services,01-Feb-2019,000006172028546,HMCOURTS-SERVICE.G,9222,Court costs 338048,150.00,0.00,150.00
Resources,Finance & Transactional Services,065180,Collections,Supplies and Services,338048,Services,01-Feb-2019,000006172028548,HMCOURTS-SERVICE.G,9222,Court costs 338048,300.00,0.00,300.00
Resources,Finance & Transactional Services,065180,Collections,Supplies and Services,338048,Services,01-Feb-2019,000006172028550,HMCOURTS-SERVICE.G,9222,Court costs 338048,150.00,0.00,150.00
Children and Young Peoples Services,Head of Childrens Social Care,085333,Coxhoe Satelite Home,Supplies and Services,324117,Provisions E324,01-Feb-2019,000006172028574,TESCO STORES 2916,5411,Catering costs - provisions,124.50,0.00,124.50
Children and Young Peoples Services,Head of Childrens Social Care,085342,9 Cedar Drive Aycliffe,Supplies and Services,324117,Provisions E324,01-Feb-2019,000006172028624,TESCO STORES 2916,5411,Catering costs - provisions,5.00,0.00,5.00
Regeneration and Local Services,Direct Services,030691,"Catering - Durham Dales Centre			",Supplies and Services,324117,Provisions E324,01-Feb-2019,000006172028682,JR HOLLAND FOODSERVICE,5499,Catering costs - provisions,-8.18,0.00,-8.18
Resources,Digital and Customer Services,065335,School Services - Implementations,Supplies and Services,304639,Equipment and Materials,01-Feb-2019,000006172028776,CBA PARAGON,5734,Technicians-supplies,39.99,6.67,33.32
Resources,Digital and Customer Services,065327,School Services - Managed Service Unit (MSU),Supplies and Services,304639,Equipment and Materials,01-Feb-2019,000006172028780,AMZN Mktp UK MI0IU1L24,5942,Technicians-supplies,69.86,0.00,69.86
Resources,Digital and Customer Services,070207,School Services - Shared Engineer Service,Supplies and Services,304639,Equipment and Materials,01-Feb-2019,000006172028782,AMZN Mktp UK MI2T96L64,5942,Technicians-supplies,75.80,0.00,75.80
Resources,Digital and Customer Services,065335,School Services - Implementations,Supplies and Services,304639,Equipment and Materials,01-Feb-2019,000006172028786,THE REPLACE BASE LTD,5734,Technicians-supplies,223.03,37.17,185.86
Regeneration and Local Services,Economic Development and Housing,030544,Rural Employability - Client Engagement,Employees,040149,Recruitment Instruction and Training,01-Feb-2019,000006172028800,WWW.MOBILETESTING.UK.C,8220,Training-all costs,175.00,0.00,175.00
Regeneration and Local Services,Culture & Sport,054235,Bishop Auckland Town Hall Cafe,Supplies and Services,324117,Provisions E324,01-Feb-2019,000006172028852,JR HOLLAND FOODSERVICE,5499,Catering costs - provisions,14.91,0.00,14.91
Children and Young Peoples Services,Childrens Services Operational Support,052986,CYPS - Locality and Operational Support,Supplies and Services,304259,Equipment and Materials,01-Feb-2019,000006172028894,WWW.DURHAM.GOV.UK,9399,Equipment-purchase and rental,24.00,0.00,24.00
Adult and Health Services,Head of Adults,055807,Newton Aycliffe Pathways,Supplies and Services,324117,Provisions E324,01-Feb-2019,000006172029302,ASDA SUPERSTORE 4987,5411,Catering costs - provisions,3.70,0.00,3.70
Children and Young Peoples Services,"Head of Early Help, Inclusion and Vulnerable Children",085956,Lumley,Supplies and Services,324117,Provisions E324,01-Feb-2019,000006189505136,TESCO STORES 6329,5411,Catering costs - provisions,58.43,0.00,58.43
Regeneration and Local Services,Culture & Sport,011060,Hardwick Park Catering,Supplies and Services,324117,Provisions E324,01-Feb-2019,000006194860634,BATLEYS PERTH,5300,Catering costs - provisions,191.76,31.96,159.80
Regeneration and Local Services,Culture & Sport,011060,Hardwick Park Catering,Supplies and Services,324117,Provisions E324,01-Feb-2019,000006194860634 - 1,BATLEYS PERTH,5300,Catering costs - provisions,181.69,,181.69
Regeneration and Local Services,Direct Services,010525,Catering - Green Lane,Supplies and Services,324117,Provisions E324,01-Feb-2019,000006194860724,BATLEYS PERTH,5300,Catering costs - provisions,260.88,43.48,217.40
Regeneration and Local Services,Direct Services,010525,Catering - Green Lane,Supplies and Services,324117,Provisions E324,01-Feb-2019,000006194860724 - 1,BATLEYS PERTH,5300,Catering costs - provisions,104.36,,104.36
Regeneration and Local Services,Direct Services,030691,"Catering - Durham Dales Centre			",Supplies and Services,324117,Provisions E324,01-Feb-2019,000006194860868,BATLEYS PERTH,5300,Catering costs - provisions,-2.50,0.00,-2.50
Adult and Health Services,Head of Adults,055643,Hawthorn House LD Respite Unit,Supplies and Services,324117,Provisions E324,01-Feb-2019,000006194860902,BATLEYS PERTH,5300,Catering costs - provisions,29.28,4.88,24.40
Adult and Health Services,Head of Adults,055643,Hawthorn House LD Respite Unit,Supplies and Services,324117,Provisions E324,01-Feb-2019,000006194860902 - 1,BATLEYS PERTH,5300,Catering costs - provisions,48.31,,48.31
Regeneration and Local Services,Economic Development and Housing,030708,VCD - Marketing & Information,Supplies and Services,304999,Equipment and Materials,02-Feb-2019,000006172027204,MAILCHIMP MONTHLY,5968,Misc equipment tools and materials,231.76,38.63,193.13
Dedicated Schools Grant,DSG High Needs Block,079050,SENSS-Sensory,Supplies and Services,312011,Newspapers books and periodicals E312,02-Feb-2019,000006172027238,AMZN Mktp UK MI81M6ZB4,5942,Books-school library,17.97,0.00,17.97
Children and Young Peoples Services,Head of Childrens Social Care,085333,Coxhoe Satelite Home,Supplies and Services,328041,Clothing uniforms and laundry E328,02-Feb-2019,000006172027414,MATALAN,5691,Clothing uniforms and laundry,13.25,2.21,11.04
Children and Young Peoples Services,Head of Childrens Social Care,085333,Coxhoe Satelite Home,Supplies and Services,328041,Clothing uniforms and laundry E328,02-Feb-2019,000006172027418,B&M RETAIL,5310,Clothing uniforms and laundry,9.99,0.00,9.99
Children and Young Peoples Services,Head of Childrens Social Care,085333,Coxhoe Satelite Home,Supplies and Services,324117,Provisions E324,02-Feb-2019,000006172027422,TESCO STORES 2371,5411,Catering costs - provisions,19.85,0.00,19.85
Children and Young Peoples Services,Head of Childrens Social Care,085333,Coxhoe Satelite Home,Supplies and Services,304999,Equipment and Materials,02-Feb-2019,000006172027426,SUPERDRUG STORES PLC,5912,Misc equipment tools and materials,2.49,0.00,2.49
Children and Young Peoples Services,Head of Childrens Social Care,085333,Coxhoe Satelite Home,Supplies and Services,304403,Equipment and Materials,02-Feb-2019,000006172027430,CARD FACTORY,5947,Other consumables,2.76,0.00,2.76
Regeneration and Local Services,Culture & Sport,011217,Commercial Management,Supplies and Services,342033,Computers and Communications,02-Feb-2019,000006172027802,SurveyMonkey,7372,Computer hardware,336.00,56.00,280.00
Children and Young Peoples Services,Childrens Services Operational Support,052986,CYPS - Locality and Operational Support,Supplies and Services,324117,Provisions E324,02-Feb-2019,000006172027954,TESCO STORES 6329,5411,Catering costs - provisions,5.80,0.00,5.80
Children and Young Peoples Services,"Head of Early Help, Inclusion and Vulnerable Children",085954,Walworth,Supplies and Services,324117,Provisions E324,02-Feb-2019,000006172028154,TESCO STORES 6329,5411,Catering costs - provisions,136.59,0.00,136.59
Regeneration and Local Services,Culture & Sport,054813,Gala Theatre - Technical,Supplies and Services,304259,Equipment and Materials,02-Feb-2019,000006172028170,Prime Video MI74E0ZV4,5735,Equipment-purchase and rental,4.49,0.00,4.49
Resources,Resources Management,069000,Resources Management,Supplies and Services,324117,Provisions E324,02-Feb-2019,000006172028578,SAINSBURYS SACAT (2303,5411,Catering costs - provisions,2.50,0.00,2.50
Resources,Resources Management,069000,Resources Management,Supplies and Services,324117,Provisions E324,02-Feb-2019,000006172028582,CO-OP GROUP 010830,5411,Catering costs - provisions,14.90,0.00,14.90
Children and Young Peoples Services,Head of Childrens Social Care,085342,9 Cedar Drive Aycliffe,Supplies and Services,324117,Provisions E324,02-Feb-2019,000006172028604,TESCO STORES 2916,5411,Catering costs - provisions,30.52,0.00,30.52
Children and Young Peoples Services,Head of Childrens Social Care,085332,Middlestone Moor CU,Supplies and Services,384871,Miscellaneous Expenses,02-Feb-2019,000006172029150,PREMIER INN,3811,Training-other activities,134.50,0.00,134.50
Children and Young Peoples Services,Head of Childrens Social Care,085332,Middlestone Moor CU,Supplies and Services,384871,Miscellaneous Expenses,02-Feb-2019,000006172029152,ODEON/BOOKIT,7832,Training-other activities,45.00,0.00,45.00
Transformation and Partnerships,Communications Management,060270,Communications and Marketing,Supplies and Services,304999,Equipment and Materials,02-Feb-2019,000006172029332,LINKEDIN-447 1654023,5968,Misc equipment tools and materials,17.99,0.00,17.99
Resources,Digital and Customer Services,011103,Service Improvement,Supplies and Services,342033,Computers and Communications,02-Feb-2019,000006172029334,DRI Cloudberry Lab TM,7372,Computer hardware,28.80,0.00,28.80
Regeneration and Local Services,Spatial Policy Planning Assets & Environment,031081,Heritage Coast,Supplies and Services,304403,Equipment and Materials,03-Feb-2019,000006172027028,AMZN Mktp UK MI3T13NA4,5942,Other consumables,20.99,0.00,20.99
Resources,Digital and Customer Services,065321,Operations - Digital & Customer Services,Supplies and Services,304335,Equipment and Materials,03-Feb-2019,000006172027030,AMZN Mktp UK MI6VR4NW4,5942,ICT supplies etc,26.99,0.00,26.99
Dedicated Schools Grant,DSG High Needs Block,079050,SENSS-Sensory,Supplies and Services,312011,Newspapers books and periodicals E312,03-Feb-2019,000006172027240,Amazon.co.uk MI0EK2N04,5969,Books-school library,23.21,0.00,23.21
Dedicated Schools Grant,DSG High Needs Block,079050,SENSS-Sensory,Supplies and Services,312011,Newspapers books and periodicals E312,03-Feb-2019,000006172027246,Amazon.co.uk MI1D04NL4,5969,Books-school library,99.73,0.00,99.73
Dedicated Schools Grant,DSG High Needs Block,079050,SENSS-Sensory,Supplies and Services,312011,Newspapers books and periodicals E312,03-Feb-2019,000006172027252,Amazon.co.uk MI5FK03C4,5969,Books-school library,165.00,0.00,165.00
Regeneration and Local Services,Economic Development and Housing,030699,Business Growth and Innovation General,Supplies and Services,304403,Equipment and Materials,03-Feb-2019,000006172027294,ADOBE CREATIVE CLOUD,5734,Other consumables,49.94,8.32,41.62
Children and Young Peoples Services,Head of Childrens Social Care,085333,Coxhoe Satelite Home,Supplies and Services,328041,Clothing uniforms and laundry E328,03-Feb-2019,000006172027434,H&M,5691,Clothing uniforms and laundry,8.99,1.50,7.49
Children and Young Peoples Services,Head of Childrens Social Care,085333,Coxhoe Satelite Home,Supplies and Services,304259,Equipment and Materials,03-Feb-2019,000006172027440,WILKO METRO CENTRE,5722,Equipment-purchase and rental,6.35,0.00,6.35
Children and Young Peoples Services,Head of Childrens Social Care,085333,Coxhoe Satelite Home,Supplies and Services,348037,Subsistence E348,03-Feb-2019,000006172027444,MCDONALDS,5814,Subsistence,17.35,2.89,14.46
Children and Young Peoples Services,Head of Childrens Social Care,085342,9 Cedar Drive Aycliffe,Supplies and Services,324117,Provisions E324,03-Feb-2019,000006172027994,TESCO STORES 2916,5411,Catering costs - provisions,22.31,0.00,22.31
Children and Young Peoples Services,Head of Childrens Social Care,085342,9 Cedar Drive Aycliffe,Employees,040149,Recruitment Instruction and Training,03-Feb-2019,000006172028608,PARENTPAY E-COM R,8220,Training-all costs,40.00,0.00,40.00
Children and Young Peoples Services,Head of Childrens Social Care,085332,Middlestone Moor CU,Supplies and Services,304639,Equipment and Materials,03-Feb-2019,000006172029146,AMZN Mktp UK MI7RD8N94,5942,Technicians-supplies,17.23,0.00,17.23
Children and Young Peoples Services,Head of Childrens Social Care,085333,Coxhoe Satelite Home,Supplies and Services,328041,Clothing uniforms and laundry E328,03-Feb-2019,000006180362380,PRIMARK 670 GATESHEAD,5651,Clothing uniforms and laundry,25.50,4.25,21.25
Children and Young Peoples Services,Head of Childrens Social Care,085332,Middlestone Moor CU,Supplies and Services,304639,Equipment and Materials,03-Feb-2019,000006180363088,AMZN MKTP UK MI4EX5NZ4,5942,Technicians-supplies,27.90,0.00,27.90
Children and Young Peoples Services,Head of Childrens Social Care,085332,Middlestone Moor CU,Supplies and Services,304403,Equipment and Materials,03-Feb-2019,000006189505768,MATALAN.CO.UK,5691,Other consumables,23.95,0.00,23.95
Children and Young Peoples Services,Head of Education and Skills,071801,Selby Cottage Childcare Centre,Supplies and Services,324117,Provisions E324,04-Feb-2019,000006180362270,JR HOLLAND FOODSERVICE,5499,Catering costs - provisions,499.00,0.00,499.00
Children and Young Peoples Services,Head of Education and Skills,071801,Selby Cottage Childcare Centre,Supplies and Services,324117,Provisions E324,04-Feb-2019,000006180362274,JR HOLLAND FOODSERVICE,5499,Catering costs - provisions,42.42,0.00,42.42
Children and Young Peoples Services,Head of Education and Skills,054640,Durham Learning Resources,Supplies and Services,304245,Equipment and Materials,04-Feb-2019,000006180362286,WWW.BRITISHMUSEUM.ORG,7991,Materials,37.00,0.00,37.00
Resources,Digital and Customer Services,065461,Business Support,Supplies and Services,342053,Computers and Communications,04-Feb-2019,000006180362292,BITEABLE PTY LTD,7392,Computer software,22.23,0.00,22.23
Children and Young Peoples Services,Head of Childrens Social Care,085100,Strategic Manager Families First Area South,Supplies and Services,384199,Miscellaneous Expenses,04-Feb-2019,000006180362294,DARLINGTON BC INTERNET,9399,Other hired and contracted services,12.00,0.00,12.00
Children and Young Peoples Services,Head of Childrens Social Care,085357,Bespoke Placements,Transport,235057,Public Transport,04-Feb-2019,000006180362316,HOLIDAY PAYMENT VRUK,4722,Staff travelling,826.00,137.67,688.33
Children and Young Peoples Services,Head of Childrens Social Care,085342,9 Cedar Drive Aycliffe,Supplies and Services,324117,Provisions E324,04-Feb-2019,000006180362334,TESCO STORES 2916,5411,Catering costs - provisions,56.06,0.00,56.06
Children and Young Peoples Services,Head of Childrens Social Care,085342,9 Cedar Drive Aycliffe,Supplies and Services,324117,Provisions E324,04-Feb-2019,000006180362340,TESCO STORES 2916,5411,Catering costs - provisions,23.00,0.00,23.00
Dedicated Schools Grant,DSG High Needs Block,079050,SENSS-Sensory,Supplies and Services,312011,Newspapers books and periodicals E312,04-Feb-2019,000006180362346,AMZN Mktp UK MI0TW73O4,5942,Books-school library,20.85,0.00,20.85
Children and Young Peoples Services,Head of Childrens Social Care,085332,Middlestone Moor CU,Supplies and Services,384999,Miscellaneous Expenses,04-Feb-2019,000006180362350,W BOYES & CO LTD NEWTO,5310,Other expenses,6.99,0.00,6.99
Children and Young Peoples Services,Head of Childrens Social Care,085332,Middlestone Moor CU,Supplies and Services,324117,Provisions E324,04-Feb-2019,000006180362354,TESCO STORES 2916,5411,Catering costs - provisions,6.00,0.00,6.00
Children and Young Peoples Services,Head of Childrens Social Care,085332,Middlestone Moor CU,Supplies and Services,324117,Provisions E324,04-Feb-2019,000006180362358,ALDI 74 774,5411,Catering costs - provisions,13.57,0.00,13.57
Children and Young Peoples Services,"Head of Early Help, Inclusion and Vulnerable Children",088111,Easington & Peterlee 0-19 Community Family Hub,Supplies and Services,324117,Provisions E324,04-Feb-2019,000006180362368,ASDA STORES LTD,5411,Catering costs - provisions,12.13,0.00,12.13
Children and Young Peoples Services,"Head of Early Help, Inclusion and Vulnerable Children",088111,Easington & Peterlee 0-19 Community Family Hub,Supplies and Services,324117,Provisions E324,04-Feb-2019,000006180362372,ASDA STORES LTD,5411,Catering costs - provisions,9.85,0.00,9.85
Regeneration and Local Services,Direct Services,021242,Catering - County Hall,Supplies and Services,324117,Provisions E324,04-Feb-2019,000006180362406,JR HOLLAND FOODSERVICE,5499,Catering costs - provisions,59.00,0.00,59.00
Regeneration and Local Services,Direct Services,021242,Catering - County Hall,Supplies and Services,324117,Provisions E324,04-Feb-2019,000006180362410,JR HOLLAND FOODSERVICE,5499,Catering costs - provisions,6.90,0.00,6.90
Regeneration and Local Services,Direct Services,021242,Catering - County Hall,Supplies and Services,324117,Provisions E324,04-Feb-2019,000006180362412,JR HOLLAND FOODSERVICE,5499,Catering costs - provisions,4.71,0.00,4.71
Regeneration and Local Services,Direct Services,021242,Catering - County Hall,Supplies and Services,324117,Provisions E324,04-Feb-2019,000006180362416,WWW.ADELIEFOODS.CO.UK,5499,Catering costs - provisions,208.82,0.00,208.82
Regeneration and Local Services,Direct Services,021242,Catering - County Hall,Supplies and Services,324117,Provisions E324,04-Feb-2019,000006180362418,WWW.ADELIEFOODS.CO.UK,5499,Catering costs - provisions,41.52,0.00,41.52
Regeneration and Local Services,Direct Services,021242,Catering - County Hall,Supplies and Services,324117,Provisions E324,04-Feb-2019,000006180362422,WWW.ADELIEFOODS.CO.UK,5499,Catering costs - provisions,41.52,0.00,41.52
Regeneration and Local Services,Direct Services,021242,Catering - County Hall,Supplies and Services,324117,Provisions E324,04-Feb-2019,000006180362424,WWW.ADELIEFOODS.CO.UK,5499,Catering costs - provisions,41.52,0.00,41.52
Regeneration and Local Services,Direct Services,021242,Catering - County Hall,Supplies and Services,324117,Provisions E324,04-Feb-2019,000006180362428,WWW.ADELIEFOODS.CO.UK,5499,Catering costs - provisions,41.52,0.00,41.52
Regeneration and Local Services,Direct Services,021242,Catering - County Hall,Supplies and Services,324117,Provisions E324,04-Feb-2019,000006180362434,WWW.ADELIEFOODS.CO.UK,5499,Catering costs - provisions,29.92,0.00,29.92
Regeneration and Local Services,Direct Services,021242,Catering - County Hall,Supplies and Services,324117,Provisions E324,04-Feb-2019,000006180362436,WWW.ADELIEFOODS.CO.UK,5499,Catering costs - provisions,13.76,0.00,13.76
Regeneration and Local Services,Direct Services,021242,Catering - County Hall,Supplies and Services,324117,Provisions E324,04-Feb-2019,000006180362440,WWW.ADELIEFOODS.CO.UK,5499,Catering costs - provisions,13.76,0.00,13.76
Regeneration and Local Services,Direct Services,021242,Catering - County Hall,Supplies and Services,324117,Provisions E324,04-Feb-2019,000006180362444,WWW.ADELIEFOODS.CO.UK,5499,Catering costs - provisions,10.05,0.00,10.05
Regeneration and Local Services,Direct Services,021242,Catering - County Hall,Supplies and Services,324117,Provisions E324,04-Feb-2019,000006180362446,WWW.ADELIEFOODS.CO.UK,5499,Catering costs - provisions,6.03,0.00,6.03
Regeneration and Local Services,Direct Services,021242,Catering - County Hall,Supplies and Services,324117,Provisions E324,04-Feb-2019,000006180362450,HOPWELLS LTD,5811,Catering costs - provisions,392.09,0.00,392.09
Regeneration and Local Services,Direct Services,021242,Catering - County Hall,Supplies and Services,324117,Provisions E324,04-Feb-2019,000006180362454,FREEMAN CATERING BUTCH,5422,Catering costs - provisions,246.88,0.00,246.88
Regeneration and Local Services,Direct Services,021242,Catering - County Hall,Supplies and Services,324117,Provisions E324,04-Feb-2019,000006180362456,WWW.ADELIEFOODS.CO.UK,5499,Catering costs - provisions,-10.05,0.00,-10.05
Regeneration and Local Services,Direct Services,021242,Catering - County Hall,Supplies and Services,324117,Provisions E324,04-Feb-2019,000006180362458,WWW.ADELIEFOODS.CO.UK,5499,Catering costs - provisions,-25.95,0.00,-25.95
Regeneration and Local Services,Culture & Sport,054233,Bishop Auckland Town Hall Library,Supplies and Services,304259,Equipment and Materials,04-Feb-2019,000006180362460,WILKO RETAIL LIMIT,5722,Equipment-purchase and rental,5.25,0.00,5.25
Children and Young Peoples Services,Head of Childrens Social Care,085650,Pre Birth Team,Supplies and Services,338045,Services,04-Feb-2019,000006180362462,SUNDERLAND CC,9399,Legal expenses 338045,10.00,0.00,10.00
Children and Young Peoples Services,Head of Childrens Social Care,085650,Pre Birth Team,Supplies and Services,338045,Services,04-Feb-2019,000006180362466,WWW.DURHAM.GOV.UK,9399,Legal expenses 338045,12.00,0.00,12.00
Children and Young Peoples Services,Head of Childrens Social Care,085650,Pre Birth Team,Supplies and Services,338045,Services,04-Feb-2019,000006180362470,WWW.DURHAM.GOV.UK,9399,Legal expenses 338045,12.00,0.00,12.00
Children and Young Peoples Services,Head of Childrens Social Care,085650,Pre Birth Team,Supplies and Services,338045,Services,04-Feb-2019,000006180362472,WWW.DURHAM.GOV.UK,9399,Legal expenses 338045,-12.00,0.00,-12.00
Regeneration and Local Services,Culture & Sport,054812,Gala Theatre - Catering etc,Supplies and Services,324117,Provisions E324,04-Feb-2019,000006180362482,JR HOLLAND FOODSERVICE,5499,Catering costs - provisions,11.70,0.00,11.70
Children and Young Peoples Services,Head of Childrens Social Care,085352,Tow Law CU,Supplies and Services,328041,Clothing uniforms and laundry E328,04-Feb-2019,000006180362536,CLEARANCE BARGAINS,5310,Clothing uniforms and laundry,135.98,0.00,135.98
Children and Young Peoples Services,Head of Childrens Social Care,085352,Tow Law CU,Supplies and Services,312011,Newspapers books and periodicals E312,04-Feb-2019,000006180362540,HOME BARGAINS,5251,Books-school library,123.40,20.57,102.83
Children and Young Peoples Services,Head of Education and Skills,071732,Dean Bank Childcare,Supplies and Services,324117,Provisions E324,04-Feb-2019,000006180362586,ASDA GROCERIES ONLINE,5411,Catering costs - provisions,52.03,0.00,52.03
Children and Young Peoples Services,Head of Education and Skills,071732,Dean Bank Childcare,Supplies and Services,328041,Clothing uniforms and laundry E328,04-Feb-2019,000006180362590,B & M RETAIL,5310,Clothing uniforms and laundry,53.92,0.00,53.92
Children and Young Peoples Services,Head of Education and Skills,071732,Dean Bank Childcare,Supplies and Services,324117,Provisions E324,04-Feb-2019,000006180362592,ASDA GROCERIES ONLINE,5411,Catering costs - provisions,-0.41,0.00,-0.41
Regeneration and Local Services,Culture & Sport,011060,Hardwick Park Catering,Supplies and Services,324117,Provisions E324,04-Feb-2019,000006180362656,JR HOLLAND FOODSERVICE,5499,Catering costs - provisions,72.70,0.00,72.70
Regeneration and Local Services,Culture & Sport,011060,Hardwick Park Catering,Supplies and Services,324117,Provisions E324,04-Feb-2019,000006180362660,JR HOLLAND FOODSERVICE,5499,Catering costs - provisions,59.85,0.00,59.85
Regeneration and Local Services,Culture & Sport,011060,Hardwick Park Catering,Supplies and Services,324117,Provisions E324,04-Feb-2019,000006180362664,HOPWELLS LTD,5811,Catering costs - provisions,86.64,0.00,86.64
Regeneration and Local Services,Culture & Sport,011060,Hardwick Park Catering,Supplies and Services,324117,Provisions E324,04-Feb-2019,000006180362666,FREEMAN CATERING BUTCH,5422,Catering costs - provisions,19.11,0.00,19.11
Regeneration and Local Services,Culture & Sport,011060,Hardwick Park Catering,Supplies and Services,324117,Provisions E324,04-Feb-2019,000006180362670,FREEMAN CATERING BUTCH,5422,Catering costs - provisions,26.26,0.00,26.26
Regeneration and Local Services,Culture & Sport,011060,Hardwick Park Catering,Supplies and Services,324117,Provisions E324,04-Feb-2019,000006180362672,FREEMAN CATERING BUTCH,5422,Catering costs - provisions,14.18,0.00,14.18
Regeneration and Local Services,Direct Services,021234,Catering - Locomotion,Supplies and Services,324117,Provisions E324,04-Feb-2019,000006180362686,JR HOLLAND FOODSERVICE,5499,Catering costs - provisions,45.90,0.00,45.90
Regeneration and Local Services,Direct Services,021234,Catering - Locomotion,Supplies and Services,324117,Provisions E324,04-Feb-2019,000006180362690,HOPWELLS LTD,5811,Catering costs - provisions,137.87,0.00,137.87
Regeneration and Local Services,Direct Services,021234,Catering - Locomotion,Supplies and Services,324117,Provisions E324,04-Feb-2019,000006180362692,HOPWELLS LTD,5811,Catering costs - provisions,24.14,0.00,24.14
Regeneration and Local Services,Direct Services,021234,Catering - Locomotion,Supplies and Services,324117,Provisions E324,04-Feb-2019,000006180362696,FREEMAN CATERING BUTCH,5422,Catering costs - provisions,45.62,0.00,45.62
Regeneration and Local Services,Direct Services,021234,Catering - Locomotion,Supplies and Services,324117,Provisions E324,04-Feb-2019,000006180362698,FREEMAN CATERING BUTCH,5422,Catering costs - provisions,47.16,0.00,47.16
Regeneration and Local Services,Direct Services,021234,Catering - Locomotion,Supplies and Services,324117,Provisions E324,04-Feb-2019,000006180362700,WWW.ADELIEFOODS.CO.UK,5499,Catering costs - provisions,-87.83,0.00,-87.83
Regeneration and Local Services,Direct Services,021234,Catering - Locomotion,Supplies and Services,324117,Provisions E324,04-Feb-2019,000006180362704,HOPWELLS LTD,5811,Catering costs - provisions,-24.14,0.00,-24.14
Regeneration and Local Services,Direct Services,010525,Catering - Green Lane,Supplies and Services,324117,Provisions E324,04-Feb-2019,000006180362720,WWW.ADELIEFOODS.CO.UK,5499,Catering costs - provisions,31.04,0.00,31.04
Regeneration and Local Services,Direct Services,010525,Catering - Green Lane,Supplies and Services,324117,Provisions E324,04-Feb-2019,000006180362722,WWW.ADELIEFOODS.CO.UK,5499,Catering costs - provisions,30.68,0.00,30.68
Regeneration and Local Services,Direct Services,010525,Catering - Green Lane,Supplies and Services,324117,Provisions E324,04-Feb-2019,000006180362726,HOPWELLS LTD,5811,Catering costs - provisions,134.44,0.00,134.44
Regeneration and Local Services,Direct Services,010525,Catering - Green Lane,Supplies and Services,324117,Provisions E324,04-Feb-2019,000006180362730,FREEMAN CATERING BUTCH,5422,Catering costs - provisions,17.47,0.00,17.47
Regeneration and Local Services,Direct Services,010525,Catering - Green Lane,Supplies and Services,324117,Provisions E324,04-Feb-2019,000006180362732,WWW.ADELIEFOODS.CO.UK,5499,Catering costs - provisions,-28.63,0.00,-28.63
Children and Young Peoples Services,Head of Childrens Social Care,085551,Short Break Services-Park Hse Sher,Supplies and Services,304259,Equipment and Materials,04-Feb-2019,000006180362756,WWW.DURHAM.GOV.UK,9399,Equipment-purchase and rental,10.00,0.00,10.00
Adult and Health Services,Head of Adults,055306,Spennymoor Pathways,Supplies and Services,384999,Miscellaneous Expenses,04-Feb-2019,000006180362760,AMZ Hobbycraft Tradi,5970,Other expenses,20.00,0.00,20.00
Children and Young Peoples Services,"Head of Early Help, Inclusion and Vulnerable Children",088108,Spennymoor & Shildon 0-19 Targeted Family Support,Supplies and Services,384999,Miscellaneous Expenses,04-Feb-2019,000006180362780,ASDA STORES,5411,Other expenses,111.68,0.00,111.68
Regeneration and Local Services,Economic Development and Housing,030771,Durham Advance Flexible Fund,Supplies and Services,304259,Equipment and Materials,04-Feb-2019,000006180362834,GEN REGISTER OFFICE,9399,Equipment-purchase and rental,9.25,0.00,9.25
Regeneration and Local Services,Direct Services,020082,Bldg Serv - R&M Div 82- Lifts,Supplies and Services,304221,Equipment and Materials,04-Feb-2019,000006180362840,CITY OF NEWCASTLE INTE,9399,Direct materials,246.00,0.00,246.00
Children and Young Peoples Services,Head of Childrens Social Care,085333,Coxhoe Satelite Home,Supplies and Services,324117,Provisions E324,04-Feb-2019,000006180362846,ICELAND,5411,Catering costs - provisions,12.25,0.00,12.25
Children and Young Peoples Services,Head of Childrens Social Care,085333,Coxhoe Satelite Home,Supplies and Services,324117,Provisions E324,04-Feb-2019,000006180362848,TESCO STORES 6329,5411,Catering costs - provisions,59.82,0.00,59.82
Regeneration and Local Services,Economic Development and Housing,031500,Housing Solutions - Core Team,Transport,235057,Public Transport,04-Feb-2019,000006180362852,LNER WEB SALES,4112,Staff travelling,48.90,0.00,48.90
Regeneration and Local Services,Direct Services,030691,"Catering - Durham Dales Centre			",Supplies and Services,324117,Provisions E324,04-Feb-2019,000006180362882,JR HOLLAND FOODSERVICE,5499,Catering costs - provisions,133.02,0.00,133.02
Regeneration and Local Services,Direct Services,030691,"Catering - Durham Dales Centre			",Supplies and Services,324117,Provisions E324,04-Feb-2019,000006180362884,JR HOLLAND FOODSERVICE,5499,Catering costs - provisions,6.37,0.00,6.37
Regeneration and Local Services,Direct Services,030691,"Catering - Durham Dales Centre			",Supplies and Services,324117,Provisions E324,04-Feb-2019,000006180362886,FREEMAN CATERING BUTCH,5422,Catering costs - provisions,105.19,0.00,105.19
Regeneration and Local Services,Direct Services,030691,"Catering - Durham Dales Centre			",Supplies and Services,324117,Provisions E324,04-Feb-2019,000006180362890,FREEMAN CATERING BUTCH,5422,Catering costs - provisions,51.25,0.00,51.25
Adult and Health Services,Head of Adults,055643,Hawthorn House LD Respite Unit,Supplies and Services,324117,Provisions E324,04-Feb-2019,000006180362902,JR HOLLAND FOODSERVICE,5499,Catering costs - provisions,24.35,0.00,24.35
Adult and Health Services,Head of Adults,055643,Hawthorn House LD Respite Unit,Supplies and Services,324117,Provisions E324,04-Feb-2019,000006180362906,JR HOLLAND FOODSERVICE,5499,Catering costs - provisions,7.37,0.00,7.37
Adult and Health Services,Head of Adults,055643,Hawthorn House LD Respite Unit,Supplies and Services,324117,Provisions E324,04-Feb-2019,000006180362908,FREEMAN CATERING BUTCH,5422,Catering costs - provisions,43.30,0.00,43.30
Adult and Health Services,Head of Adults,055643,Hawthorn House LD Respite Unit,Supplies and Services,324117,Provisions E324,04-Feb-2019,000006180362910,FREEMAN CATERING BUTCH,5422,Catering costs - provisions,16.99,0.00,16.99
Children and Young Peoples Services,"Head of Early Help, Inclusion and Vulnerable Children",074000,TTF-Attachment and Results,Transfer Payments,525033,Other,04-Feb-2019,000006180362918,ASDA GEORGE COM LEEDS,5411,Grants to individuals,148.45,24.74,123.71
Children and Young Peoples Services,"Head of Early Help, Inclusion and Vulnerable Children",074000,TTF-Attachment and Results,Transfer Payments,525033,Other,04-Feb-2019,000006180362920,FRANKS THE FLOORING ST,5713,Grants to individuals,150.00,0.00,150.00
Children and Young Peoples Services,"Head of Early Help, Inclusion and Vulnerable Children",074000,TTF-Attachment and Results,Transfer Payments,525033,Other,04-Feb-2019,000006180362924,FRANKS THE FLOORING ST,5713,Grants to individuals,150.00,0.00,150.00
Children and Young Peoples Services,"Head of Early Help, Inclusion and Vulnerable Children",074000,TTF-Attachment and Results,Transfer Payments,525033,Other,04-Feb-2019,000006180362926,FRANKS THE FLOORING ST,5713,Grants to individuals,150.00,0.00,150.00
Resources,Digital and Customer Services,065335,School Services - Implementations,Supplies and Services,304303,Equipment and Materials,04-Feb-2019,000006180362930,AMZN Mktp UK MI9EG2314,5942,Network for resale,23.99,4.00,19.99
Children and Young Peoples Services,"Head of Early Help, Inclusion and Vulnerable Children",085954,Walworth,Supplies and Services,384999,Miscellaneous Expenses,04-Feb-2019,000006180362946,AMZN Mktp UK MI45V9J54,5942,Other expenses,22.99,0.00,22.99
Resources,Digital and Customer Services,069010,Administration,Supplies and Services,384199,Miscellaneous Expenses,04-Feb-2019,000006180362958,WWW.ICO.GOV.UK,9399,Other hired and contracted services,40.00,0.00,40.00
Regeneration and Local Services,Culture & Sport,026591,Hardwick Park,Supplies and Services,332047,Printing Stationery and Gen Off Exps,04-Feb-2019,000006180362960,ARGOS SEDGEFIELD,5310,Stationery,6.99,0.00,6.99
Regeneration and Local Services,Culture & Sport,011060,Hardwick Park Catering,Supplies and Services,332047,Printing Stationery and Gen Off Exps,04-Feb-2019,000006180362964,ARGOS SEDGEFIELD,5310,Stationery,6.99,0.00,6.99
Regeneration and Local Services,Direct Services,021324,Catering - Meadowfield,Supplies and Services,324117,Provisions E324,04-Feb-2019,000006180362968,FREEMAN CATERING BUTCH,5422,Catering costs - provisions,63.94,0.00,63.94
Regeneration and Local Services,Direct Services,021324,Catering - Meadowfield,Supplies and Services,324117,Provisions E324,04-Feb-2019,000006180362972,FREEMAN CATERING BUTCH,5422,Catering costs - provisions,38.15,0.00,38.15
Children and Young Peoples Services,Head of Childrens Social Care,085352,Tow Law CU,Supplies and Services,348037,Subsistence E348,04-Feb-2019,000006180363020,GREGGS,5812,Subsistence,26.94,0.00,26.94
Children and Young Peoples Services,Head of Education and Skills,070169,Durham SSP,Supplies and Services,384999,Miscellaneous Expenses,04-Feb-2019,000006180363028,PAYPAL CHEERWINGTE,5946,Other expenses,55.37,0.00,55.37
Children and Young Peoples Services,Head of Childrens Social Care,085332,Middlestone Moor CU,Supplies and Services,308011,Furniture,04-Feb-2019,000006180363086,LINTHORPE BEDS,5712,Furniture repair and replacement,59.95,0.00,59.95
Regeneration and Local Services,Culture & Sport,011263,Louisa Centre,Supplies and Services,308011,Furniture,04-Feb-2019,000006180363094,IKEA LIMITED,5712,Furniture repair and replacement,26.25,0.00,26.25
Regeneration and Local Services,Culture & Sport,054233,Bishop Auckland Town Hall Library,Employees,040149,Recruitment Instruction and Training,04-Feb-2019,000006180363114,WWW.FILMBANK.CO.UK,7829,Training-all costs,99.60,0.00,99.60
Regeneration and Local Services,Direct Services,021235,Catering - Wharton Park,Supplies and Services,324117,Provisions E324,04-Feb-2019,000006180363148,HOPWELLS LTD,5811,Catering costs - provisions,104.62,0.00,104.62
Children and Young Peoples Services,Head of Childrens Social Care,085334,West Rainton Satelite Home,Transport,215995,Running Costs of Vehicles,04-Feb-2019,000006184339814,PAYPAL HEYNER UK,5533,Vehicle running expenses,7.99,0.00,7.99
Regeneration and Local Services,Culture & Sport,054812,Gala Theatre - Catering etc,Supplies and Services,324117,Provisions E324,04-Feb-2019,000006194860392,BATLEYS PERTH,5300,Catering costs - provisions,65.10,10.85,54.25
Regeneration and Local Services,Culture & Sport,054812,Gala Theatre - Catering etc,Supplies and Services,324117,Provisions E324,04-Feb-2019,000006194860392 - 1,BATLEYS PERTH,5300,Catering costs - provisions,145.17,,145.17
Regeneration and Local Services,Direct Services,030691,"Catering - Durham Dales Centre			",Supplies and Services,324117,Provisions E324,04-Feb-2019,000006194860862,BATLEYS PERTH,5300,Catering costs - provisions,29.52,4.92,24.60
Regeneration and Local Services,Direct Services,030691,"Catering - Durham Dales Centre			",Supplies and Services,324117,Provisions E324,04-Feb-2019,000006194860862 - 1,BATLEYS PERTH,5300,Catering costs - provisions,91.13,,91.13
Resources,Digital and Customer Services,065461,Business Support,Supplies and Services,342053,Computers and Communications,05-Feb-2019,000006180362296,BITEABLE PTY LTD,7392,Computer software,0.61,0.00,0.61
Children and Young Peoples Services,Head of Education and Skills,071801,Selby Cottage Childcare Centre,Supplies and Services,324117,Provisions E324,05-Feb-2019,000006184338928,TESCO STORES 2278,5411,Catering costs - provisions,12.90,0.00,12.90
Children and Young Peoples Services,Head of Education and Skills,071801,Selby Cottage Childcare Centre,Supplies and Services,324117,Provisions E324,05-Feb-2019,000006184338940,ASDA GROCERIES ONLINE,5411,Catering costs - provisions,62.96,0.00,62.96
Children and Young Peoples Services,Head of Education and Skills,071801,Selby Cottage Childcare Centre,Supplies and Services,324117,Provisions E324,05-Feb-2019,000006184338946,TESCO STORES 2278,5411,Catering costs - provisions,6.50,0.00,6.50
Children and Young Peoples Services,Head of Education and Skills,071801,Selby Cottage Childcare Centre,Supplies and Services,324117,Provisions E324,05-Feb-2019,000006184338952,TESCO STORES 2278,5411,Catering costs - provisions,6.00,0.00,6.00
Children and Young Peoples Services,Head of Childrens Social Care,085100,Strategic Manager Families First Area South,Supplies and Services,384199,Miscellaneous Expenses,05-Feb-2019,000006184338972,SUNDERLAND CC,9399,Other hired and contracted services,10.00,0.00,10.00
Children and Young Peoples Services,Head of Education and Skills,078100,Curric and Professional Development,Supplies and Services,304403,Equipment and Materials,05-Feb-2019,000006184338980,AMZN Mktp UK MI0I64T14,5942,Other consumables,32.99,0.00,32.99
Resources,Digital and Customer Services,065301,Design & Print,Supplies and Services,304335,Equipment and Materials,05-Feb-2019,000006184338986,Amazon.co.uk MI7DA0AI4,5969,ICT supplies etc,44.80,0.00,44.80
Transformation and Partnerships,Communications Management,060700,Civil Contingencies Unit,Supplies and Services,304403,Equipment and Materials,05-Feb-2019,000006184338990,PHOENIX SERVICES,5945,Other consumables,500.00,0.00,500.00
Resources,Corporate Finance & Commercial Services,069810,Health and Safety,Supplies and Services,384199,Miscellaneous Expenses,05-Feb-2019,000006184338996,DISCLOSURE SCOTLAND,9399,Other hired and contracted services,25.00,0.00,25.00
Children and Young Peoples Services,Head of Childrens Social Care,085100,Strategic Manager Families First Area South,Supplies and Services,384199,Miscellaneous Expenses,05-Feb-2019,000006184339000,GEN REGISTER OFFICE,9399,Other hired and contracted services,9.25,0.00,9.25
Resources,Digital and Customer Services,065432,Web Development Group,Supplies and Services,342053,Computers and Communications,05-Feb-2019,000006184339006,OASIS WORKFLOW PRO,7372,Computer software,463.36,0.00,463.36
Resources,Digital and Customer Services,069010,Administration,Transport,235057,Public Transport,05-Feb-2019,000006184339014,Oyster Online,4112,Staff travelling,-50.00,0.00,-50.00
Regeneration and Local Services,Spatial Policy Planning Assets & Environment,031200,North Pennines Core,Supplies and Services,324117,Provisions E324,05-Feb-2019,000006184339034,SCOTMID CO-OP STANHOPE,5411,Catering costs - provisions,20.45,0.00,20.45
Regeneration and Local Services,Direct Services,010383,C&G - South Street Cleansing,Supplies and Services,304221,Equipment and Materials,05-Feb-2019,000006184339044,HARELAW SAWMILL,5211,Direct materials,51.40,8.57,42.83
Dedicated Schools Grant,DSG High Needs Block,079050,SENSS-Sensory,Supplies and Services,384999,Miscellaneous Expenses,05-Feb-2019,000006184339064,EDUCATION ESSENTIALS L,5945,Other expenses,57.54,0.00,57.54
Children and Young Peoples Services,Head of Childrens Social Care,085332,Middlestone Moor CU,Supplies and Services,308011,Furniture,05-Feb-2019,000006184339080,AMZN Mktp UK MI5S38T64,5942,Furniture repair and replacement,63.99,0.00,63.99
Children and Young Peoples Services,Head of Childrens Social Care,085332,Middlestone Moor CU,Supplies and Services,324117,Provisions E324,05-Feb-2019,000006184339086,ALDI 74 774,5411,Catering costs - provisions,4.23,0.00,4.23
Regeneration and Local Services,Economic Development and Housing,030699,Business Growth and Innovation General,Supplies and Services,342033,Computers and Communications,05-Feb-2019,000006184339094,STK Shutterstock,7333,Computer hardware,19.00,0.00,19.00
Resources,Finance & Transactional Services,065180,Collections,Supplies and Services,304259,Equipment and Materials,05-Feb-2019,000006184339102,WWW.MONEYCLAIM.GOV,9399,Equipment-purchase and rental,105.00,0.00,105.00
Children and Young Peoples Services,Head of Childrens Social Care,085333,Coxhoe Satelite Home,Supplies and Services,304259,Equipment and Materials,05-Feb-2019,000006184339126,CYCLEWAYS SPORT AND LE,5940,Equipment-purchase and rental,65.00,0.00,65.00
Regeneration and Local Services,Direct Services,010367,C&G - South Grounds Maintenance,Supplies and Services,304221,Equipment and Materials,05-Feb-2019,000006184339140,MKM PETERLEE,5211,Direct materials,135.24,22.54,112.70
Children and Young Peoples Services,Head of Childrens Social Care,085624,Families First Crook,Supplies and Services,304403,Equipment and Materials,05-Feb-2019,000006184339178,ARGOS RETAIL GROUP,5310,Other consumables,29.99,0.00,29.99
Regeneration and Local Services,Direct Services,021242,Catering - County Hall,Premises,145009,Cleaning and Domestic Supplies,05-Feb-2019,000006184339190,ALLIANCE DISPOSABLES L,2842,Other cleaning and domestic costs,294.33,49.06,245.27
Regeneration and Local Services,Direct Services,021242,Catering - County Hall,Supplies and Services,324117,Provisions E324,05-Feb-2019,000006184339202,JR HOLLAND FOODSERVICE,5499,Catering costs - provisions,335.46,0.00,335.46
Regeneration and Local Services,Direct Services,021242,Catering - County Hall,Supplies and Services,324117,Provisions E324,05-Feb-2019,000006184339210,JR HOLLAND FOODSERVICE,5499,Catering costs - provisions,117.19,0.00,117.19
Regeneration and Local Services,Direct Services,021242,Catering - County Hall,Supplies and Services,324117,Provisions E324,05-Feb-2019,000006184339224,JR HOLLAND FOODSERVICE,5499,Catering costs - provisions,31.51,0.00,31.51
Children and Young Peoples Services,Childrens Services Operational Support,052986,CYPS - Locality and Operational Support,Supplies and Services,324117,Provisions E324,05-Feb-2019,000006184339336,ASDA STORES,5411,Catering costs - provisions,15.25,0.00,15.25
Children and Young Peoples Services,Head of Education and Skills,071732,Dean Bank Childcare,Supplies and Services,312011,Newspapers books and periodicals E312,05-Feb-2019,000006184339358,Amazon.co.uk MI1OU4TN4,5969,Books-school library,79.99,0.00,79.99
Children and Young Peoples Services,"Head of Early Help, Inclusion and Vulnerable Children",085955,Auckland,Supplies and Services,328041,Clothing uniforms and laundry E328,05-Feb-2019,000006184339464,M and M Direct Ltd,5941,Clothing uniforms and laundry,29.99,0.00,29.99
Children and Young Peoples Services,"Head of Early Help, Inclusion and Vulnerable Children",085954,Walworth,Supplies and Services,328041,Clothing uniforms and laundry E328,05-Feb-2019,000006184339472,VERY,5964,Clothing uniforms and laundry,31.99,0.00,31.99
Regeneration and Local Services,Culture & Sport,054813,Gala Theatre - Technical,Supplies and Services,304259,Equipment and Materials,05-Feb-2019,000006184339494,Prime Video MI1FB5TD4,5735,Equipment-purchase and rental,2.49,0.00,2.49
Regeneration and Local Services,Culture & Sport,054813,Gala Theatre - Technical,Supplies and Services,304259,Equipment and Materials,05-Feb-2019,000006184339502,Prime Video MI3107TU4,5735,Equipment-purchase and rental,2.49,0.00,2.49
Regeneration and Local Services,Culture & Sport,054813,Gala Theatre - Technical,Supplies and Services,312011,Newspapers books and periodicals E312,05-Feb-2019,000006184339508,AMZN Mktp UK MI1WV8AO4,5942,Books-school library,9.99,0.00,9.99
Regeneration and Local Services,Culture & Sport,054813,Gala Theatre - Technical,Supplies and Services,312011,Newspapers books and periodicals E312,05-Feb-2019,000006184339514,AMZN Mktp UK MI2W83AU4,5942,Books-school library,10.39,0.00,10.39
Regeneration and Local Services,Culture & Sport,054813,Gala Theatre - Technical,Supplies and Services,312011,Newspapers books and periodicals E312,05-Feb-2019,000006184339522,AMZN Mktp UK MI5IV3TO4,5942,Books-school library,88.17,0.00,88.17
Regeneration and Local Services,Culture & Sport,054813,Gala Theatre - Technical,Supplies and Services,312011,Newspapers books and periodicals E312,05-Feb-2019,000006184339528,AMZN Mktp UK MI9D87T74,5942,Books-school library,23.00,0.00,23.00
Regeneration and Local Services,Culture & Sport,054813,Gala Theatre - Technical,Supplies and Services,312011,Newspapers books and periodicals E312,05-Feb-2019,000006184339532,Amazon.co.uk MI3YO1A34,5969,Books-school library,31.97,0.00,31.97
Regeneration and Local Services,Culture & Sport,054813,Gala Theatre - Technical,Supplies and Services,312011,Newspapers books and periodicals E312,05-Feb-2019,000006184339540,Amazon.co.uk MI5DG1AH4,5969,Books-school library,13.41,0.00,13.41
Regeneration and Local Services,Culture & Sport,054813,Gala Theatre - Technical,Supplies and Services,312011,Newspapers books and periodicals E312,05-Feb-2019,000006184339548,Amazon.co.uk MI8VZ8TO4,5969,Books-school library,124.99,0.00,124.99
Regeneration and Local Services,Spatial Policy Planning Assets & Environment,031222,North Pennines Allen Valleys Landscape Partnership,Supplies and Services,324117,Provisions E324,05-Feb-2019,000006184339568,HALLBANKGATE HUB LIMIT,5411,Catering costs - provisions,7.60,0.00,7.60
Regeneration and Local Services,Culture & Sport,011060,Hardwick Park Catering,Supplies and Services,324117,Provisions E324,05-Feb-2019,000006184339576,JR HOLLAND FOODSERVICE,5499,Catering costs - provisions,3.68,0.00,3.68
Regeneration and Local Services,Direct Services,021234,Catering - Locomotion,Premises,145009,Cleaning and Domestic Supplies,05-Feb-2019,000006184339608,ALLIANCE DISPOSABLES L,2842,Other cleaning and domestic costs,43.20,7.20,36.00
Transformation and Partnerships,Partnerships & Community Engagement Div.,060702,Local Safeguarding Adults Board,Supplies and Services,312009,Newspapers books and periodicals E312,05-Feb-2019,000006184339626,AMZN Mktp UK MI7D72A84,5942,Newspapers books and periodicals,112.50,0.00,112.50
Regeneration and Local Services,Direct Services,010525,Catering - Green Lane,Supplies and Services,324117,Provisions E324,05-Feb-2019,000006184339650,JR HOLLAND FOODSERVICE,5499,Catering costs - provisions,57.47,0.00,57.47
Children and Young Peoples Services,Head of Childrens Social Care,085551,Short Break Services-Park Hse Sher,Supplies and Services,312011,Newspapers books and periodicals E312,05-Feb-2019,000006184339688,HOME BARGAINS,5251,Books-school library,19.44,3.24,16.20
Children and Young Peoples Services,Head of Childrens Social Care,085551,Short Break Services-Park Hse Sher,Supplies and Services,312011,Newspapers books and periodicals E312,05-Feb-2019,000006184339688 - 1,HOME BARGAINS,5251,Books-school library,24.93,,24.93
Regeneration and Local Services,Economic Development and Housing,030771,Durham Advance Flexible Fund,Supplies and Services,304259,Equipment and Materials,05-Feb-2019,000006184339800,GEN REGISTER OFFICE,9399,Equipment-purchase and rental,9.25,0.00,9.25
Children and Young Peoples Services,Head of Childrens Social Care,085334,West Rainton Satelite Home,Transport,215995,Running Costs of Vehicles,05-Feb-2019,000006184339820,PAYPAL HEYNER UK,5533,Vehicle running expenses,-7.99,0.00,-7.99
Children and Young Peoples Services,Head of Childrens Social Care,085352,Tow Law CU,Supplies and Services,324117,Provisions E324,05-Feb-2019,000006184339858,ASDA SUPERSTORE 4987,5411,Catering costs - provisions,214.85,0.00,214.85
Adult and Health Services,Head of Adults,055643,Hawthorn House LD Respite Unit,Supplies and Services,324117,Provisions E324,05-Feb-2019,000006184339962,JR HOLLAND FOODSERVICE,5499,Catering costs - provisions,17.38,0.00,17.38
Children and Young Peoples Services,"Head of Early Help, Inclusion and Vulnerable Children",074000,TTF-Attachment and Results,Transfer Payments,525033,Other,05-Feb-2019,000006184339978,ASDA GEORGE COM LEEDS,5411,Grants to individuals,58.15,9.69,48.46
Children and Young Peoples Services,"Head of Early Help, Inclusion and Vulnerable Children",074000,TTF-Attachment and Results,Charges,720130,Fees and Charges,05-Feb-2019,000006184339986,J DODDS CARPETS LTD,5713,Fees-legal,146.00,0.00,146.00
Children and Young Peoples Services,"Head of Early Help, Inclusion and Vulnerable Children",085955,Auckland,Supplies and Services,384999,Miscellaneous Expenses,05-Feb-2019,000006184340016,AMZN Mktp UK MI1Y49TP4,5942,Other expenses,68.97,0.00,68.97
Children and Young Peoples Services,"Head of Early Help, Inclusion and Vulnerable Children",085955,Auckland,Supplies and Services,384999,Miscellaneous Expenses,05-Feb-2019,000006184340020,AMZN Mktp UK MI6EW1TC4,5942,Other expenses,114.95,0.00,114.95
Regeneration and Local Services,Economic Development and Housing,030690,Durham Dales Centre - Tourist Information Centre,Supplies and Services,384999,Miscellaneous Expenses,05-Feb-2019,000006184340036,GAINSBOROUGH GIFTWARE,5950,Other expenses,404.26,67.38,336.88
Regeneration and Local Services,Culture & Sport,054235,Bishop Auckland Town Hall Cafe,Supplies and Services,324117,Provisions E324,05-Feb-2019,000006184340072,JR HOLLAND FOODSERVICE,5499,Catering costs - provisions,49.67,0.00,49.67
Regeneration and Local Services,Culture & Sport,011060,Hardwick Park Catering,Supplies and Services,304245,Equipment and Materials,05-Feb-2019,000006184340080,WWW.TILLROLLKING.CO.UK,5943,Materials,23.98,4.00,19.98
Regeneration and Local Services,Culture & Sport,011060,Hardwick Park Catering,Supplies and Services,304245,Equipment and Materials,05-Feb-2019,000006184340088,WWW.TILLROLLMAN.CO.UK,5111,Materials,74.52,12.42,62.10
Regeneration and Local Services,Direct Services,021324,Catering - Meadowfield,Supplies and Services,324117,Provisions E324,05-Feb-2019,000006184340096,JR HOLLAND FOODSERVICE,5499,Catering costs - provisions,44.08,0.00,44.08
Regeneration and Local Services,Direct Services,021324,Catering - Meadowfield,Supplies and Services,324117,Provisions E324,05-Feb-2019,000006184340102,JR HOLLAND FOODSERVICE,5499,Catering costs - provisions,14.19,0.00,14.19
Children and Young Peoples Services,"Head of Early Help, Inclusion and Vulnerable Children",085801,CDYOS - Support,Supplies and Services,348037,Subsistence E348,05-Feb-2019,000006184340130,SANTINOS TAKE AWAY,5812,Subsistence,46.82,0.00,46.82
Adult and Health Services,Head of Adults,055807,Newton Aycliffe Pathways,Supplies and Services,312011,Newspapers books and periodicals E312,05-Feb-2019,000006184340286,AMZN Mktp UK MI1YW8TZ4,5942,Books-school library,11.28,0.00,11.28
Adult and Health Services,Head of Adults,055807,Newton Aycliffe Pathways,Third Party Payments 4THIRD,474101,Purchase of Care,05-Feb-2019,000006184340292,PIONEERING CARE PARTNE,8050,Nursing care payments,36.00,0.00,36.00
Regeneration and Local Services,Economic Development and Housing,030771,Durham Advance Flexible Fund,Supplies and Services,304259,Equipment and Materials,05-Feb-2019,000006184340412,DVLA DRIVER ONLINE,9399,Equipment-purchase and rental,20.00,0.00,20.00
Children and Young Peoples Services,Childrens Services Operational Support,052986,CYPS - Locality and Operational Support,Supplies and Services,312011,Newspapers books and periodicals E312,05-Feb-2019,000006184340498,AMZN Mktp UK MI3WY4AG4,5942,Books-school library,9.00,0.00,9.00
Children and Young Peoples Services,Childrens Services Operational Support,052986,CYPS - Locality and Operational Support,Supplies and Services,324117,Provisions E324,05-Feb-2019,000006184340504,WWW.THORNTONS.CO.U,5441,Catering costs - provisions,100.00,0.00,100.00
Children and Young Peoples Services,Head of Childrens Social Care,085334,West Rainton Satelite Home,Supplies and Services,324117,Provisions E324,05-Feb-2019,000006189505018,TESCO STORES 2371,5411,Catering costs - provisions,140.39,0.00,140.39
Children and Young Peoples Services,"Head of Early Help, Inclusion and Vulnerable Children",085962,Aycliffe Secure - Durham,Supplies and Services,324117,Provisions E324,05-Feb-2019,000006189505132,TESCO STORES 6329,5411,Catering costs - provisions,95.42,0.00,95.42
Children and Young Peoples Services,Head of Childrens Social Care,085342,9 Cedar Drive Aycliffe,Supplies and Services,328041,Clothing uniforms and laundry E328,05-Feb-2019,000006189505446,FLANNELSFASHION.,5691,Clothing uniforms and laundry,164.99,0.00,164.99
Children and Young Peoples Services,Head of Education and Skills,070169,Durham SSP,Supplies and Services,342053,Computers and Communications,05-Feb-2019,000006189505750,MICROSOFT OFFICE 36,5045,Computer software,-32.69,0.00,-32.69
Regeneration and Local Services,Direct Services,021242,Catering - County Hall,Supplies and Services,324117,Provisions E324,05-Feb-2019,000006194860346,BATLEYS PERTH,5300,Catering costs - provisions,320.22,53.37,266.85
Regeneration and Local Services,Direct Services,021242,Catering - County Hall,Supplies and Services,324117,Provisions E324,05-Feb-2019,000006194860346 - 1,BATLEYS PERTH,5300,Catering costs - provisions,31.15,,31.15
Regeneration and Local Services,Culture & Sport,011060,Hardwick Park Catering,Supplies and Services,324117,Provisions E324,05-Feb-2019,000006194860642,BATLEYS PERTH,5300,Catering costs - provisions,5.70,0.95,4.75
Regeneration and Local Services,Culture & Sport,011060,Hardwick Park Catering,Supplies and Services,324117,Provisions E324,05-Feb-2019,000006194860642 - 1,BATLEYS PERTH,5300,Catering costs - provisions,84.54,,84.54
Regeneration and Local Services,Direct Services,021234,Catering - Locomotion,Supplies and Services,324117,Provisions E324,05-Feb-2019,000006194860692,BATLEYS PERTH,5300,Catering costs - provisions,180.78,30.13,150.65
Regeneration and Local Services,Direct Services,021234,Catering - Locomotion,Supplies and Services,324117,Provisions E324,05-Feb-2019,000006194860692 - 1,BATLEYS PERTH,5300,Catering costs - provisions,38.84,,38.84
Regeneration and Local Services,Direct Services,021234,Catering - Locomotion,Supplies and Services,324117,Provisions E324,05-Feb-2019,000006194860698,BATLEYS PERTH,5300,Catering costs - provisions,28.80,4.80,24.00
Regeneration and Local Services,Direct Services,010525,Catering - Green Lane,Supplies and Services,324117,Provisions E324,05-Feb-2019,000006194860728,BATLEYS PERTH,5300,Catering costs - provisions,67.68,11.28,56.40
Regeneration and Local Services,Direct Services,010525,Catering - Green Lane,Supplies and Services,324117,Provisions E324,05-Feb-2019,000006194860728 - 1,BATLEYS PERTH,5300,Catering costs - provisions,10.37,,10.37
Regeneration and Local Services,Culture & Sport,054235,Bishop Auckland Town Hall Cafe,Supplies and Services,324117,Provisions E324,05-Feb-2019,000006194860996,BATLEYS PERTH,5300,Catering costs - provisions,37.62,6.27,31.35
Regeneration and Local Services,Culture & Sport,054235,Bishop Auckland Town Hall Cafe,Supplies and Services,324117,Provisions E324,05-Feb-2019,000006194860996 - 1,BATLEYS PERTH,5300,Catering costs - provisions,173.11,,173.11
Regeneration and Local Services,Direct Services,021324,Catering - Meadowfield,Supplies and Services,324117,Provisions E324,05-Feb-2019,000006194861010,BATLEYS PERTH,5300,Catering costs - provisions,89.40,14.90,74.50
Regeneration and Local Services,Direct Services,021324,Catering - Meadowfield,Supplies and Services,324117,Provisions E324,05-Feb-2019,000006194861010 - 1,BATLEYS PERTH,5300,Catering costs - provisions,128.35,,128.35
Children and Young Peoples Services,"Head of Early Help, Inclusion and Vulnerable Children",071746,Newton Aycliffe Childrens Centre,Supplies and Services,324117,Provisions E324,05-Feb-2019,000006201481284,BATLEYS PERTH,5300,Catering costs - provisions,31.61,0.00,31.61
Resources,Digital and Customer Services,065487,ICT Telephony Recharges,Supplies and Services,344033,Telephones,06-Feb-2019,000006184339010,AMZN Mktp UK MI18Z9T64,5942,Telephones general-all costs,71.49,0.00,71.49
Resources,Digital and Customer Services,065432,Web Development Group,Supplies and Services,304335,Equipment and Materials,06-Feb-2019,000006184339018,OASIS WORKFLOW PRO,7372,ICT supplies etc,12.74,0.00,12.74
Children and Young Peoples Services,Head of Education and Skills,054640,Durham Learning Resources,Supplies and Services,304245,Equipment and Materials,06-Feb-2019,000006189504530,AMZN Mktp UK MI4495A94,5942,Materials,2.25,0.00,2.25
Resources,Digital and Customer Services,065432,Web Development Group,Supplies and Services,342053,Computers and Communications,06-Feb-2019,000006189504534,OASIS WORKFLOW TEAMS -,7372,Computer software,153.94,0.00,153.94
Resources,Digital and Customer Services,069010,Administration,Transport,235057,Public Transport,06-Feb-2019,000006189504538,Oyster Online,4112,Staff travelling,50.00,0.00,50.00
Regeneration and Local Services,Direct Services,010383,C&G - South Street Cleansing,Supplies and Services,304403,Equipment and Materials,06-Feb-2019,000006189504602,SumUp T Junction,5999,Other consumables,40.00,6.67,33.33
Children and Young Peoples Services,Head of Childrens Social Care,085342,9 Cedar Drive Aycliffe,Supplies and Services,348037,Subsistence E348,06-Feb-2019,000006189504618,COSTA COFFEE,5814,Subsistence,6.25,0.00,6.25
Children and Young Peoples Services,Head of Childrens Social Care,085342,9 Cedar Drive Aycliffe,Supplies and Services,328041,Clothing uniforms and laundry E328,06-Feb-2019,000006189504622,NEW LOOK 1996,5621,Clothing uniforms and laundry,28.03,0.00,28.03
Children and Young Peoples Services,Head of Childrens Social Care,085342,9 Cedar Drive Aycliffe,Supplies and Services,304999,Equipment and Materials,06-Feb-2019,000006189504628,SUPERDRUG STORES PLC,5912,Misc equipment tools and materials,5.45,0.00,5.45
Children and Young Peoples Services,Head of Childrens Social Care,085342,9 Cedar Drive Aycliffe,Supplies and Services,348037,Subsistence E348,06-Feb-2019,000006189504632,MCDONALDS,5814,Subsistence,2.98,0.00,2.98
Dedicated Schools Grant,DSG High Needs Block,079050,SENSS-Sensory,Supplies and Services,304259,Equipment and Materials,06-Feb-2019,000006189504638,ITUNES.COM/BILL,5735,Equipment-purchase and rental,11.99,0.00,11.99
Dedicated Schools Grant,DSG High Needs Block,079050,SENSS-Sensory,Supplies and Services,304259,Equipment and Materials,06-Feb-2019,000006189504640,ITUNES.COM/BILL,5735,Equipment-purchase and rental,19.99,0.00,19.99
Dedicated Schools Grant,DSG High Needs Block,079050,SENSS-Sensory,Supplies and Services,304259,Equipment and Materials,06-Feb-2019,000006189504646,ITUNES.COM/BILL,5735,Equipment-purchase and rental,7.96,0.00,7.96
Children and Young Peoples Services,Head of Childrens Social Care,085332,Middlestone Moor CU,Supplies and Services,324117,Provisions E324,06-Feb-2019,000006189504650,HOME BARGAINS SPENNYMO,5251,Catering costs - provisions,44.20,0.00,44.20
Children and Young Peoples Services,Head of Childrens Social Care,085332,Middlestone Moor CU,Supplies and Services,324117,Provisions E324,06-Feb-2019,000006189504656,ASDA SUPERSTORE 4987,5411,Catering costs - provisions,61.23,0.00,61.23
Children and Young Peoples Services,Head of Childrens Social Care,085332,Middlestone Moor CU,Supplies and Services,324117,Provisions E324,06-Feb-2019,000006189504660,ALDI 105 774,5411,Catering costs - provisions,3.99,0.00,3.99
Regeneration and Local Services,Economic Development and Housing,030699,Business Growth and Innovation General,Supplies and Services,312011,Newspapers books and periodicals E312,06-Feb-2019,000006189504668,FASTHOSTS INTERNET,4816,Books-school library,253.09,42.18,210.91
Regeneration and Local Services,Economic Development and Housing,030699,Business Growth and Innovation General,Supplies and Services,312011,Newspapers books and periodicals E312,06-Feb-2019,000006189504672,FASTHOSTS INTERNET,4816,Books-school library,6.34,1.06,5.28
Regeneration and Local Services,Economic Development and Housing,030699,Business Growth and Innovation General,Supplies and Services,312011,Newspapers books and periodicals E312,06-Feb-2019,000006189504674,FASTHOSTS INTERNET,4816,Books-school library,89.99,15.00,74.99
Regeneration and Local Services,Economic Development and Housing,030699,Business Growth and Innovation General,Supplies and Services,312011,Newspapers books and periodicals E312,06-Feb-2019,000006189504678,FASTHOSTS INTERNET,4816,Books-school library,44.38,7.40,36.98
Resources,Finance & Transactional Services,065180,Collections,Supplies and Services,304259,Equipment and Materials,06-Feb-2019,000006189504694,WWW.MONEYCLAIM.GOV,9399,Equipment-purchase and rental,185.00,0.00,185.00
Regeneration and Local Services,Direct Services,021242,Catering - County Hall,Supplies and Services,324117,Provisions E324,06-Feb-2019,000006189504760,JR HOLLAND FOODSERVICE,5499,Catering costs - provisions,65.70,0.00,65.70
Regeneration and Local Services,Direct Services,021242,Catering - County Hall,Supplies and Services,324117,Provisions E324,06-Feb-2019,000006189504766,JR HOLLAND FOODSERVICE,5499,Catering costs - provisions,13.80,0.00,13.80
Regeneration and Local Services,Culture & Sport,054812,Gala Theatre - Catering etc,Supplies and Services,324117,Provisions E324,06-Feb-2019,000006189504796,JR HOLLAND FOODSERVICE,5499,Catering costs - provisions,49.86,0.00,49.86
Children and Young Peoples Services,Head of Childrens Social Care,085333,Coxhoe Satelite Home,Supplies and Services,324117,Provisions E324,06-Feb-2019,000006189504848,COSTCUTTER 10823,5411,Catering costs - provisions,3.18,0.00,3.18
Children and Young Peoples Services,Head of Childrens Social Care,085333,Coxhoe Satelite Home,Supplies and Services,324117,Provisions E324,06-Feb-2019,000006189504854,CO-OP GROUP 310016,5411,Catering costs - provisions,2.73,0.00,2.73
Children and Young Peoples Services,Head of Childrens Social Care,085352,Tow Law CU,Supplies and Services,304999,Equipment and Materials,06-Feb-2019,000006189504918,Tassimo subscription,5968,Misc equipment tools and materials,40.98,0.00,40.98
Children and Young Peoples Services,Head of Education and Skills,071732,Dean Bank Childcare,Supplies and Services,312011,Newspapers books and periodicals E312,06-Feb-2019,000006189504930,AMZN Mktp UK MI21G8EI4,5942,Books-school library,4.95,0.00,4.95
Children and Young Peoples Services,Head of Education and Skills,071732,Dean Bank Childcare,Supplies and Services,312011,Newspapers books and periodicals E312,06-Feb-2019,000006189504934,AMZN Mktp UK MI3K94EO4,5942,Books-school library,13.70,2.28,11.42
Children and Young Peoples Services,Head of Education and Skills,071732,Dean Bank Childcare,Supplies and Services,312011,Newspapers books and periodicals E312,06-Feb-2019,000006189504942,AMZN Mktp UK MI51O6EN4,5942,Books-school library,1.89,0.00,1.89
Children and Young Peoples Services,Head of Education and Skills,071732,Dean Bank Childcare,Supplies and Services,312011,Newspapers books and periodicals E312,06-Feb-2019,000006189504950,AMZN Mktp UK MI62V2EI4,5942,Books-school library,3.99,0.00,3.99
Children and Young Peoples Services,Head of Education and Skills,071732,Dean Bank Childcare,Supplies and Services,312011,Newspapers books and periodicals E312,06-Feb-2019,000006189504956,AMZN Mktp UK MI70P6EZ4,5942,Books-school library,1.74,0.00,1.74
Children and Young Peoples Services,Head of Education and Skills,071732,Dean Bank Childcare,Supplies and Services,312011,Newspapers books and periodicals E312,06-Feb-2019,000006189504962,AMZN Mktp UK MI8224ER4,5942,Books-school library,6.19,0.00,6.19
Children and Young Peoples Services,Head of Education and Skills,071732,Dean Bank Childcare,Supplies and Services,312011,Newspapers books and periodicals E312,06-Feb-2019,000006189504970,AMZN Mktp UK MI5GU6E04,5942,Books-school library,23.05,0.00,23.05
Regeneration and Local Services,Spatial Policy Planning Assets & Environment,031221,North Pennines - Bowlees,Supplies and Services,312011,Newspapers books and periodicals E312,06-Feb-2019,000006189505004,Amazon.co.uk MI31G4EH4,5969,Books-school library,16.39,0.00,16.39
Regeneration and Local Services,Spatial Policy Planning Assets & Environment,031221,North Pennines - Bowlees,Supplies and Services,312011,Newspapers books and periodicals E312,06-Feb-2019,000006189505010,AMZN Mktp UK MI1QI8EW4,5942,Books-school library,31.92,0.00,31.92
Regeneration and Local Services,Economic Development and Housing,030771,Durham Advance Flexible Fund,Supplies and Services,348037,Subsistence E348,06-Feb-2019,000006189505078,GO NORTH EAST LIMITED,4131,Subsistence,5.20,0.00,5.20
Children and Young Peoples Services,"Head of Early Help, Inclusion and Vulnerable Children",085955,Auckland,Supplies and Services,328041,Clothing uniforms and laundry E328,06-Feb-2019,000006189505108,FOOTASYLUM PLC,5691,Clothing uniforms and laundry,36.94,0.00,36.94
Children and Young Peoples Services,"Head of Early Help, Inclusion and Vulnerable Children",085965,Barnard,Supplies and Services,304649,Equipment and Materials,06-Feb-2019,000006189505114,Amazon.co.uk MI39P30T4,5969,Toys,77.95,12.99,64.96
Children and Young Peoples Services,"Head of Early Help, Inclusion and Vulnerable Children",085965,Barnard,Supplies and Services,304649,Equipment and Materials,06-Feb-2019,000006189505120,THEHUT.COM,5399,Toys,79.99,0.00,79.99
Children and Young Peoples Services,"Head of Early Help, Inclusion and Vulnerable Children",085965,Barnard,Supplies and Services,304649,Equipment and Materials,06-Feb-2019,000006189505124,AMZN Mktp UK MI7ZH5EI4,5942,Toys,29.97,0.00,29.97
Children and Young Peoples Services,"Head of Early Help, Inclusion and Vulnerable Children",085955,Auckland,Supplies and Services,324117,Provisions E324,06-Feb-2019,000006189505138,TESCO STORES 6329,5411,Catering costs - provisions,101.88,0.00,101.88
Children and Young Peoples Services,"Head of Early Help, Inclusion and Vulnerable Children",085957,Secure Management,Supplies and Services,304999,Equipment and Materials,06-Feb-2019,000006189505144,TESCO DELIVERY SAVER2,5968,Misc equipment tools and materials,6.99,0.00,6.99
Children and Young Peoples Services,"Head of Early Help, Inclusion and Vulnerable Children",085965,Barnard,Supplies and Services,328041,Clothing uniforms and laundry E328,06-Feb-2019,000006189505146,JD SPORTS INTERNET,5941,Clothing uniforms and laundry,23.99,0.00,23.99
Regeneration and Local Services,Culture & Sport,054813,Gala Theatre - Technical,Supplies and Services,312011,Newspapers books and periodicals E312,06-Feb-2019,000006189505152,AMZN Mktp UK MI8851AI4,5942,Books-school library,12.13,0.00,12.13
Regeneration and Local Services,Culture & Sport,054813,Gala Theatre - Technical,Supplies and Services,312011,Newspapers books and periodicals E312,06-Feb-2019,000006189505158,Amazon.co.uk MI4Q35AH4,5969,Books-school library,79.99,0.00,79.99
Children and Young Peoples Services,Childrens Services Operational Support,052986,CYPS - Locality and Operational Support,Supplies and Services,304259,Equipment and Materials,06-Feb-2019,000006189505176,WWW.DURHAM.GOV.UK,9399,Equipment-purchase and rental,12.00,0.00,12.00
Regeneration and Local Services,Culture & Sport,011060,Hardwick Park Catering,Supplies and Services,324117,Provisions E324,06-Feb-2019,000006189505184,JR HOLLAND FOODSERVICE,5499,Catering costs - provisions,16.59,0.00,16.59
Regeneration and Local Services,Culture & Sport,054815,Gala Theatre Stage School,Supplies and Services,304259,Equipment and Materials,06-Feb-2019,000006189505190,WWW.MTISHOWS.COM,5733,Equipment-purchase and rental,-500.00,0.00,-500.00
Regeneration and Local Services,Economic Development and Housing,030764,Work & Health Programme (Reed),Supplies and Services,352001,Conference Expenses,06-Feb-2019,000006189505202,GET LICENSED,7392,Conferencesseminars fees etc,208.98,0.00,208.98
Regeneration and Local Services,Economic Development and Housing,030755,Durham Employment & Skills - Other Training,Employees,040149,Recruitment Instruction and Training,06-Feb-2019,000006189505208,WWW.CSKILLS.ORG,8249,Training-all costs,36.00,6.00,30.00
Regeneration and Local Services,Direct Services,021234,Catering - Locomotion,Supplies and Services,324117,Provisions E324,06-Feb-2019,000006189505212,JR HOLLAND FOODSERVICE,5499,Catering costs - provisions,28.88,0.00,28.88
Regeneration and Local Services,Direct Services,021234,Catering - Locomotion,Supplies and Services,324117,Provisions E324,06-Feb-2019,000006189505214,JR HOLLAND FOODSERVICE,5499,Catering costs - provisions,4.40,0.00,4.40
Regeneration and Local Services,Direct Services,021234,Catering - Locomotion,Supplies and Services,324117,Provisions E324,06-Feb-2019,000006189505218,JR HOLLAND FOODSERVICE,5499,Catering costs - provisions,3.28,0.00,3.28
Regeneration and Local Services,Direct Services,010525,Catering - Green Lane,Premises,145009,Cleaning and Domestic Supplies,06-Feb-2019,000006189505302,ALLIANCE DISPOSABLES L,2842,Other cleaning and domestic costs,119.78,19.96,99.82
Transformation and Partnerships,Communications Management,060131,County Records,Supplies and Services,384999,Miscellaneous Expenses,06-Feb-2019,000006189505314,TURPIN44(0)01767604800,5965,Other expenses,70.00,0.00,70.00
Children and Young Peoples Services,Head of Childrens Social Care,085551,Short Break Services-Park Hse Sher,Supplies and Services,324117,Provisions E324,06-Feb-2019,000006189505338,HERON FOODS LTD,5499,Catering costs - provisions,8.00,0.00,8.00
Regeneration and Local Services,Economic Development and Housing,031500,Housing Solutions - Core Team,Supplies and Services,364320,Grants to Voluntary Organisations,06-Feb-2019,000006189505388,HOTEL 52,7011,Accommodation assistance,110.00,18.33,91.67
Regeneration and Local Services,Direct Services,020061,Bldg Serv - R&M Div 61 - Building,Supplies and Services,304221,Equipment and Materials,06-Feb-2019,000006189505400,AMZN Mktp UK MI7822AW4,5942,Direct materials,18.20,3.03,15.17
Regeneration and Local Services,Direct Services,019100,Fleet - Strategic Fleet,Supplies and Services,384999,Miscellaneous Expenses,06-Feb-2019,000006189505460,WWW.FTA.CO.UK,8999,Other expenses,67.14,0.00,67.14
Children and Young Peoples Services,Head of Childrens Social Care,085352,Tow Law CU,Supplies and Services,308011,Furniture,06-Feb-2019,000006189505464,POUNDSTRETCHER 692,5714,Furniture repair and replacement,5.96,0.00,5.96
Children and Young Peoples Services,Head of Childrens Social Care,085352,Tow Law CU,Supplies and Services,324117,Provisions E324,06-Feb-2019,000006189505468,TESCO STORES 6329,5411,Catering costs - provisions,106.24,0.00,106.24
Regeneration and Local Services,Spatial Policy Planning Assets & Environment,031222,North Pennines Allen Valleys Landscape Partnership,Supplies and Services,352001,Conference Expenses,06-Feb-2019,000006189505528,TRAVELODGE,3615,Conferencesseminars fees etc,160.02,26.67,133.35
Regeneration and Local Services,Spatial Policy Planning Assets & Environment,031222,North Pennines Allen Valleys Landscape Partnership,Supplies and Services,352001,Conference Expenses,06-Feb-2019,000006189505528 - 1,TRAVELODGE,3615,Conferencesseminars fees etc,168.98,,168.98
Regeneration and Local Services,Spatial Policy Planning Assets & Environment,031239,North Pennines - Carbon Connect,Supplies and Services,384956,Miscellaneous Expenses,06-Feb-2019,000006189505532,UK CAA APPLY ONLINE,9399,Licences,247.00,0.00,247.00
Children and Young Peoples Services,Head of Childrens Social Care,085342,9 Cedar Drive Aycliffe,Employees,040149,Recruitment Instruction and Training,06-Feb-2019,000006189505596,PARENTPAY E-COM R,8220,Training-all costs,60.00,0.00,60.00
Children and Young Peoples Services,Head of Childrens Social Care,085342,9 Cedar Drive Aycliffe,Employees,040149,Recruitment Instruction and Training,06-Feb-2019,000006189505608,PARENTPAY E-COM R,8220,Training-all costs,16.38,0.00,16.38
Children and Young Peoples Services,"Head of Early Help, Inclusion and Vulnerable Children",085962,Aycliffe Secure - Durham,Supplies and Services,384999,Miscellaneous Expenses,06-Feb-2019,000006189505618,AMZN Mktp UK MI41Z6EH4,5942,Other expenses,1.59,0.00,1.59
Children and Young Peoples Services,"Head of Early Help, Inclusion and Vulnerable Children",079034,SEND LOOKED AFTER AND VULNERABLE CASEWORK TEAM 1,Supplies and Services,312011,Newspapers books and periodicals E312,06-Feb-2019,000006189505628,AMZN MKTP UK MI1XK6EC4,5942,Books-school library,6.00,0.00,6.00
Regeneration and Local Services,Culture & Sport,026591,Hardwick Park,Supplies and Services,332047,Printing Stationery and Gen Off Exps,06-Feb-2019,000006189505644,Amazon.co.uk MI3MH4EK4,5969,Stationery,14.00,2.33,11.67
Children and Young Peoples Services,Head of Childrens Social Care,085332,Middlestone Moor CU,Supplies and Services,324093,Provisions E324,06-Feb-2019,000006189505774,PARENTPAY E-COM R,8220,Meals-School Meals Service,59.05,0.00,59.05
Transformation and Partnerships,Communications Management,060270,Communications and Marketing,Supplies and Services,372009,Subscriptions E372,06-Feb-2019,000006189505856,LinkedIn 4478674273 ln,5968,Subscriptions 372009,102.01,0.00,102.01
Regeneration and Local Services,Economic Development and Housing,031576,B& B - Temp Accom,Supplies and Services,364320,Grants to Voluntary Organisations,06-Feb-2019,000006194860188,PREMIER INN,3811,Accommodation assistance,386.00,0.00,386.00
Regeneration and Local Services,Culture & Sport,011207,Physical Activity,Supplies and Services,342033,Computers and Communications,06-Feb-2019,000006194860426,CAMPAIGNMONITOR,7399,Computer hardware,388.89,0.00,388.89
Children and Young Peoples Services,"Head of Early Help, Inclusion and Vulnerable Children",085965,Barnard,Supplies and Services,304649,Equipment and Materials,06-Feb-2019,000006194860610,SPORTSDIRECT.COM,5941,Toys,40.02,6.67,33.35
Children and Young Peoples Services,"Head of Early Help, Inclusion and Vulnerable Children",085965,Barnard,Supplies and Services,304649,Equipment and Materials,06-Feb-2019,000006194860610 - 1,SPORTSDIRECT.COM,5941,Toys,4.97,,4.97
Children and Young Peoples Services,"Head of Early Help, Inclusion and Vulnerable Children",079034,SEND LOOKED AFTER AND VULNERABLE CASEWORK TEAM 1,Supplies and Services,312011,Newspapers books and periodicals E312,06-Feb-2019,000006194860968,AMZN MKTP UK MI15O4EJ4,5942,Books-school library,24.75,0.00,24.75
Children and Young Peoples Services,"Head of Early Help, Inclusion and Vulnerable Children",079034,SEND LOOKED AFTER AND VULNERABLE CASEWORK TEAM 1,Supplies and Services,312011,Newspapers books and periodicals E312,06-Feb-2019,000006194860972,AMZN MKTP UK MI7HF3EF4,5942,Books-school library,9.93,0.00,9.93
Children and Young Peoples Services,Head of Childrens Social Care,085372,Young People Services - North,Supplies and Services,352001,Conference Expenses,06-Feb-2019,000006194860976,TVLICENSING.CO.UK,7392,Conferencesseminars fees etc,150.50,0.00,150.50
Regeneration and Local Services,Economic Development and Housing,030553,Europe Direct Scheme,Supplies and Services,384926,Miscellaneous Expenses,06-Feb-2019,000006194861248,CTS DA ING BSC,4111,International visits,12.42,0.00,12.42
Regeneration and Local Services,Economic Development and Housing,030553,Europe Direct Scheme,Supplies and Services,384926,Miscellaneous Expenses,06-Feb-2019,000006194861252,CTS DA ING BSC,4111,International visits,62.12,0.00,62.12
Resources,Digital and Customer Services,065432,Web Development Group,Supplies and Services,342053,Computers and Communications,07-Feb-2019,000006189504542,OASIS WORKFLOW TEAMS -,7372,Computer software,4.23,0.00,4.23
Regeneration and Local Services,Economic Development and Housing,030554,International Relations,Payments In advance A932,932001,Payments in advance,07-Feb-2019,000006194860150,SQ NOCERA MANDIS,8931,Payments in advance,259.20,0.00,259.20
Children and Young Peoples Services,Head of Education and Skills,071801,Selby Cottage Childcare Centre,Supplies and Services,324117,Provisions E324,07-Feb-2019,000006194860156,TESCO STORES 2278,5411,Catering costs - provisions,14.29,0.00,14.29
Children and Young Peoples Services,Head of Education and Skills,071801,Selby Cottage Childcare Centre,Supplies and Services,324117,Provisions E324,07-Feb-2019,000006194860160,TESCO STORES 2278,5411,Catering costs - provisions,4.02,0.00,4.02
Resources,Finance & Transactional Services,065180,Collections,Charges,720130,Fees and Charges,07-Feb-2019,000006194860166,HMCOURT-SERVICES.G,9222,Fees-legal,110.00,0.00,110.00
Resources,Legal & Democratic Services,067910,Democratic Representation,Supplies and Services,344033,Telephones,07-Feb-2019,000006194860170,AMZN Mktp UK MI7YC71K4,5942,Telephones general-all costs,19.97,0.00,19.97
Resources,Legal & Democratic Services,069540,Charter Trust,Supplies and Services,312075,Newspapers books and periodicals E312,07-Feb-2019,000006194860172,Amazon.co.uk MI9V48014,5969,Text books,26.00,0.00,26.00
Regeneration and Local Services,Spatial Policy Planning Assets & Environment,031081,Heritage Coast,Supplies and Services,352001,Conference Expenses,07-Feb-2019,000006194860174,EB REWILDING-A SOLUTI,7399,Conferencesseminars fees etc,58.23,0.00,58.23
Children and Young Peoples Services,Head of Childrens Social Care,085100,Strategic Manager Families First Area South,Supplies and Services,384199,Miscellaneous Expenses,07-Feb-2019,000006194860178,STOCKTON BOROUGH COUNC,9399,Other hired and contracted services,11.00,0.00,11.00
Regeneration and Local Services,Economic Development and Housing,031576,B& B - Temp Accom,Supplies and Services,364320,Grants to Voluntary Organisations,07-Feb-2019,000006194860192,HOTEL 52,7011,Accommodation assistance,65.00,10.83,54.17
Adult and Health Services,Head of Adults,055302,Durham Pathways,Supplies and Services,324117,Provisions E324,07-Feb-2019,000006194860226,ASDA GEORGE COM LEEDS,5411,Catering costs - provisions,47.00,0.00,47.00
Adult and Health Services,Head of Adults,055302,Durham Pathways,Supplies and Services,324117,Provisions E324,07-Feb-2019,000006194860230,SAINSBURYS SACAT 0776,5411,Catering costs - provisions,4.25,0.00,4.25
Children and Young Peoples Services,Head of Childrens Social Care,085332,Middlestone Moor CU,Supplies and Services,324117,Provisions E324,07-Feb-2019,000006194860264,ASDA SUPERSTORE 4987,5411,Catering costs - provisions,62.29,0.00,62.29
Regeneration and Local Services,Economic Development and Housing,030699,Business Growth and Innovation General,Supplies and Services,304403,Equipment and Materials,07-Feb-2019,000006194860268,MEETEDGAR MONTHLY,5734,Other consumables,38.11,0.00,38.11
Children and Young Peoples Services,Head of Childrens Social Care,085333,Coxhoe Satelite Home,Supplies and Services,324117,Provisions E324,07-Feb-2019,000006194860296,TESCO STORES 2371,5411,Catering costs - provisions,9.28,0.00,9.28
Children and Young Peoples Services,Head of Childrens Social Care,085333,Coxhoe Satelite Home,Supplies and Services,328041,Clothing uniforms and laundry E328,07-Feb-2019,000006194860300,ARGOS LTD,5310,Clothing uniforms and laundry,9.99,0.00,9.99
Children and Young Peoples Services,Head of Childrens Social Care,085333,Coxhoe Satelite Home,Supplies and Services,328041,Clothing uniforms and laundry E328,07-Feb-2019,000006194860302,B & M RETAIL,5310,Clothing uniforms and laundry,21.63,0.00,21.63
Children and Young Peoples Services,Head of Childrens Social Care,085513,Supervised Contact Centre,Supplies and Services,304403,Equipment and Materials,07-Feb-2019,000006194860324,AMZN Mktp UK MI2NE00A4,5942,Other consumables,137.25,22.88,114.37
Regeneration and Local Services,Direct Services,021242,Catering - County Hall,Premises,145009,Cleaning and Domestic Supplies,07-Feb-2019,000006194860332,ALLIANCE DISPOSABLES L,2842,Other cleaning and domestic costs,50.98,8.50,42.48
Regeneration and Local Services,Direct Services,021242,Catering - County Hall,Supplies and Services,324117,Provisions E324,07-Feb-2019,000006194860338,JR HOLLAND FOODSERVICE,5499,Catering costs - provisions,168.82,0.00,168.82
Regeneration and Local Services,Direct Services,021242,Catering - County Hall,Supplies and Services,324117,Provisions E324,07-Feb-2019,000006194860342,JR HOLLAND FOODSERVICE,5499,Catering costs - provisions,40.80,0.00,40.80
Regeneration and Local Services,Direct Services,021242,Catering - County Hall,Premises,145009,Cleaning and Domestic Supplies,07-Feb-2019,000006194860352,ALLIANCE DISPOSABLES L,2842,Other cleaning and domestic costs,-42.41,-7.07,-35.34
Regeneration and Local Services,Direct Services,021242,Catering - County Hall,Supplies and Services,324117,Provisions E324,07-Feb-2019,000006194860356,JR HOLLAND FOODSERVICE,5499,Catering costs - provisions,-10.42,0.00,-10.42
Regeneration and Local Services,Culture & Sport,054233,Bishop Auckland Town Hall Library,Supplies and Services,312011,Newspapers books and periodicals E312,07-Feb-2019,000006194860360,Amazon.co.uk MI23060U4,5969,Books-school library,46.76,7.79,38.97
Resources,Digital and Customer Services,070204,School Services - Systems,Supplies and Services,372009,Subscriptions E372,07-Feb-2019,000006194860372,WEB NETWORKSOLUTIONS,5968,Subscriptions 372009,14.93,0.00,14.93
Resources,Digital and Customer Services,070204,School Services - Systems,Supplies and Services,372009,Subscriptions E372,07-Feb-2019,000006194860376,WEB NETWORKSOLUTIONS,5968,Subscriptions 372009,9.33,0.00,9.33
Regeneration and Local Services,Culture & Sport,054812,Gala Theatre - Catering etc,Premises,145009,Cleaning and Domestic Supplies,07-Feb-2019,000006194860386,ALLIANCE DISPOSABLES L,2842,Other cleaning and domestic costs,217.14,36.19,180.95
Regeneration and Local Services,Culture & Sport,054812,Gala Theatre - Catering etc,Premises,145009,Cleaning and Domestic Supplies,07-Feb-2019,000006194860386 - 1,ALLIANCE DISPOSABLES L,2842,Other cleaning and domestic costs,0.09,,0.09
Children and Young Peoples Services,Head of Education and Skills,071732,Dean Bank Childcare,Supplies and Services,312011,Newspapers books and periodicals E312,07-Feb-2019,000006194860466,AMZN Mktp UK MI3KZ10E4,5942,Books-school library,2.29,0.00,2.29
Regeneration and Local Services,Culture & Sport,011223,Operations Locality 1,Supplies and Services,312011,Newspapers books and periodicals E312,07-Feb-2019,000006194860472,AMZN Mktp UK MI1H930R4,5942,Books-school library,49.99,0.00,49.99
Regeneration and Local Services,Culture & Sport,011223,Operations Locality 1,Supplies and Services,312011,Newspapers books and periodicals E312,07-Feb-2019,000006194860476,AMZN Mktp UK MI4F871L4,5942,Books-school library,93.99,0.00,93.99
Regeneration and Local Services,Economic Development and Housing,030771,Durham Advance Flexible Fund,Supplies and Services,384700,Miscellaneous Expenses,07-Feb-2019,000006194860498,ASDA SUPERSTORE 4987,5411,Miscellaneous grants,79.50,0.00,79.50
Regeneration and Local Services,Economic Development and Housing,030771,Durham Advance Flexible Fund,Transport,215995,Running Costs of Vehicles,07-Feb-2019,000006194860502,ASDA PETROL 5115,5542,Vehicle running expenses,35.00,0.00,35.00
Children and Young Peoples Services,Head of Childrens Social Care,085334,West Rainton Satelite Home,Supplies and Services,304259,Equipment and Materials,07-Feb-2019,000006194860506,CURRYS,5732,Equipment-purchase and rental,49.99,0.00,49.99
Children and Young Peoples Services,Head of Childrens Social Care,085334,West Rainton Satelite Home,Supplies and Services,384999,Miscellaneous Expenses,07-Feb-2019,000006194860512,SILKSWORTH SPORTS,7997,Other expenses,55.00,0.00,55.00
Children and Young Peoples Services,Head of Education and Skills,071903,EYDCP-Sustainability EDS,Supplies and Services,312011,Newspapers books and periodicals E312,07-Feb-2019,000006194860554,Amazon.co.uk MI3UZ9154,5969,Books-school library,83.52,0.00,83.52
Regeneration and Local Services,Economic Development and Housing,030771,Durham Advance Flexible Fund,Supplies and Services,344033,Telephones,07-Feb-2019,000006194860574,o2 Bishop Auckland,4812,Telephones general-all costs,35.00,0.00,35.00
Children and Young Peoples Services,"Head of Early Help, Inclusion and Vulnerable Children",085954,Walworth,Supplies and Services,328041,Clothing uniforms and laundry E328,07-Feb-2019,000006194860584,FOOTASYLUM PLC,5691,Clothing uniforms and laundry,74.97,0.00,74.97
Children and Young Peoples Services,"Head of Early Help, Inclusion and Vulnerable Children",085962,Aycliffe Secure - Durham,Supplies and Services,384999,Miscellaneous Expenses,07-Feb-2019,000006194860588,AMZN Mktp UK MI1EQ8054,5942,Other expenses,39.47,0.00,39.47
Children and Young Peoples Services,"Head of Early Help, Inclusion and Vulnerable Children",085952,Secure Education,Supplies and Services,312011,Newspapers books and periodicals E312,07-Feb-2019,000006194860592,AMZN Mktp UK MI26301H4,5942,Books-school library,17.91,2.99,14.92
Children and Young Peoples Services,"Head of Early Help, Inclusion and Vulnerable Children",085952,Secure Education,Supplies and Services,332047,Printing Stationery and Gen Off Exps,07-Feb-2019,000006194860596,AMZN Mktp UK MI41550S4,5942,Stationery,11.84,1.97,9.87
Children and Young Peoples Services,"Head of Early Help, Inclusion and Vulnerable Children",085955,Auckland,Supplies and Services,312011,Newspapers books and periodicals E312,07-Feb-2019,000006194860600,AMZN Mktp UK MI6VV40M4,5942,Books-school library,19.90,3.32,16.58
Children and Young Peoples Services,"Head of Early Help, Inclusion and Vulnerable Children",085965,Barnard,Supplies and Services,324117,Provisions E324,07-Feb-2019,000006194860604,TESCO STORES 6329,5411,Catering costs - provisions,167.89,0.00,167.89
Children and Young Peoples Services,"Head of Early Help, Inclusion and Vulnerable Children",085955,Auckland,Supplies and Services,328041,Clothing uniforms and laundry E328,07-Feb-2019,000006194860606,VERY,5964,Clothing uniforms and laundry,63.99,0.00,63.99
Children and Young Peoples Services,"Head of Early Help, Inclusion and Vulnerable Children",085957,Secure Management,Supplies and Services,384999,Miscellaneous Expenses,07-Feb-2019,000006194860614,AMZ HNYM2017,5999,Other expenses,-17.98,0.00,-17.98
Regeneration and Local Services,Culture & Sport,054813,Gala Theatre - Technical,Supplies and Services,304999,Equipment and Materials,07-Feb-2019,000006194860618,Audible UK,5968,Misc equipment tools and materials,6.39,0.00,6.39
Regeneration and Local Services,Culture & Sport,054813,Gala Theatre - Technical,Supplies and Services,328041,Clothing uniforms and laundry E328,07-Feb-2019,000006194860624,WWW.ARGOS.CO.UK,5310,Clothing uniforms and laundry,53.95,0.00,53.95
Regeneration and Local Services,Culture & Sport,054813,Gala Theatre - Technical,Supplies and Services,328041,Clothing uniforms and laundry E328,07-Feb-2019,000006194860626,WWW.ARGOS.CO.UK,5310,Clothing uniforms and laundry,88.94,0.00,88.94
Regeneration and Local Services,Culture & Sport,011060,Hardwick Park Catering,Supplies and Services,324117,Provisions E324,07-Feb-2019,000006194860632,JR HOLLAND FOODSERVICE,5499,Catering costs - provisions,26.43,0.00,26.43
Regeneration and Local Services,Culture & Sport,054815,Gala Theatre Stage School,Employees,040149,Recruitment Instruction and Training,07-Feb-2019,000006194860656,NSPCC,8299,Training-all costs,20.00,0.00,20.00
Regeneration and Local Services,Direct Services,021234,Catering - Locomotion,Supplies and Services,324117,Provisions E324,07-Feb-2019,000006194860664,WWW.ADELIEFOODS.CO.UK,5499,Catering costs - provisions,89.64,0.00,89.64
Regeneration and Local Services,Direct Services,021234,Catering - Locomotion,Supplies and Services,324117,Provisions E324,07-Feb-2019,000006194860668,WWW.ADELIEFOODS.CO.UK,5499,Catering costs - provisions,89.64,0.00,89.64
Regeneration and Local Services,Direct Services,021234,Catering - Locomotion,Supplies and Services,324117,Provisions E324,07-Feb-2019,000006194860672,WWW.ADELIEFOODS.CO.UK,5499,Catering costs - provisions,59.54,0.00,59.54
Regeneration and Local Services,Direct Services,021234,Catering - Locomotion,Supplies and Services,324117,Provisions E324,07-Feb-2019,000006194860676,WWW.ADELIEFOODS.CO.UK,5499,Catering costs - provisions,58.90,0.00,58.90
Regeneration and Local Services,Direct Services,021234,Catering - Locomotion,Supplies and Services,324117,Provisions E324,07-Feb-2019,000006194860678,WWW.ADELIEFOODS.CO.UK,5499,Catering costs - provisions,56.78,0.00,56.78
Regeneration and Local Services,Direct Services,021234,Catering - Locomotion,Supplies and Services,324117,Provisions E324,07-Feb-2019,000006194860682,WWW.ADELIEFOODS.CO.UK,5499,Catering costs - provisions,36.08,0.00,36.08
Regeneration and Local Services,Direct Services,021234,Catering - Locomotion,Supplies and Services,324117,Provisions E324,07-Feb-2019,000006194860684,WWW.ADELIEFOODS.CO.UK,5499,Catering costs - provisions,32.10,0.00,32.10
Regeneration and Local Services,Direct Services,021234,Catering - Locomotion,Supplies and Services,324117,Provisions E324,07-Feb-2019,000006194860688,WWW.ADELIEFOODS.CO.UK,5499,Catering costs - provisions,27.76,0.00,27.76
Regeneration and Local Services,Economic Development and Housing,031520,GRT Site Ash Green Way Bishop Auckland,Supplies and Services,384199,Miscellaneous Expenses,07-Feb-2019,000006194860704,WWW.VOUCHEREXPRESS.CO.,5947,Other hired and contracted services,70.00,0.00,70.00
Regeneration and Local Services,Direct Services,010525,Catering - Green Lane,Supplies and Services,324117,Provisions E324,07-Feb-2019,000006194860720,JR HOLLAND FOODSERVICE,5499,Catering costs - provisions,55.11,0.00,55.11
Regeneration and Local Services,Economic Development and Housing,030771,Durham Advance Flexible Fund,Supplies and Services,304259,Equipment and Materials,07-Feb-2019,000006194860734,MAX ASDA,7221,Equipment-purchase and rental,9.99,0.00,9.99
Regeneration and Local Services,Economic Development and Housing,030771,Durham Advance Flexible Fund,Transport,215995,Running Costs of Vehicles,07-Feb-2019,000006194860736,ASDA PETROL UPT 4587,5542,Vehicle running expenses,35.00,5.83,29.17
Children and Young Peoples Services,Head of Childrens Social Care,085551,Short Break Services-Park Hse Sher,Supplies and Services,324117,Provisions E324,07-Feb-2019,000006194860766,ALDI 15 774,5411,Catering costs - provisions,5.78,0.00,5.78
Children and Young Peoples Services,"Head of Early Help, Inclusion and Vulnerable Children",071443,Stanley One Point Hub,Supplies and Services,324117,Provisions E324,07-Feb-2019,000006194860778,ASDA GROCERIES ONLINE,5411,Catering costs - provisions,42.40,0.00,42.40
Regeneration and Local Services,Economic Development and Housing,030771,Durham Advance Flexible Fund,Supplies and Services,304259,Equipment and Materials,07-Feb-2019,000006194860824,GEN REGISTER OFFICE,9399,Equipment-purchase and rental,18.50,0.00,18.50
Regeneration and Local Services,Economic Development and Housing,030771,Durham Advance Flexible Fund,Transport,235057,Public Transport,07-Feb-2019,000006194860828,GO NORTH EAST LIMITED,4131,Staff travelling,20.10,0.00,20.10
Regeneration and Local Services,Direct Services,030691,"Catering - Durham Dales Centre			",Supplies and Services,324117,Provisions E324,07-Feb-2019,000006194860858,JR HOLLAND FOODSERVICE,5499,Catering costs - provisions,72.92,0.00,72.92
Adult and Health Services,Head of Adults,055643,Hawthorn House LD Respite Unit,Supplies and Services,324117,Provisions E324,07-Feb-2019,000006194860894,JR HOLLAND FOODSERVICE,5499,Catering costs - provisions,24.58,0.00,24.58
Adult and Health Services,Head of Adults,055643,Hawthorn House LD Respite Unit,Supplies and Services,324117,Provisions E324,07-Feb-2019,000006194860898,JR HOLLAND FOODSERVICE,5499,Catering costs - provisions,10.55,0.00,10.55
Regeneration and Local Services,Culture & Sport,054399,Local Delivery-Libraries,Supplies and Services,304999,Equipment and Materials,07-Feb-2019,000006194860908,Amazon Prime MI3YV30B4,5968,Misc equipment tools and materials,7.99,0.00,7.99
Regeneration and Local Services,Direct Services,010301,C&G - North Grounds Maintenance,Supplies and Services,304221,Equipment and Materials,07-Feb-2019,000006194860922,HARELAW SAWMILL,5211,Direct materials,489.25,81.54,407.71
Children and Young Peoples Services,"Head of Early Help, Inclusion and Vulnerable Children",088115,North Area - Teenage Parent Programme,Supplies and Services,324117,Provisions E324,07-Feb-2019,000006194860928,CAFE 22,5811,Catering costs - provisions,26.60,4.43,22.17
Resources,Digital and Customer Services,065335,School Services - Implementations,Supplies and Services,304639,Equipment and Materials,07-Feb-2019,000006194860944,AMZN Mktp UK MI2PQ6124,5942,Technicians-supplies,14.48,0.00,14.48
Children and Young Peoples Services,"Head of Early Help, Inclusion and Vulnerable Children",085954,Walworth,Supplies and Services,384999,Miscellaneous Expenses,07-Feb-2019,000006194860958,Amazon.co.uk MI9N671O4,5969,Other expenses,21.47,3.58,17.89
Children and Young Peoples Services,"Head of Early Help, Inclusion and Vulnerable Children",085954,Walworth,Supplies and Services,304221,Equipment and Materials,07-Feb-2019,000006194860960,WALLPAPERDIRECT.CO,5211,Direct materials,68.87,11.48,57.39
Regeneration and Local Services,Direct Services,021324,Catering - Meadowfield,Supplies and Services,324117,Provisions E324,07-Feb-2019,000006194861002,JR HOLLAND FOODSERVICE,5499,Catering costs - provisions,47.90,0.00,47.90
Regeneration and Local Services,Direct Services,021324,Catering - Meadowfield,Supplies and Services,324117,Provisions E324,07-Feb-2019,000006194861006,JR HOLLAND FOODSERVICE,5499,Catering costs - provisions,10.35,0.00,10.35
Regeneration and Local Services,Direct Services,010301,C&G - North Grounds Maintenance,Supplies and Services,304403,Equipment and Materials,07-Feb-2019,000006194861024,TIMPSON LTD,7251,Other consumables,24.00,0.00,24.00
Regeneration and Local Services,Direct Services,010301,C&G - North Grounds Maintenance,Supplies and Services,304221,Equipment and Materials,07-Feb-2019,000006194861026,AZTEC CHEMICALS LTD,5169,Direct materials,441.00,73.50,367.50
Regeneration and Local Services,Direct Services,010301,C&G - North Grounds Maintenance,Supplies and Services,304221,Equipment and Materials,07-Feb-2019,000006194861032,AZTEC CHEMICALS LTD,5169,Direct materials,333.00,55.50,277.50
Children and Young Peoples Services,Head of Childrens Social Care,085333,Coxhoe Satelite Home,Supplies and Services,324117,Provisions E324,07-Feb-2019,000006194861046,TESCO STORES 2916,5411,Catering costs - provisions,58.63,0.00,58.63
Resources,Corporate Finance & Commercial Services,069800,Corporate Procurement,Employees,040149,Recruitment Instruction and Training,07-Feb-2019,000006194861062,WWW.CIPS.ORG,8699,Training-all costs,319.20,0.00,319.20
Resources,Corporate Finance & Commercial Services,069800,Corporate Procurement,Employees,040149,Recruitment Instruction and Training,07-Feb-2019,000006194861066,WWW.CIPS.ORG,8699,Training-all costs,130.00,0.00,130.00
Resources,Corporate Finance & Commercial Services,069800,Corporate Procurement,Employees,040149,Recruitment Instruction and Training,07-Feb-2019,000006194861070,WWW.CIPS.ORG,8699,Training-all costs,130.00,0.00,130.00
Resources,Corporate Finance & Commercial Services,069800,Corporate Procurement,Employees,040149,Recruitment Instruction and Training,07-Feb-2019,000006194861074,WWW.CIPS.ORG,8699,Training-all costs,319.20,0.00,319.20
Regeneration and Local Services,Culture & Sport,054820,Gala Theatre - Overheads,Employees,040149,Recruitment Instruction and Training,07-Feb-2019,000006194861078,WWW.FILMBANK.CO.UK,7829,Training-all costs,99.60,0.00,99.60
Transformation and Partnerships,Communications Management,060270,Communications and Marketing,Supplies and Services,336005,Advertising E336,07-Feb-2019,000006194861160,FACEBK JKKEJH64B2,7311,Advertising other than for staff,500.00,0.00,500.00
Regeneration and Local Services,Economic Development and Housing,030694,Plexus 2,Supplies and Services,324117,Provisions E324,07-Feb-2019,000006194861234,SAINSBURYS (2303),5411,Catering costs - provisions,19.80,0.00,19.80
Regeneration and Local Services,Economic Development and Housing,030553,Europe Direct Scheme,Supplies and Services,384926,Miscellaneous Expenses,07-Feb-2019,000006194861256,FLAM`S FRERES,5812,International visits,343.66,0.00,343.66
Regeneration and Local Services,Direct Services,021242,Catering - County Hall,Supplies and Services,324117,Provisions E324,07-Feb-2019,000006201481018,BATLEYS PERTH,5300,Catering costs - provisions,65.14,0.00,65.14
Regeneration and Local Services,Culture & Sport,011060,Hardwick Park Catering,Supplies and Services,324117,Provisions E324,07-Feb-2019,000006201481354,BATLEYS PERTH,5300,Catering costs - provisions,140.70,23.45,117.25
Regeneration and Local Services,Culture & Sport,011060,Hardwick Park Catering,Supplies and Services,324117,Provisions E324,07-Feb-2019,000006201481354 - 1,BATLEYS PERTH,5300,Catering costs - provisions,128.08,,128.08
Regeneration and Local Services,Culture & Sport,011060,Hardwick Park Catering,Supplies and Services,324117,Provisions E324,07-Feb-2019,000006201481360,BATLEYS PERTH,5300,Catering costs - provisions,14.99,2.50,12.49
Regeneration and Local Services,Culture & Sport,011060,Hardwick Park Catering,Supplies and Services,324117,Provisions E324,07-Feb-2019,000006201481364,BATLEYS PERTH,5300,Catering costs - provisions,-5.99,0.00,-5.99
Regeneration and Local Services,Economic Development and Housing,030699,Business Growth and Innovation General,Supplies and Services,304403,Equipment and Materials,08-Feb-2019,000006194860272,MEETEDGAR MONTHLY,5734,Other consumables,1.05,0.00,1.05
Resources,Digital and Customer Services,070204,School Services - Systems,Supplies and Services,372009,Subscriptions E372,08-Feb-2019,000006194860380,WEB NETWORKSOLUTIONS,5968,Subscriptions 372009,0.41,0.00,0.41
Resources,Digital and Customer Services,070204,School Services - Systems,Supplies and Services,372009,Subscriptions E372,08-Feb-2019,000006194860382,WEB NETWORKSOLUTIONS,5968,Subscriptions 372009,0.26,0.00,0.26
Regeneration and Local Services,Culture & Sport,011207,Physical Activity,Supplies and Services,342033,Computers and Communications,08-Feb-2019,000006194860428,CAMPAIGNMONITOR,7399,Computer hardware,10.69,0.00,10.69
Regeneration and Local Services,Economic Development and Housing,030553,Europe Direct Scheme,Supplies and Services,384926,Miscellaneous Expenses,08-Feb-2019,000006194861258,CTS DA ING BSC,4111,International visits,0.34,0.00,0.34
Regeneration and Local Services,Economic Development and Housing,030553,Europe Direct Scheme,Supplies and Services,384926,Miscellaneous Expenses,08-Feb-2019,000006194861262,CTS DA ING BSC,4111,International visits,1.71,0.00,1.71
Regeneration and Local Services,Economic Development and Housing,030553,Europe Direct Scheme,Supplies and Services,384926,Miscellaneous Expenses,08-Feb-2019,000006194861264,FLAM`S FRERES,5812,International visits,9.45,0.00,9.45
Children and Young Peoples Services,Head of Education and Skills,071801,Selby Cottage Childcare Centre,Supplies and Services,304999,Equipment and Materials,08-Feb-2019,000006201480870,Amazon Prime MI1B66PA4,5968,Misc equipment tools and materials,7.99,0.00,7.99
Children and Young Peoples Services,Head of Education and Skills,071801,Selby Cottage Childcare Centre,Supplies and Services,324117,Provisions E324,08-Feb-2019,000006201480872,WM MORRISONS STORE,5411,Catering costs - provisions,12.79,0.00,12.79
Children and Young Peoples Services,Head of Education and Skills,071801,Selby Cottage Childcare Centre,Charges,720130,Fees and Charges,08-Feb-2019,000006201480890,WWW.MONEYCLAIM.GOV,9399,Fees-legal,70.00,0.00,70.00
Regeneration and Local Services,Economic Development and Housing,030773,CLLD North,Supplies and Services,338064,Services,08-Feb-2019,000006201480912,WWW.DURHAM.GOV.UK,9399,Disclosure & Barring (DBS) Fees,58.00,0.00,58.00
Regeneration and Local Services,Culture & Sport,054401,Strategic Management Libraries,Supplies and Services,304259,Equipment and Materials,08-Feb-2019,000006201480918,PSA Parts,5732,Equipment-purchase and rental,164.88,27.48,137.40
Children and Young Peoples Services,Head of Childrens Social Care,085332,Middlestone Moor CU,Supplies and Services,324117,Provisions E324,08-Feb-2019,000006201480956,ALDI 74 774,5411,Catering costs - provisions,10.17,0.00,10.17
Resources,Finance & Transactional Services,065180,Collections,Supplies and Services,304259,Equipment and Materials,08-Feb-2019,000006201480980,WWW.MONEYCLAIM.GOV,9399,Equipment-purchase and rental,25.00,0.00,25.00
Regeneration and Local Services,Direct Services,021242,Catering - County Hall,Supplies and Services,324117,Provisions E324,08-Feb-2019,000006201481012,JR HOLLAND FOODSERVICE,5499,Catering costs - provisions,75.45,0.00,75.45
Regeneration and Local Services,Direct Services,021242,Catering - County Hall,Supplies and Services,324117,Provisions E324,08-Feb-2019,000006201481016,JR HOLLAND FOODSERVICE,5499,Catering costs - provisions,13.84,0.00,13.84
Regeneration and Local Services,Economic Development and Housing,030773,CLLD North,Supplies and Services,304259,Equipment and Materials,08-Feb-2019,000006201481080,WWW.DURHAM.GOV.UK,9399,Equipment-purchase and rental,10.00,0.00,10.00
Children and Young Peoples Services,Head of Childrens Social Care,085342,9 Cedar Drive Aycliffe,Supplies and Services,348037,Subsistence E348,08-Feb-2019,000006201481128,THE CHINESE BUFFET,5814,Subsistence,46.23,0.00,46.23
Regeneration and Local Services,Spatial Policy Planning Assets & Environment,031221,North Pennines - Bowlees,Supplies and Services,304221,Equipment and Materials,08-Feb-2019,000006201481166,GRAHAMS LOGS & TIMBER,5211,Direct materials,73.00,0.00,73.00
Children and Young Peoples Services,Head of Childrens Social Care,085334,West Rainton Satelite Home,Supplies and Services,304259,Equipment and Materials,08-Feb-2019,000006201481176,CURRYS,5732,Equipment-purchase and rental,15.00,0.00,15.00
Children and Young Peoples Services,Head of Childrens Social Care,085334,West Rainton Satelite Home,Supplies and Services,304221,Equipment and Materials,08-Feb-2019,000006201481180,B & Q 1343,5211,Direct materials,70.75,0.00,70.75
Children and Young Peoples Services,Head of Education and Skills,071903,EYDCP-Sustainability EDS,Supplies and Services,312011,Newspapers books and periodicals E312,08-Feb-2019,000006201481242,AMZN Mktp UK MI36P4PQ4,5942,Books-school library,11.05,0.00,11.05
Children and Young Peoples Services,Head of Education and Skills,071903,EYDCP-Sustainability EDS,Supplies and Services,308011,Furniture,08-Feb-2019,000006201481246,IKEA LIMITED,5712,Furniture repair and replacement,60.00,0.00,60.00
Adult and Health Services,Head of Adults,055202,Support and Recovery,Supplies and Services,328041,Clothing uniforms and laundry E328,08-Feb-2019,000006201481262,SAFETYSUPPL,5311,Clothing uniforms and laundry,10.72,1.79,8.93
Regeneration and Local Services,Economic Development and Housing,030771,Durham Advance Flexible Fund,Supplies and Services,328041,Clothing uniforms and laundry E328,08-Feb-2019,000006201481266,ASDA GEORGE COM LEEDS,5411,Clothing uniforms and laundry,51.00,0.00,51.00
Adult and Health Services,Head of Adults,055302,Durham Pathways,Supplies and Services,324117,Provisions E324,08-Feb-2019,000006201481286,SAINSBURYS SACAT 0776,5411,Catering costs - provisions,6.00,0.00,6.00
Adult and Health Services,Head of Adults,055302,Durham Pathways,Third Party Payments 4THIRD,474101,Purchase of Care,08-Feb-2019,000006201481290,PIONEERING CARE PARTNE,8050,Nursing care payments,48.00,0.00,48.00
Adult and Health Services,Head of Adults,055302,Durham Pathways,Supplies and Services,304259,Equipment and Materials,08-Feb-2019,000006201481292,WILKO DURHAM 426,5722,Equipment-purchase and rental,23.75,0.00,23.75
Children and Young Peoples Services,"Head of Early Help, Inclusion and Vulnerable Children",085956,Lumley,Supplies and Services,324117,Provisions E324,08-Feb-2019,000006201481298,TESCO STORES 6329,5411,Catering costs - provisions,72.94,0.00,72.94
Children and Young Peoples Services,"Head of Early Help, Inclusion and Vulnerable Children",085954,Walworth,Supplies and Services,328041,Clothing uniforms and laundry E328,08-Feb-2019,000006201481306,JD SPORTS INTERNET,5941,Clothing uniforms and laundry,-79.99,0.00,-79.99
Regeneration and Local Services,Culture & Sport,054813,Gala Theatre - Technical,Supplies and Services,312011,Newspapers books and periodicals E312,08-Feb-2019,000006201481308,AMZN Mktp UK MI8IO2PX4,5942,Books-school library,67.97,0.00,67.97
Regeneration and Local Services,Culture & Sport,054813,Gala Theatre - Technical,Supplies and Services,312011,Newspapers books and periodicals E312,08-Feb-2019,000006201481312,AMZN Mktp UK MI4DW6P04,5942,Books-school library,54.23,0.00,54.23
Regeneration and Local Services,Economic Development and Housing,030764,Work & Health Programme (Reed),Supplies and Services,304403,Equipment and Materials,08-Feb-2019,000006201481378,PORTABLE APPLIANCE,5065,Other consumables,270.00,45.00,225.00
Regeneration and Local Services,Economic Development and Housing,030755,Durham Employment & Skills - Other Training,Employees,040149,Recruitment Instruction and Training,08-Feb-2019,000006201481380,WWW.CSKILLS.ORG,8249,Training-all costs,36.00,6.00,30.00
Regeneration and Local Services,Economic Development and Housing,030755,Durham Employment & Skills - Other Training,Employees,040149,Recruitment Instruction and Training,08-Feb-2019,000006201481382,WWW.CSKILLS.ORG,8249,Training-all costs,36.00,6.00,30.00
Regeneration and Local Services,Direct Services,021234,Catering - Locomotion,Supplies and Services,324117,Provisions E324,08-Feb-2019,000006201481390,JR HOLLAND FOODSERVICE,5499,Catering costs - provisions,48.98,0.00,48.98
Regeneration and Local Services,Economic Development and Housing,030554,International Relations,Transport,235057,Public Transport,08-Feb-2019,000006201481426,PRINCE BISHOP SHOPPING,7523,Staff travelling,6.20,0.00,6.20
Regeneration and Local Services,Economic Development and Housing,030554,International Relations,Supplies and Services,324117,Provisions E324,08-Feb-2019,000006201481428,TESCO STORES 2371,5411,Catering costs - provisions,27.50,0.00,27.50
Regeneration and Local Services,Economic Development and Housing,030554,International Relations,Supplies and Services,312011,Newspapers books and periodicals E312,08-Feb-2019,000006201481432,WATERSTONES,5942,Books-school library,32.49,0.00,32.49
Regeneration and Local Services,Economic Development and Housing,030554,International Relations,Supplies and Services,304221,Equipment and Materials,08-Feb-2019,000006201481436,B & Q 1343,5211,Direct materials,23.84,0.00,23.84
Children and Young Peoples Services,"Head of Early Help, Inclusion and Vulnerable Children",071443,Stanley One Point Hub,Supplies and Services,312011,Newspapers books and periodicals E312,08-Feb-2019,000006201481454,AMZN Mktp UK MI93W31B4,5942,Books-school library,7.99,0.00,7.99
Children and Young Peoples Services,Head of Childrens Social Care,085331,New Lea Childrens Home,Supplies and Services,324117,Provisions E324,08-Feb-2019,000006201481458,TESCO STORES 4358,5411,Catering costs - provisions,92.72,0.00,92.72
Regeneration and Local Services,Economic Development and Housing,031500,Housing Solutions - Core Team,Supplies and Services,384999,Miscellaneous Expenses,08-Feb-2019,000006201481464,SPORTSDIRECT.COM,5941,Other expenses,29.94,4.99,24.95
Regeneration and Local Services,Economic Development and Housing,031500,Housing Solutions - Core Team,Supplies and Services,384999,Miscellaneous Expenses,08-Feb-2019,000006201481464 - 1,SPORTSDIRECT.COM,5941,Other expenses,229.45,,229.45
Regeneration and Local Services,Economic Development and Housing,030771,Durham Advance Flexible Fund,Supplies and Services,304259,Equipment and Materials,08-Feb-2019,000006201481480,GEN REGISTER OFFICE,9399,Equipment-purchase and rental,9.25,0.00,9.25
Children and Young Peoples Services,Head of Childrens Social Care,085333,Coxhoe Satelite Home,Supplies and Services,304259,Equipment and Materials,08-Feb-2019,000006201481486,NORTH TYNESIDE HOSP,9399,Equipment-purchase and rental,3.40,0.57,2.83
Children and Young Peoples Services,Head of Childrens Social Care,085333,Coxhoe Satelite Home,Supplies and Services,304259,Equipment and Materials,08-Feb-2019,000006201481490,NORTH TYNESIDE HOSP,9399,Equipment-purchase and rental,2.00,0.33,1.67
Children and Young Peoples Services,Head of Childrens Social Care,085333,Coxhoe Satelite Home,Supplies and Services,348037,Subsistence E348,08-Feb-2019,000006201481494,BELLS FISH AND CHI,5812,Subsistence,17.05,0.00,17.05
Regeneration and Local Services,Economic Development and Housing,031500,Housing Solutions - Core Team,Supplies and Services,352001,Conference Expenses,08-Feb-2019,000006201481506,WWW.HOTEL52.CO.UK,7011,Conferencesseminars fees etc,135.00,22.50,112.50
Children and Young Peoples Services,Head of Childrens Social Care,085352,Tow Law CU,Supplies and Services,324117,Provisions E324,08-Feb-2019,000006201481530,ASDA SUPERSTORE 4987,5411,Catering costs - provisions,83.35,0.00,83.35
Regeneration and Local Services,Economic Development and Housing,031576,B& B - Temp Accom,Supplies and Services,364320,Grants to Voluntary Organisations,08-Feb-2019,000006201481550,PREMIER INN,3811,Accommodation assistance,164.00,27.33,136.67
Regeneration and Local Services,Spatial Policy Planning Assets & Environment,031222,North Pennines Allen Valleys Landscape Partnership,Supplies and Services,324117,Provisions E324,08-Feb-2019,000006201481554,HALLBANKGATE HUB LIMIT,5411,Catering costs - provisions,23.50,0.00,23.50
Regeneration and Local Services,Spatial Policy Planning Assets & Environment,031202,North Pennines - Peatscapes,Supplies and Services,384199,Miscellaneous Expenses,08-Feb-2019,000006201481558,LAND REGISTRY,9399,Other hired and contracted services,3.00,0.00,3.00
Children and Young Peoples Services,"Head of Early Help, Inclusion and Vulnerable Children",088100,Durham West & CLS 0-19 Targeted Family Support,Supplies and Services,304403,Equipment and Materials,08-Feb-2019,000006201481578,ARGOS RETAIL GROUP,5310,Other consumables,39.98,0.00,39.98
Children and Young Peoples Services,Head of Childrens Social Care,085342,9 Cedar Drive Aycliffe,Supplies and Services,348037,Subsistence E348,08-Feb-2019,000006201481582,Just Eat,5814,Subsistence,28.70,0.00,28.70
Children and Young Peoples Services,"Head of Early Help, Inclusion and Vulnerable Children",085956,Lumley,Supplies and Services,338057,Services,08-Feb-2019,000006201481596,MEDISAVE,5047,Medical fees 338057,"1,039.18",0.00,1039.18
Children and Young Peoples Services,"Head of Early Help, Inclusion and Vulnerable Children",085952,Secure Education,Supplies and Services,324117,Provisions E324,08-Feb-2019,000006201481600,MARKS&SPENCER PLC,5411,Catering costs - provisions,27.50,0.00,27.50
Regeneration and Local Services,Culture & Sport,054235,Bishop Auckland Town Hall Cafe,Supplies and Services,324117,Provisions E324,08-Feb-2019,000006201481628,JR HOLLAND FOODSERVICE,5499,Catering costs - provisions,16.65,0.00,16.65
Children and Young Peoples Services,Head of Childrens Social Care,085333,Coxhoe Satelite Home,Supplies and Services,324117,Provisions E324,08-Feb-2019,000006201481650,TESCO STORES 2916,5411,Catering costs - provisions,33.45,0.00,33.45
Regeneration and Local Services,Economic Development and Housing,030552,ATLAS Regional Network,Transport,235057,Public Transport,08-Feb-2019,000006201481688,PRINCE BISHOP SHOPPING,7523,Staff travelling,3.30,0.55,2.75
Regeneration and Local Services,Economic Development and Housing,030552,ATLAS Regional Network,Transport,235057,Public Transport,08-Feb-2019,000006201481692,PRINCE BISHOP SHOPPING,7523,Staff travelling,2.10,0.35,1.75
Regeneration and Local Services,Economic Development and Housing,030552,ATLAS Regional Network,Supplies and Services,324117,Provisions E324,08-Feb-2019,000006201481694,MARKS&SPENCER PLC,5411,Catering costs - provisions,15.15,0.00,15.15
Regeneration and Local Services,Economic Development and Housing,030771,Durham Advance Flexible Fund,Transport,235057,Public Transport,08-Feb-2019,000006201481832,GO NORTH EAST LIMITED,4131,Staff travelling,4.00,0.00,4.00
Regeneration and Local Services,Economic Development and Housing,030771,Durham Advance Flexible Fund,Transport,235057,Public Transport,08-Feb-2019,000006201481836,GO NORTH EAST LIMITED,4131,Staff travelling,50.00,0.00,50.00
Regeneration and Local Services,Economic Development and Housing,030771,Durham Advance Flexible Fund,Transport,235057,Public Transport,08-Feb-2019,000006201481838,GO NORTH EAST LIMITED,4131,Staff travelling,6.70,0.00,6.70
Regeneration and Local Services,Direct Services,021242,Catering - County Hall,Supplies and Services,324117,Provisions E324,08-Feb-2019,000006209668508,BATLEYS PERTH,5300,Catering costs - provisions,-16.80,-2.80,-14.00
Regeneration and Local Services,Direct Services,010525,Catering - Green Lane,Supplies and Services,324117,Provisions E324,08-Feb-2019,000006209669012,BATLEYS PERTH,5300,Catering costs - provisions,118.20,19.70,98.50
Regeneration and Local Services,Direct Services,010525,Catering - Green Lane,Supplies and Services,324117,Provisions E324,08-Feb-2019,000006209669012 - 1,BATLEYS PERTH,5300,Catering costs - provisions,91.80,,91.80
Adult and Health Services,Head of Adults,055643,Hawthorn House LD Respite Unit,Supplies and Services,324117,Provisions E324,08-Feb-2019,000006209669364,BATLEYS PERTH,5300,Catering costs - provisions,22.68,3.78,18.90
Adult and Health Services,Head of Adults,055643,Hawthorn House LD Respite Unit,Supplies and Services,324117,Provisions E324,08-Feb-2019,000006209669364 - 1,BATLEYS PERTH,5300,Catering costs - provisions,61.98,,61.98
Children and Young Peoples Services,Head of Childrens Social Care,085342,9 Cedar Drive Aycliffe,Supplies and Services,348037,Subsistence E348,09-Feb-2019,000006201480930,COSTA COFFEE,5814,Subsistence,7.20,0.00,7.20
Children and Young Peoples Services,Head of Childrens Social Care,085342,9 Cedar Drive Aycliffe,Supplies and Services,324117,Provisions E324,09-Feb-2019,000006201480934,ASDA STORES 4320,5411,Catering costs - provisions,1.99,0.00,1.99
Children and Young Peoples Services,Head of Childrens Social Care,085342,9 Cedar Drive Aycliffe,Supplies and Services,304999,Equipment and Materials,09-Feb-2019,000006201480936,SUPERDRUG STORES PLC,5912,Misc equipment tools and materials,4.98,0.00,4.98
Children and Young Peoples Services,Head of Childrens Social Care,085342,9 Cedar Drive Aycliffe,Supplies and Services,328041,Clothing uniforms and laundry E328,09-Feb-2019,000006201480940,ARGOS LTD,5310,Clothing uniforms and laundry,1.50,0.00,1.50
Children and Young Peoples Services,Head of Childrens Social Care,085342,9 Cedar Drive Aycliffe,Supplies and Services,324117,Provisions E324,09-Feb-2019,000006201480942,WM MORRISONS STORE,5411,Catering costs - provisions,11.86,0.00,11.86
Children and Young Peoples Services,Head of Childrens Social Care,085342,9 Cedar Drive Aycliffe,Supplies and Services,324117,Provisions E324,09-Feb-2019,000006201480946,WM MORRISONS STORE,5411,Catering costs - provisions,3.85,0.00,3.85
Children and Young Peoples Services,Head of Childrens Social Care,085342,9 Cedar Drive Aycliffe,Supplies and Services,304259,Equipment and Materials,09-Feb-2019,000006201480948,SPORTSDIRECT 246,5941,Equipment-purchase and rental,60.04,0.00,60.04
Regeneration and Local Services,Economic Development and Housing,030699,Business Growth and Innovation General,Supplies and Services,304999,Equipment and Materials,09-Feb-2019,000006201480960,MAILCHIMP MONTHLY,5968,Misc equipment tools and materials,61.91,0.00,61.91
Regeneration and Local Services,Economic Development and Housing,030699,Business Growth and Innovation General,Supplies and Services,342033,Computers and Communications,09-Feb-2019,000006201480962,SLICKPLAN.COM,7372,Computer hardware,7.73,0.00,7.73
Children and Young Peoples Services,Childrens Services Operational Support,052986,CYPS - Locality and Operational Support,Supplies and Services,304403,Equipment and Materials,09-Feb-2019,000006201480994,CARD FACTORY,5947,Other consumables,7.22,0.00,7.22
Regeneration and Local Services,Spatial Policy Planning Assets & Environment,031221,North Pennines - Bowlees,Supplies and Services,304403,Equipment and Materials,09-Feb-2019,000006201481168,TIMPSON LTD,7251,Other consumables,14.50,0.00,14.50
Regeneration and Local Services,Spatial Policy Planning Assets & Environment,031221,North Pennines - Bowlees,Supplies and Services,324117,Provisions E324,09-Feb-2019,000006201481172,TESCO STORES 4358,5411,Catering costs - provisions,6.74,0.00,6.74
Children and Young Peoples Services,Head of Childrens Social Care,085334,West Rainton Satelite Home,Supplies and Services,328041,Clothing uniforms and laundry E328,09-Feb-2019,000006201481186,ARGOS LTD,5310,Clothing uniforms and laundry,15.00,0.00,15.00
Children and Young Peoples Services,Head of Childrens Social Care,085334,West Rainton Satelite Home,Supplies and Services,328041,Clothing uniforms and laundry E328,09-Feb-2019,000006201481188,B & M RETAIL,5310,Clothing uniforms and laundry,26.98,0.00,26.98
Children and Young Peoples Services,Head of Childrens Social Care,085334,West Rainton Satelite Home,Supplies and Services,304259,Equipment and Materials,09-Feb-2019,000006201481192,DECATHLON,5941,Equipment-purchase and rental,49.97,0.00,49.97
Children and Young Peoples Services,"Head of Early Help, Inclusion and Vulnerable Children",085954,Walworth,Supplies and Services,324117,Provisions E324,09-Feb-2019,000006201481302,TESCO STORES 6329,5411,Catering costs - provisions,86.41,0.00,86.41
Regeneration and Local Services,Culture & Sport,054813,Gala Theatre - Technical,Supplies and Services,312011,Newspapers books and periodicals E312,09-Feb-2019,000006201481314,AMZN Mktp UK MI0AQ4GH4,5942,Books-school library,52.99,0.00,52.99
Regeneration and Local Services,Culture & Sport,054813,Gala Theatre - Technical,Supplies and Services,312011,Newspapers books and periodicals E312,09-Feb-2019,000006201481316,AMZN MKTP UK MI27F0P24,5942,Books-school library,10.99,0.00,10.99
Regeneration and Local Services,Culture & Sport,054813,Gala Theatre - Technical,Supplies and Services,312011,Newspapers books and periodicals E312,09-Feb-2019,000006201481320,AMZN MKTP UK MI27K6PA4,5942,Books-school library,14.99,0.00,14.99
Regeneration and Local Services,Culture & Sport,054813,Gala Theatre - Technical,Supplies and Services,304221,Equipment and Materials,09-Feb-2019,000006201481336,B & Q 1221,5211,Direct materials,163.61,0.00,163.61
Regeneration and Local Services,Economic Development and Housing,030554,International Relations,Transport,235057,Public Transport,09-Feb-2019,000006201481440,PRINCE BISHOP SHOPPING,7523,Staff travelling,11.50,0.00,11.50
Regeneration and Local Services,Economic Development and Housing,030554,International Relations,Supplies and Services,312011,Newspapers books and periodicals E312,09-Feb-2019,000006201481442,Amazon.co.uk MI1I92GN4,5969,Books-school library,32.31,0.00,32.31
Regeneration and Local Services,Economic Development and Housing,030554,International Relations,Supplies and Services,324117,Provisions E324,09-Feb-2019,000006201481446,TESCO STORES 6029,5411,Catering costs - provisions,24.10,0.00,24.10
Regeneration and Local Services,Economic Development and Housing,030554,International Relations,Supplies and Services,304403,Equipment and Materials,09-Feb-2019,000006201481448,CARD FACTORY,5947,Other consumables,5.94,0.00,5.94
Children and Young Peoples Services,Head of Childrens Social Care,085333,Coxhoe Satelite Home,Supplies and Services,324117,Provisions E324,09-Feb-2019,000006201481498,TESCO STORES 6653,5411,Catering costs - provisions,7.17,0.00,7.17
Regeneration and Local Services,Culture & Sport,026591,Hardwick Park,Supplies and Services,332047,Printing Stationery and Gen Off Exps,09-Feb-2019,000006201481632,SCREWFIX DIRECT LT,5211,Stationery,9.99,1.67,8.32
Regeneration and Local Services,Economic Development and Housing,030552,ATLAS Regional Network,Transport,235057,Public Transport,09-Feb-2019,000006201481698,PRINCE BISHOP SHOPPING,7523,Staff travelling,11.50,1.92,9.58
Children and Young Peoples Services,Head of Childrens Social Care,085352,Tow Law CU,Supplies and Services,324117,Provisions E324,09-Feb-2019,000006201481752,CO-OP GROUP 010989,5411,Catering costs - provisions,9.35,0.00,9.35
Regeneration and Local Services,Economic Development and Housing,030552,ATLAS Regional Network,Transport,235057,Public Transport,09-Feb-2019,000006201481866,PRINCE BISHOP SHOPPING,7523,Staff travelling,11.50,0.00,11.50
Children and Young Peoples Services,Head of Childrens Social Care,085342,9 Cedar Drive Aycliffe,Supplies and Services,304259,Equipment and Materials,10-Feb-2019,000006201480950,WILKO RETAIL LIMIT,5722,Equipment-purchase and rental,11.60,0.00,11.60
Children and Young Peoples Services,Head of Childrens Social Care,085352,Tow Law CU,Supplies and Services,348037,Subsistence E348,10-Feb-2019,000006201481104,COSTA COFFEE,5814,Subsistence,15.15,0.00,15.15
Children and Young Peoples Services,Head of Childrens Social Care,085352,Tow Law CU,Supplies and Services,328041,Clothing uniforms and laundry E328,10-Feb-2019,000006201481106,Nike Store 00553,5655,Clothing uniforms and laundry,71.40,11.90,59.50
Children and Young Peoples Services,Head of Childrens Social Care,085352,Tow Law CU,Supplies and Services,328041,Clothing uniforms and laundry E328,10-Feb-2019,000006201481108,Nike Store 00553,5655,Clothing uniforms and laundry,37.00,6.17,30.83
Children and Young Peoples Services,Head of Childrens Social Care,085352,Tow Law CU,Supplies and Services,328041,Clothing uniforms and laundry E328,10-Feb-2019,000006201481112,POUNDLAND LTD 1711,5310,Clothing uniforms and laundry,9.00,1.50,7.50
Children and Young Peoples Services,Head of Childrens Social Care,085334,West Rainton Satelite Home,Supplies and Services,312011,Newspapers books and periodicals E312,10-Feb-2019,000006201481182,AMZN Mktp UK MI7HF6G44,5942,Books-school library,36.95,0.00,36.95
Children and Young Peoples Services,Head of Education and Skills,071903,EYDCP-Sustainability EDS,Supplies and Services,312011,Newspapers books and periodicals E312,10-Feb-2019,000006201481250,AMZN Mktp UK MI24H2GB4,5942,Books-school library,10.79,0.00,10.79
Regeneration and Local Services,Culture & Sport,054813,Gala Theatre - Technical,Supplies and Services,312011,Newspapers books and periodicals E312,10-Feb-2019,000006201481322,AMZN Mktp UK MI0SY2GH4,5942,Books-school library,50.57,0.00,50.57
Regeneration and Local Services,Culture & Sport,054813,Gala Theatre - Technical,Supplies and Services,312011,Newspapers books and periodicals E312,10-Feb-2019,000006201481326,AMZN Mktp UK MI64L0GJ4,5942,Books-school library,91.31,0.00,91.31
Regeneration and Local Services,Culture & Sport,054813,Gala Theatre - Technical,Supplies and Services,312011,Newspapers books and periodicals E312,10-Feb-2019,000006201481328,AMZN Mktp UK MI7FL0X14,5942,Books-school library,34.98,0.00,34.98
Regeneration and Local Services,Culture & Sport,054813,Gala Theatre - Technical,Supplies and Services,312011,Newspapers books and periodicals E312,10-Feb-2019,000006201481332,Amazon.co.uk MI3M26XP4,5969,Books-school library,19.24,0.00,19.24
Regeneration and Local Services,Culture & Sport,054813,Gala Theatre - Technical,Supplies and Services,324117,Provisions E324,10-Feb-2019,000006201481340,TESCO STORES 2971,5411,Catering costs - provisions,60.38,0.00,60.38
Regeneration and Local Services,Spatial Policy Planning Assets & Environment,031200,North Pennines Core,Supplies and Services,312011,Newspapers books and periodicals E312,10-Feb-2019,000006201481350,WATERSTONES,5942,Books-school library,120.00,0.00,120.00
Regeneration and Local Services,Culture & Sport,054815,Gala Theatre Stage School,Supplies and Services,304259,Equipment and Materials,10-Feb-2019,000006201481370,PIANOTRAX.COM,5733,Equipment-purchase and rental,4.63,0.00,4.63
Resources,Resources Management,069000,Resources Management,Supplies and Services,324117,Provisions E324,10-Feb-2019,000006201481500,CO-OP GROUP 310016,5411,Catering costs - provisions,4.40,0.00,4.40
Children and Young Peoples Services,"Head of Early Help, Inclusion and Vulnerable Children",085956,Lumley,Supplies and Services,384999,Miscellaneous Expenses,10-Feb-2019,000006201481602,AMZN Mktp UK MI6DC8XN4,5942,Other expenses,34.95,0.00,34.95
Children and Young Peoples Services,"Head of Early Help, Inclusion and Vulnerable Children",085955,Auckland,Supplies and Services,384999,Miscellaneous Expenses,10-Feb-2019,000006201481604,AMZN Mktp UK MI6VQ9X44,5942,Other expenses,4.98,0.00,4.98
Children and Young Peoples Services,Head of Education and Skills,071903,EYDCP-Sustainability EDS,Supplies and Services,312011,Newspapers books and periodicals E312,10-Feb-2019,000006201481624,Amazon.co.uk MI24Z1GS4,5969,Books-school library,344.88,0.00,344.88
Children and Young Peoples Services,"Head of Early Help, Inclusion and Vulnerable Children",085801,CDYOS - Support,Supplies and Services,312011,Newspapers books and periodicals E312,10-Feb-2019,000006201481640,AMZN Mktp UK MI1062GH4,5942,Books-school library,37.48,0.00,37.48
Regeneration and Local Services,Economic Development and Housing,030699,Business Growth and Innovation General,Supplies and Services,304999,Equipment and Materials,11-Feb-2019,000006201480964,MAILCHIMP MONTHLY,5968,Misc equipment tools and materials,1.70,0.00,1.70
Regeneration and Local Services,Economic Development and Housing,030699,Business Growth and Innovation General,Supplies and Services,342033,Computers and Communications,11-Feb-2019,000006201480966,SLICKPLAN.COM,7372,Computer hardware,0.21,0.00,0.21
Regeneration and Local Services,Culture & Sport,054815,Gala Theatre Stage School,Supplies and Services,304259,Equipment and Materials,11-Feb-2019,000006201481372,PIANOTRAX.COM,5733,Equipment-purchase and rental,0.13,0.00,0.13
Regeneration and Local Services,Direct Services,010301,C&G - North Grounds Maintenance,Supplies and Services,304221,Equipment and Materials,11-Feb-2019,000006209668290,HARELAW SAWMILL,5211,Direct materials,154.15,25.69,128.46
Children and Young Peoples Services,Head of Childrens Social Care,085621,Families First Aycliffe,Supplies and Services,304403,Equipment and Materials,11-Feb-2019,000006209668352,ARGOS LTD,5310,Other consumables,39.99,0.00,39.99
Regeneration and Local Services,Direct Services,021242,Catering - County Hall,Supplies and Services,324117,Provisions E324,11-Feb-2019,000006209668444,JR HOLLAND FOODSERVICE,5499,Catering costs - provisions,110.18,0.00,110.18
Regeneration and Local Services,Direct Services,021242,Catering - County Hall,Supplies and Services,324117,Provisions E324,11-Feb-2019,000006209668450,JR HOLLAND FOODSERVICE,5499,Catering costs - provisions,6.90,0.00,6.90
Regeneration and Local Services,Direct Services,021242,Catering - County Hall,Supplies and Services,324117,Provisions E324,11-Feb-2019,000006209668454,WWW.ADELIEFOODS.CO.UK,5499,Catering costs - provisions,193.89,0.00,193.89
Regeneration and Local Services,Direct Services,021242,Catering - County Hall,Supplies and Services,324117,Provisions E324,11-Feb-2019,000006209668460,WWW.ADELIEFOODS.CO.UK,5499,Catering costs - provisions,56.10,0.00,56.10
Regeneration and Local Services,Direct Services,021242,Catering - County Hall,Supplies and Services,324117,Provisions E324,11-Feb-2019,000006209668464,WWW.ADELIEFOODS.CO.UK,5499,Catering costs - provisions,46.72,0.00,46.72
Regeneration and Local Services,Direct Services,021242,Catering - County Hall,Supplies and Services,324117,Provisions E324,11-Feb-2019,000006209668476,WWW.ADELIEFOODS.CO.UK,5499,Catering costs - provisions,45.59,0.00,45.59
Regeneration and Local Services,Direct Services,021242,Catering - County Hall,Supplies and Services,324117,Provisions E324,11-Feb-2019,000006209668480,WWW.ADELIEFOODS.CO.UK,5499,Catering costs - provisions,41.52,6.92,34.60
Regeneration and Local Services,Direct Services,021242,Catering - County Hall,Supplies and Services,324117,Provisions E324,11-Feb-2019,000006209668484,WWW.ADELIEFOODS.CO.UK,5499,Catering costs - provisions,35.29,0.00,35.29
Regeneration and Local Services,Direct Services,021242,Catering - County Hall,Supplies and Services,324117,Provisions E324,11-Feb-2019,000006209668490,HOPWELLS LTD,5811,Catering costs - provisions,244.67,0.00,244.67
Regeneration and Local Services,Direct Services,021242,Catering - County Hall,Supplies and Services,324117,Provisions E324,11-Feb-2019,000006209668496,HOPWELLS LTD,5811,Catering costs - provisions,100.73,0.00,100.73
Regeneration and Local Services,Direct Services,021242,Catering - County Hall,Supplies and Services,324117,Provisions E324,11-Feb-2019,000006209668502,HOPWELLS LTD,5811,Catering costs - provisions,12.80,0.00,12.80
Children and Young Peoples Services,Head of Childrens Social Care,085622,Families First Ferryhill,Supplies and Services,338045,Services,11-Feb-2019,000006209668520,CUMBRIA COUNTY COU,7375,Legal expenses 338045,12.50,0.00,12.50
Regeneration and Local Services,Culture & Sport,054812,Gala Theatre - Catering etc,Supplies and Services,324117,Provisions E324,11-Feb-2019,000006209668546,JR HOLLAND FOODSERVICE,5499,Catering costs - provisions,46.26,0.00,46.26
Regeneration and Local Services,Culture & Sport,054812,Gala Theatre - Catering etc,Supplies and Services,324117,Provisions E324,11-Feb-2019,000006209668552,HOPWELLS LTD,5811,Catering costs - provisions,43.39,0.00,43.39
Children and Young Peoples Services,Head of Childrens Social Care,085361,LAC & Permanence Team 1,Supplies and Services,384999,Miscellaneous Expenses,11-Feb-2019,000006209668596,HM PASSPORT OFFICE,9399,Other expenses,147.00,0.00,147.00
Children and Young Peoples Services,Head of Childrens Social Care,085361,LAC & Permanence Team 1,Supplies and Services,384999,Miscellaneous Expenses,11-Feb-2019,000006209668602,HM PASSPORT OFFICE,9399,Other expenses,49.00,0.00,49.00
Children and Young Peoples Services,Head of Childrens Social Care,085362,LAC & Permanence Team 2,Supplies and Services,384999,Miscellaneous Expenses,11-Feb-2019,000006209668608,GEN REGISTER OFFICE,9399,Other expenses,9.25,0.00,9.25
Children and Young Peoples Services,Head of Education and Skills,071732,Dean Bank Childcare,Supplies and Services,324117,Provisions E324,11-Feb-2019,000006209668698,ASDA GROCERIES ONLINE,5411,Catering costs - provisions,42.19,0.00,42.19
Children and Young Peoples Services,Head of Education and Skills,071732,Dean Bank Childcare,Supplies and Services,324117,Provisions E324,11-Feb-2019,000006209668704,SAINSBURYS SACAT (2303,5411,Catering costs - provisions,13.75,0.00,13.75
Children and Young Peoples Services,Head of Childrens Social Care,085334,West Rainton Satelite Home,Supplies and Services,312011,Newspapers books and periodicals E312,11-Feb-2019,000006209668720,AMZN Mktp UK MI1BJ7VW4,5942,Books-school library,26.85,0.00,26.85
Children and Young Peoples Services,Head of Education and Skills,071903,EYDCP-Sustainability EDS,Supplies and Services,312011,Newspapers books and periodicals E312,11-Feb-2019,000006209668740,AMZN Mktp UK MI6BN1V14,5942,Books-school library,10.79,0.00,10.79
Children and Young Peoples Services,"Head of Early Help, Inclusion and Vulnerable Children",085952,Secure Education,Supplies and Services,324117,Provisions E324,11-Feb-2019,000006209668806,TESCO STORES 6329,5411,Catering costs - provisions,194.53,0.00,194.53
Regeneration and Local Services,Culture & Sport,054813,Gala Theatre - Technical,Supplies and Services,324117,Provisions E324,11-Feb-2019,000006209668812,TESCO STORES 6029,5411,Catering costs - provisions,7.05,0.00,7.05
Regeneration and Local Services,Culture & Sport,054813,Gala Theatre - Technical,Supplies and Services,328041,Clothing uniforms and laundry E328,11-Feb-2019,000006209668818,NEXT DURHAM,5651,Clothing uniforms and laundry,54.05,0.00,54.05
Children and Young Peoples Services,Childrens Services Operational Support,052986,CYPS - Locality and Operational Support,Supplies and Services,324117,Provisions E324,11-Feb-2019,000006209668828,THORNTONS LTD,5441,Catering costs - provisions,36.00,0.00,36.00
Regeneration and Local Services,Direct Services,010301,C&G - North Grounds Maintenance,Supplies and Services,328041,Clothing uniforms and laundry E328,11-Feb-2019,000006209668842,THOMAS OWEN & SONS /N/,5611,Clothing uniforms and laundry,390.63,0.00,390.63
Regeneration and Local Services,Culture & Sport,011060,Hardwick Park Catering,Supplies and Services,324117,Provisions E324,11-Feb-2019,000006209668850,JR HOLLAND FOODSERVICE,5499,Catering costs - provisions,90.02,15.00,75.02
Regeneration and Local Services,Culture & Sport,011060,Hardwick Park Catering,Supplies and Services,324117,Provisions E324,11-Feb-2019,000006209668856,JR HOLLAND FOODSERVICE,5499,Catering costs - provisions,20.18,0.00,20.18
Regeneration and Local Services,Culture & Sport,011060,Hardwick Park Catering,Supplies and Services,324117,Provisions E324,11-Feb-2019,000006209668860,HOPWELLS LTD,5811,Catering costs - provisions,22.50,3.75,18.75
Regeneration and Local Services,Culture & Sport,011060,Hardwick Park Catering,Supplies and Services,324117,Provisions E324,11-Feb-2019,000006209668860 - 1,HOPWELLS LTD,5811,Catering costs - provisions,69.56,,69.56
Regeneration and Local Services,Culture & Sport,011060,Hardwick Park Catering,Supplies and Services,324117,Provisions E324,11-Feb-2019,000006209668870,HOPWELLS LTD,5811,Catering costs - provisions,71.06,0.00,71.06
Regeneration and Local Services,Culture & Sport,011060,Hardwick Park Catering,Supplies and Services,324117,Provisions E324,11-Feb-2019,000006209668876,JR HOLLAND FOODSERVICE,5499,Catering costs - provisions,-6.60,0.00,-6.60
Regeneration and Local Services,Direct Services,021234,Catering - Locomotion,Supplies and Services,324117,Provisions E324,11-Feb-2019,000006209668890,JR HOLLAND FOODSERVICE,5499,Catering costs - provisions,34.70,0.00,34.70
Regeneration and Local Services,Direct Services,021234,Catering - Locomotion,Supplies and Services,324117,Provisions E324,11-Feb-2019,000006209668894,WWW.ADELIEFOODS.CO.UK,5499,Catering costs - provisions,85.13,0.00,85.13
Regeneration and Local Services,Direct Services,021234,Catering - Locomotion,Supplies and Services,324117,Provisions E324,11-Feb-2019,000006209668900,WWW.ADELIEFOODS.CO.UK,5499,Catering costs - provisions,58.35,0.00,58.35
Regeneration and Local Services,Direct Services,021234,Catering - Locomotion,Supplies and Services,324117,Provisions E324,11-Feb-2019,000006209668904,WWW.ADELIEFOODS.CO.UK,5499,Catering costs - provisions,57.16,0.00,57.16
Regeneration and Local Services,Direct Services,021234,Catering - Locomotion,Supplies and Services,324117,Provisions E324,11-Feb-2019,000006209668906,HOPWELLS LTD,5811,Catering costs - provisions,108.48,18.08,90.40
Regeneration and Local Services,Direct Services,021234,Catering - Locomotion,Supplies and Services,324117,Provisions E324,11-Feb-2019,000006209668906 - 1,HOPWELLS LTD,5811,Catering costs - provisions,197.86,,197.86
Regeneration and Local Services,Direct Services,021234,Catering - Locomotion,Supplies and Services,324117,Provisions E324,11-Feb-2019,000006209668912,WWW.ADELIEFOODS.CO.UK,5499,Catering costs - provisions,-6.10,0.00,-6.10
Regeneration and Local Services,Direct Services,010525,Catering - Green Lane,Supplies and Services,324117,Provisions E324,11-Feb-2019,000006209668986,JR HOLLAND FOODSERVICE,5499,Catering costs - provisions,53.87,0.00,53.87
Regeneration and Local Services,Direct Services,010525,Catering - Green Lane,Supplies and Services,324117,Provisions E324,11-Feb-2019,000006209668990,WWW.ADELIEFOODS.CO.UK,5499,Catering costs - provisions,41.34,0.00,41.34
Regeneration and Local Services,Direct Services,010525,Catering - Green Lane,Supplies and Services,324117,Provisions E324,11-Feb-2019,000006209668994,WWW.ADELIEFOODS.CO.UK,5499,Catering costs - provisions,31.68,0.00,31.68
Regeneration and Local Services,Direct Services,010525,Catering - Green Lane,Supplies and Services,324117,Provisions E324,11-Feb-2019,000006209668998,HOPWELLS LTD,5811,Catering costs - provisions,122.26,0.00,122.26
Regeneration and Local Services,Direct Services,010525,Catering - Green Lane,Supplies and Services,324117,Provisions E324,11-Feb-2019,000006209669004,HOPWELLS LTD,5811,Catering costs - provisions,63.86,0.00,63.86
Regeneration and Local Services,Direct Services,010525,Catering - Green Lane,Supplies and Services,324117,Provisions E324,11-Feb-2019,000006209669018,HOPWELLS LTD,5811,Catering costs - provisions,-13.80,0.00,-13.80
Children and Young Peoples Services,Head of Childrens Social Care,085551,Short Break Services-Park Hse Sher,Supplies and Services,324117,Provisions E324,11-Feb-2019,000006209669066,ALDI 15 774,5411,Catering costs - provisions,37.62,6.27,31.35
Children and Young Peoples Services,Head of Childrens Social Care,085551,Short Break Services-Park Hse Sher,Supplies and Services,324117,Provisions E324,11-Feb-2019,000006209669066 - 1,ALDI 15 774,5411,Catering costs - provisions,2.80,,2.80
Regeneration and Local Services,Economic Development and Housing,030554,International Relations,Supplies and Services,352001,Conference Expenses,11-Feb-2019,000006209669084,THE MOORINGS HOTEL (DU,7011,Conferencesseminars fees etc,60.00,0.00,60.00
Children and Young Peoples Services,"Head of Early Help, Inclusion and Vulnerable Children",088108,Spennymoor & Shildon 0-19 Targeted Family Support,Supplies and Services,324117,Provisions E324,11-Feb-2019,000006209669090,ASDA STORES,5411,Catering costs - provisions,16.38,0.00,16.38
Regeneration and Local Services,Direct Services,010367,C&G - South Grounds Maintenance,Supplies and Services,312011,Newspapers books and periodicals E312,11-Feb-2019,000006209669144,Snowballs,5251,Books-school library,61.51,10.25,51.26
Children and Young Peoples Services,Head of Childrens Social Care,085334,West Rainton Satelite Home,Supplies and Services,324117,Provisions E324,11-Feb-2019,000006209669152,SAINSBURYS 0776,5411,Catering costs - provisions,149.84,0.00,149.84
Children and Young Peoples Services,Head of Childrens Social Care,085334,West Rainton Satelite Home,Supplies and Services,324117,Provisions E324,11-Feb-2019,000006209669160,ASDA STORES LTD 4313,5411,Catering costs - provisions,12.05,0.00,12.05
Children and Young Peoples Services,Head of Childrens Social Care,085334,West Rainton Satelite Home,Supplies and Services,324117,Provisions E324,11-Feb-2019,000006209669164,TESCO STORES 2371,5411,Catering costs - provisions,29.60,0.00,29.60
Children and Young Peoples Services,Head of Childrens Social Care,085334,West Rainton Satelite Home,Supplies and Services,304221,Equipment and Materials,11-Feb-2019,000006209669168,B & Q 1343,5211,Direct materials,32.00,0.00,32.00
Children and Young Peoples Services,Head of Childrens Social Care,085333,Coxhoe Satelite Home,Supplies and Services,324117,Provisions E324,11-Feb-2019,000006209669212,TESCO STORES 6329,5411,Catering costs - provisions,252.83,0.00,252.83
Regeneration and Local Services,Economic Development and Housing,031500,Housing Solutions - Core Team,Supplies and Services,352001,Conference Expenses,11-Feb-2019,000006209669222,HOTEL 52,7011,Conferencesseminars fees etc,260.00,0.00,260.00
Regeneration and Local Services,Direct Services,030691,"Catering - Durham Dales Centre			",Supplies and Services,324117,Provisions E324,11-Feb-2019,000006209669300,JR HOLLAND FOODSERVICE,5499,Catering costs - provisions,88.40,0.00,88.40
Regeneration and Local Services,Direct Services,030691,"Catering - Durham Dales Centre			",Supplies and Services,324117,Provisions E324,11-Feb-2019,000006209669306,HOPWELLS LTD,5811,Catering costs - provisions,154.19,0.00,154.19
Regeneration and Local Services,Direct Services,030691,"Catering - Durham Dales Centre			",Supplies and Services,324117,Provisions E324,11-Feb-2019,000006209669316,HOPWELLS LTD,5811,Catering costs - provisions,107.21,0.00,107.21
Regeneration and Local Services,Direct Services,030691,"Catering - Durham Dales Centre			",Supplies and Services,324117,Provisions E324,11-Feb-2019,000006209669322,HOPWELLS LTD,5811,Catering costs - provisions,-13.86,0.00,-13.86
Regeneration and Local Services,Direct Services,030691,"Catering - Durham Dales Centre			",Supplies and Services,324117,Provisions E324,11-Feb-2019,000006209669326,JR HOLLAND FOODSERVICE,5499,Catering costs - provisions,-12.99,0.00,-12.99
Adult and Health Services,Head of Adults,055643,Hawthorn House LD Respite Unit,Supplies and Services,324117,Provisions E324,11-Feb-2019,000006209669344,JR HOLLAND FOODSERVICE,5499,Catering costs - provisions,34.25,0.00,34.25
Adult and Health Services,Head of Adults,055643,Hawthorn House LD Respite Unit,Supplies and Services,324117,Provisions E324,11-Feb-2019,000006209669350,JR HOLLAND FOODSERVICE,5499,Catering costs - provisions,20.28,0.00,20.28
Adult and Health Services,Head of Adults,055643,Hawthorn House LD Respite Unit,Supplies and Services,324117,Provisions E324,11-Feb-2019,000006209669354,JR HOLLAND FOODSERVICE,5499,Catering costs - provisions,10.76,0.00,10.76
Adult and Health Services,Head of Adults,055643,Hawthorn House LD Respite Unit,Supplies and Services,324117,Provisions E324,11-Feb-2019,000006209669358,HOPWELLS LTD,5811,Catering costs - provisions,1.50,0.25,1.25
Adult and Health Services,Head of Adults,055643,Hawthorn House LD Respite Unit,Supplies and Services,324117,Provisions E324,11-Feb-2019,000006209669358 - 1,HOPWELLS LTD,5811,Catering costs - provisions,55.13,,55.13
Regeneration and Local Services,Culture & Sport,054399,Local Delivery-Libraries,Supplies and Services,312009,Newspapers books and periodicals E312,11-Feb-2019,000006209669378,Amazon.co.uk MI5NI2MU4,5969,Newspapers books and periodicals,159.80,0.00,159.80
Resources,Digital and Customer Services,065335,School Services - Implementations,Supplies and Services,304639,Equipment and Materials,11-Feb-2019,000006209669402,AMZN Mktp UK MI31O7MX4,5942,Technicians-supplies,167.86,0.00,167.86
Resources,Digital and Customer Services,065335,School Services - Implementations,Supplies and Services,304639,Equipment and Materials,11-Feb-2019,000006209669408,AMZN Mktp UK MI7109ME4,5942,Technicians-supplies,191.84,0.00,191.84
Children and Young Peoples Services,Head of Childrens Social Care,085342,9 Cedar Drive Aycliffe,Supplies and Services,312011,Newspapers books and periodicals E312,11-Feb-2019,000006209669414,Amazon.co.uk MI3O14MX4,5969,Books-school library,12.48,0.00,12.48
Regeneration and Local Services,Economic Development and Housing,030771,Durham Advance Flexible Fund,Transport,235057,Public Transport,11-Feb-2019,000006209669440,GO NORTH EAST LIMITED,4131,Staff travelling,25.00,0.00,25.00
Children and Young Peoples Services,"Head of Early Help, Inclusion and Vulnerable Children",085956,Lumley,Supplies and Services,384999,Miscellaneous Expenses,11-Feb-2019,000006209669448,AMZN Mktp UK MI6M19VA4,5942,Other expenses,77.94,12.99,64.95
Children and Young Peoples Services,"Head of Early Help, Inclusion and Vulnerable Children",085955,Auckland,Supplies and Services,384999,Miscellaneous Expenses,11-Feb-2019,000006209669454,Amazon.co.uk MI0X83V64,5969,Other expenses,10.91,0.00,10.91
Children and Young Peoples Services,"Head of Early Help, Inclusion and Vulnerable Children",085957,Secure Management,Supplies and Services,340001,Postages E340,11-Feb-2019,000006209669462,ROYAL MAIL GROUP LTD,9402,Postages,944.40,157.40,787.00
Regeneration and Local Services,Culture & Sport,054235,Bishop Auckland Town Hall Cafe,Supplies and Services,324117,Provisions E324,11-Feb-2019,000006209669486,HOPWELLS LTD,5811,Catering costs - provisions,122.26,0.00,122.26
Regeneration and Local Services,Direct Services,021324,Catering - Meadowfield,Supplies and Services,324117,Provisions E324,11-Feb-2019,000006209669500,HOPWELLS LTD,5811,Catering costs - provisions,68.85,0.00,68.85
Regeneration and Local Services,Direct Services,021324,Catering - Meadowfield,Supplies and Services,324117,Provisions E324,11-Feb-2019,000006209669508,HOPWELLS LTD,5811,Catering costs - provisions,-11.19,0.00,-11.19
Regeneration and Local Services,Direct Services,010301,C&G - North Grounds Maintenance,Supplies and Services,304221,Equipment and Materials,11-Feb-2019,000006209669516,SCREWFIX CHESTER L,5211,Direct materials,49.99,0.00,49.99
Children and Young Peoples Services,Head of Childrens Social Care,085352,Tow Law CU,Supplies and Services,384999,Miscellaneous Expenses,11-Feb-2019,000006209669558,ALLBEAUTY.COM,5977,Other expenses,37.95,0.00,37.95
Children and Young Peoples Services,Head of Childrens Social Care,085332,Middlestone Moor CU,Supplies and Services,384871,Miscellaneous Expenses,11-Feb-2019,000006209669606,WWW.KIGHTWATERVALLEY.C,7991,Training-other activities,440.00,0.00,440.00
Children and Young Peoples Services,Head of Childrens Social Care,085380,Operations Manager Adoption & Fostering,Supplies and Services,324117,Provisions E324,11-Feb-2019,000006209669638,LIDL UK LANGLEY MOOR,5411,Catering costs - provisions,11.75,0.00,11.75
Regeneration and Local Services,Culture & Sport,054233,Bishop Auckland Town Hall Library,Employees,040149,Recruitment Instruction and Training,11-Feb-2019,000006209669646,WWW.FILMBANK.CO.UK,7829,Training-all costs,99.60,0.00,99.60
Regeneration and Local Services,Direct Services,021235,Catering - Wharton Park,Supplies and Services,324117,Provisions E324,11-Feb-2019,000006209669750,JR HOLLAND FOODSERVICE,5499,Catering costs - provisions,23.85,0.00,23.85
Adult and Health Services,Head of Adults,055309,Peterlee Pathways,Supplies and Services,312011,Newspapers books and periodicals E312,11-Feb-2019,000006209669764,AMZN Mktp UK MI7TM7VU4,5942,Books-school library,45.96,7.66,38.30
Adult and Health Services,Head of Adults,055309,Peterlee Pathways,Supplies and Services,324117,Provisions E324,11-Feb-2019,000006209669770,LIDL UK PETERLEE,5411,Catering costs - provisions,4.44,0.00,4.44
Adult and Health Services,Head of Adults,055309,Peterlee Pathways,Supplies and Services,324117,Provisions E324,11-Feb-2019,000006209669774,ALDI,5411,Catering costs - provisions,19.99,3.33,16.66
Children and Young Peoples Services,Head of Childrens Social Care,085363,LAC & Permanence Team 3,Supplies and Services,304259,Equipment and Materials,11-Feb-2019,000006209669782,HM PASSPORT OFFICE,9399,Equipment-purchase and rental,49.00,0.00,49.00
Transformation and Partnerships,Partnerships & Community Engagement Div.,060472,Syrian Vulnerable Persons Scheme,Supplies and Services,308011,Furniture,11-Feb-2019,000006209669846,www.247blinds.co.uk,5714,Furniture repair and replacement,731.69,121.95,609.74
Regeneration and Local Services,Direct Services,021242,Catering - County Hall,Supplies and Services,324117,Provisions E324,11-Feb-2019,000006213769014,FREEMAN CATERING BUTCH,5422,Catering costs - provisions,305.20,0.00,305.20
Regeneration and Local Services,Culture & Sport,054812,Gala Theatre - Catering etc,Supplies and Services,324117,Provisions E324,11-Feb-2019,000006213769084,BATLEYS PERTH,5300,Catering costs - provisions,130.26,21.71,108.55
Regeneration and Local Services,Culture & Sport,054812,Gala Theatre - Catering etc,Supplies and Services,324117,Provisions E324,11-Feb-2019,000006213769084 - 1,BATLEYS PERTH,5300,Catering costs - provisions,135.59,,135.59
Regeneration and Local Services,Culture & Sport,054812,Gala Theatre - Catering etc,Supplies and Services,324117,Provisions E324,11-Feb-2019,000006213769112,BATLEYS PERTH,5300,Catering costs - provisions,19.28,0.00,19.28
Regeneration and Local Services,Culture & Sport,054812,Gala Theatre - Catering etc,Supplies and Services,324117,Provisions E324,11-Feb-2019,000006213769120,FREEMAN CATERING BUTCH,5422,Catering costs - provisions,16.20,0.00,16.20
Regeneration and Local Services,Culture & Sport,011060,Hardwick Park Catering,Supplies and Services,324117,Provisions E324,11-Feb-2019,000006213770000,FREEMAN CATERING BUTCH,5422,Catering costs - provisions,42.62,0.00,42.62
Regeneration and Local Services,Culture & Sport,011060,Hardwick Park Catering,Supplies and Services,324117,Provisions E324,11-Feb-2019,000006213770012,FREEMAN CATERING BUTCH,5422,Catering costs - provisions,24.73,0.00,24.73
Regeneration and Local Services,Direct Services,010525,Catering - Green Lane,Supplies and Services,324117,Provisions E324,11-Feb-2019,000006213770354,FREEMAN CATERING BUTCH,5422,Catering costs - provisions,58.43,0.00,58.43
Regeneration and Local Services,Direct Services,010525,Catering - Green Lane,Supplies and Services,324117,Provisions E324,11-Feb-2019,000006213770370,FREEMAN CATERING BUTCH,5422,Catering costs - provisions,51.95,0.00,51.95
Regeneration and Local Services,Direct Services,010525,Catering - Green Lane,Supplies and Services,324117,Provisions E324,11-Feb-2019,000006213770392,BATLEYS PERTH,5300,Catering costs - provisions,-2.70,0.00,-2.70
Regeneration and Local Services,Economic Development and Housing,030554,International Relations,Transport,235057,Public Transport,11-Feb-2019,000006213770526,BRITISH A,3005,Staff travelling,465.00,0.00,465.00
Regeneration and Local Services,Direct Services,030691,"Catering - Durham Dales Centre			",Supplies and Services,324117,Provisions E324,11-Feb-2019,000006213770788,FREEMAN CATERING BUTCH,5422,Catering costs - provisions,67.37,0.00,67.37
Regeneration and Local Services,Direct Services,030691,"Catering - Durham Dales Centre			",Supplies and Services,324117,Provisions E324,11-Feb-2019,000006213770808,FREEMAN CATERING BUTCH,5422,Catering costs - provisions,30.68,0.00,30.68
Adult and Health Services,Head of Adults,055643,Hawthorn House LD Respite Unit,Supplies and Services,324117,Provisions E324,11-Feb-2019,000006213770936,FREEMAN CATERING BUTCH,5422,Catering costs - provisions,46.12,0.00,46.12
Regeneration and Local Services,Direct Services,021324,Catering - Meadowfield,Supplies and Services,324117,Provisions E324,11-Feb-2019,000006213771260,FREEMAN CATERING BUTCH,5422,Catering costs - provisions,58.64,0.00,58.64
Regeneration and Local Services,Direct Services,021324,Catering - Meadowfield,Supplies and Services,324117,Provisions E324,11-Feb-2019,000006213771268,FREEMAN CATERING BUTCH,5422,Catering costs - provisions,68.91,0.00,68.91
Regeneration and Local Services,Economic Development and Housing,031576,B& B - Temp Accom,Supplies and Services,364320,Grants to Voluntary Organisations,11-Feb-2019,000006213771326,PREMIER INN,3811,Accommodation assistance,138.00,23.00,115.00
Regeneration and Local Services,Economic Development and Housing,031500,Housing Solutions - Core Team,Employees,040149,Recruitment Instruction and Training,11-Feb-2019,000006213771532,PREMIER INN,3811,Training-all costs,68.00,0.00,68.00
Children and Young Peoples Services,Head of Education and Skills,071801,Selby Cottage Childcare Centre,Supplies and Services,308011,Furniture,12-Feb-2019,000006213768370,IKEA LIMITED,5712,Furniture repair and replacement,156.75,0.00,156.75
Children and Young Peoples Services,Head of Education and Skills,071801,Selby Cottage Childcare Centre,Supplies and Services,304259,Equipment and Materials,12-Feb-2019,000006213768392,WILKO RETAIL LIMIT,5722,Equipment-purchase and rental,15.00,0.00,15.00
Regeneration and Local Services,Direct Services,011068,Nei.Prot - Civic Pride,Supplies and Services,304335,Equipment and Materials,12-Feb-2019,000006213768428,AMZN Mktp UK MI06665T4,5942,ICT supplies etc,4.97,0.00,4.97
Resources,Legal & Democratic Services,069321,Governance and Elections,Supplies and Services,344033,Telephones,12-Feb-2019,000006213768442,AMZN Mktp UK MI4WW9594,5942,Telephones general-all costs,19.20,0.00,19.20
Resources,Digital and Customer Services,069010,Administration,Supplies and Services,312009,Newspapers books and periodicals E312,12-Feb-2019,000006213768458,AMZN Mktp UK MI54B0MR4,5942,Newspapers books and periodicals,2.99,0.00,2.99
Resources,Corporate Finance & Commercial Services,066820,Occupational Health Service,Supplies and Services,342053,Computers and Communications,12-Feb-2019,000006213768470,SurveyMonkey,7372,Computer software,336.00,0.00,336.00
Regeneration and Local Services,Culture & Sport,011208,Aquatics,Supplies and Services,342053,Computers and Communications,12-Feb-2019,000006213768480,MAILCHIMP PAYASYOUG,5968,Computer software,117.67,0.00,117.67
Regeneration and Local Services,Economic Development and Housing,030725,Community Economic Development,Supplies and Services,352001,Conference Expenses,12-Feb-2019,000006213768496,PAYPAL REVIVETHRIV,7392,Conferencesseminars fees etc,100.27,0.00,100.27
Regeneration and Local Services,Direct Services,010905,Nei.Prot - Anti Social Behaviour,Supplies and Services,304335,Equipment and Materials,12-Feb-2019,000006213768512,AMZN Mktp UK MI63K95B4,5942,ICT supplies etc,9.99,0.00,9.99
Resources,Corporate Finance & Commercial Services,066820,Occupational Health Service,Supplies and Services,312075,Newspapers books and periodicals E312,12-Feb-2019,000006213768524,WWW.FOM.AC.UK,8699,Text books,72.50,0.00,72.50
Transformation and Partnerships,Partnerships & Community Engagement Div.,052707,Partnership Team,Supplies and Services,304403,Equipment and Materials,12-Feb-2019,000006213768536,BAKER ROSS,5970,Other consumables,9.89,0.00,9.89
Transformation and Partnerships,Partnerships & Community Engagement Div.,052707,Partnership Team,Supplies and Services,304403,Equipment and Materials,12-Feb-2019,000006213768550,WWW.ARGOS.CO.UK,5310,Other consumables,53.94,0.00,53.94
Children and Young Peoples Services,Head of Childrens Social Care,085357,Bespoke Placements,Transport,235057,Public Transport,12-Feb-2019,000006213768592,HOLIDAY PAYMENT VRUK,4722,Staff travelling,"1,474.00",245.67,1228.33
Children and Young Peoples Services,Head of Childrens Social Care,085357,Bespoke Placements,Transport,235057,Public Transport,12-Feb-2019,000006213768608,HOLIDAY PAYMENT VRUK,4722,Staff travelling,492.00,82.00,410.00
Children and Young Peoples Services,Head of Childrens Social Care,085357,Bespoke Placements,Transport,235057,Public Transport,12-Feb-2019,000006213768618,HOLIDAY PAYMENT VRUK,4722,Staff travelling,"1,694.00",282.33,1411.67
Children and Young Peoples Services,Head of Education and Skills,075021,Youth Employment Initiative,Supplies and Services,384199,Miscellaneous Expenses,12-Feb-2019,000006213768654,WWW.DURHAM.GOV.UK,9399,Other hired and contracted services,12.00,0.00,12.00
Adult and Health Services,Head of Adults,055302,Durham Pathways,Supplies and Services,324117,Provisions E324,12-Feb-2019,000006213768690,SAINSBURYS SACAT 0776,5411,Catering costs - provisions,19.50,0.00,19.50
Adult and Health Services,Head of Adults,055302,Durham Pathways,Supplies and Services,324117,Provisions E324,12-Feb-2019,000006213768706,ALDI STORES,5411,Catering costs - provisions,3.98,0.00,3.98
Children and Young Peoples Services,Head of Childrens Social Care,085621,Families First Aycliffe,Supplies and Services,338045,Services,12-Feb-2019,000006213768764,WIGAN COUNCIL,9399,Legal expenses 338045,16.00,0.00,16.00
Children and Young Peoples Services,Head of Childrens Social Care,085621,Families First Aycliffe,Supplies and Services,338045,Services,12-Feb-2019,000006213768778,HM PASSPORT OFFICE,9399,Legal expenses 338045,108.98,0.00,108.98
Regeneration and Local Services,Economic Development and Housing,030699,Business Growth and Innovation General,Supplies and Services,312011,Newspapers books and periodicals E312,12-Feb-2019,000006213768790,FASTHOSTS INTERNET,4816,Books-school library,8.39,1.40,6.99
Regeneration and Local Services,Direct Services,021242,Catering - County Hall,Supplies and Services,324117,Provisions E324,12-Feb-2019,000006213768976,JR HOLLAND FOODSERVICE,5499,Catering costs - provisions,321.00,0.00,321.00
Regeneration and Local Services,Direct Services,021242,Catering - County Hall,Supplies and Services,324117,Provisions E324,12-Feb-2019,000006213768990,JR HOLLAND FOODSERVICE,5499,Catering costs - provisions,200.47,0.00,200.47
Regeneration and Local Services,Direct Services,021242,Catering - County Hall,Supplies and Services,324117,Provisions E324,12-Feb-2019,000006213769004,JR HOLLAND FOODSERVICE,5499,Catering costs - provisions,31.51,0.00,31.51
Children and Young Peoples Services,Head of Childrens Social Care,085622,Families First Ferryhill,Supplies and Services,338045,Services,12-Feb-2019,000006213769038,STOCKTON BOROUGH COUNC,9399,Legal expenses 338045,11.00,0.00,11.00
Regeneration and Local Services,Direct Services,010367,C&G - South Grounds Maintenance,Supplies and Services,304221,Equipment and Materials,12-Feb-2019,000006213769066,JEWSON LTD,5211,Direct materials,2.88,0.48,2.40
Children and Young Peoples Services,Head of Childrens Social Care,085362,LAC & Permanence Team 2,Supplies and Services,384999,Miscellaneous Expenses,12-Feb-2019,000006213769288,GEN REGISTER OFFICE,9399,Other expenses,9.25,0.00,9.25
Children and Young Peoples Services,Head of Childrens Social Care,085361,LAC & Permanence Team 1,Supplies and Services,384999,Miscellaneous Expenses,12-Feb-2019,000006213769306,GEN REGISTER OFFICE,9399,Other expenses,9.25,0.00,9.25
Children and Young Peoples Services,Head of Childrens Social Care,085333,Coxhoe Satelite Home,Supplies and Services,324117,Provisions E324,12-Feb-2019,000006213769322,TESCO STORES 2371,5411,Catering costs - provisions,15.95,0.00,15.95
Children and Young Peoples Services,Head of Childrens Social Care,085333,Coxhoe Satelite Home,Supplies and Services,324117,Provisions E324,12-Feb-2019,000006213769338,TESCO STORES 2371,5411,Catering costs - provisions,5.00,0.00,5.00
Children and Young Peoples Services,Head of Childrens Social Care,085334,West Rainton Satelite Home,Supplies and Services,312011,Newspapers books and periodicals E312,12-Feb-2019,000006213769404,HOME BARGAINS,5251,Books-school library,8.74,1.46,7.28
Children and Young Peoples Services,Head of Childrens Social Care,085334,West Rainton Satelite Home,Supplies and Services,304221,Equipment and Materials,12-Feb-2019,000006213769414,B & Q 1343,5211,Direct materials,3.00,0.00,3.00
Children and Young Peoples Services,Head of Childrens Social Care,085334,West Rainton Satelite Home,Supplies and Services,328041,Clothing uniforms and laundry E328,12-Feb-2019,000006213769428,ARGOS LTD,5310,Clothing uniforms and laundry,10.00,0.00,10.00
Children and Young Peoples Services,Head of Childrens Social Care,085334,West Rainton Satelite Home,Supplies and Services,328041,Clothing uniforms and laundry E328,12-Feb-2019,000006213769438,ARGOS LTD,5310,Clothing uniforms and laundry,8.00,0.00,8.00
Children and Young Peoples Services,Head of Education and Skills,071903,EYDCP-Sustainability EDS,Supplies and Services,312011,Newspapers books and periodicals E312,12-Feb-2019,000006213769664,AMZN Mktp UK MI33A8MF4,5942,Books-school library,29.70,0.00,29.70
Children and Young Peoples Services,Head of Education and Skills,071903,EYDCP-Sustainability EDS,Supplies and Services,328041,Clothing uniforms and laundry E328,12-Feb-2019,000006213769678,WWW.EARLYEXCELLENCE.CO,5641,Clothing uniforms and laundry,270.00,0.00,270.00
Children and Young Peoples Services,"Head of Early Help, Inclusion and Vulnerable Children",085955,Auckland,Supplies and Services,304649,Equipment and Materials,12-Feb-2019,000006213769794,AMZN Mktp UK MI1E05MW4,5942,Toys,66.82,0.00,66.82
Children and Young Peoples Services,"Head of Early Help, Inclusion and Vulnerable Children",085955,Auckland,Supplies and Services,304649,Equipment and Materials,12-Feb-2019,000006213769810,AMZN Mktp UK MI1WO35I4,5942,Toys,9.40,0.00,9.40
Children and Young Peoples Services,"Head of Early Help, Inclusion and Vulnerable Children",085957,Secure Management,Supplies and Services,384999,Miscellaneous Expenses,12-Feb-2019,000006213769824,AMZN Mktp UK MI56B25T4,5942,Other expenses,4.69,0.00,4.69
Children and Young Peoples Services,"Head of Early Help, Inclusion and Vulnerable Children",085955,Auckland,Supplies and Services,304649,Equipment and Materials,12-Feb-2019,000006213769836,AMZN Mktp UK MI7HB8M84,5942,Toys,21.71,3.62,18.09
Children and Young Peoples Services,"Head of Early Help, Inclusion and Vulnerable Children",085955,Auckland,Supplies and Services,304649,Equipment and Materials,12-Feb-2019,000006213769844,AMZN Mktp UK MI9A19M04,5942,Toys,69.99,0.00,69.99
Children and Young Peoples Services,"Head of Early Help, Inclusion and Vulnerable Children",085965,Barnard,Supplies and Services,328041,Clothing uniforms and laundry E328,12-Feb-2019,000006213769850,M and M Direct Ltd,5941,Clothing uniforms and laundry,31.98,0.00,31.98
Children and Young Peoples Services,"Head of Early Help, Inclusion and Vulnerable Children",085955,Auckland,Supplies and Services,328041,Clothing uniforms and laundry E328,12-Feb-2019,000006213769864,FOOTASYLUM PLC,5691,Clothing uniforms and laundry,74.97,0.00,74.97
Children and Young Peoples Services,"Head of Early Help, Inclusion and Vulnerable Children",085957,Secure Management,Supplies and Services,384999,Miscellaneous Expenses,12-Feb-2019,000006213769872,AMZN Mktp UK MI6K14524,5942,Other expenses,26.98,4.50,22.48
Children and Young Peoples Services,"Head of Early Help, Inclusion and Vulnerable Children",085955,Auckland,Supplies and Services,328041,Clothing uniforms and laundry E328,12-Feb-2019,000006213769878,VERY,5964,Clothing uniforms and laundry,65.24,0.00,65.24
Regeneration and Local Services,Culture & Sport,054813,Gala Theatre - Technical,Supplies and Services,328041,Clothing uniforms and laundry E328,12-Feb-2019,000006213769906,THE RANGE,5311,Clothing uniforms and laundry,38.20,0.00,38.20
Regeneration and Local Services,Culture & Sport,011060,Hardwick Park Catering,Supplies and Services,324117,Provisions E324,12-Feb-2019,000006213769988,JR HOLLAND FOODSERVICE,5499,Catering costs - provisions,30.50,0.00,30.50
Regeneration and Local Services,Direct Services,021234,Catering - Locomotion,Supplies and Services,324117,Provisions E324,12-Feb-2019,000006213770082,WWW.ADELIEFOODS.CO.UK,5499,Catering costs - provisions,153.20,0.00,153.20
Regeneration and Local Services,Direct Services,021234,Catering - Locomotion,Supplies and Services,324117,Provisions E324,12-Feb-2019,000006213770096,WWW.ADELIEFOODS.CO.UK,5499,Catering costs - provisions,80.90,0.00,80.90
Regeneration and Local Services,Direct Services,021234,Catering - Locomotion,Supplies and Services,324117,Provisions E324,12-Feb-2019,000006213770112,WWW.ADELIEFOODS.CO.UK,5499,Catering costs - provisions,65.36,0.00,65.36
Regeneration and Local Services,Direct Services,021234,Catering - Locomotion,Supplies and Services,324117,Provisions E324,12-Feb-2019,000006213770124,WWW.ADELIEFOODS.CO.UK,5499,Catering costs - provisions,59.67,0.00,59.67
Regeneration and Local Services,Direct Services,021234,Catering - Locomotion,Supplies and Services,324117,Provisions E324,12-Feb-2019,000006213770140,WWW.ADELIEFOODS.CO.UK,5499,Catering costs - provisions,59.67,0.00,59.67
Regeneration and Local Services,Direct Services,021234,Catering - Locomotion,Supplies and Services,324117,Provisions E324,12-Feb-2019,000006213770152,WWW.ADELIEFOODS.CO.UK,5499,Catering costs - provisions,57.28,0.00,57.28
Regeneration and Local Services,Direct Services,021234,Catering - Locomotion,Supplies and Services,324117,Provisions E324,12-Feb-2019,000006213770166,WWW.ADELIEFOODS.CO.UK,5499,Catering costs - provisions,56.12,0.00,56.12
Regeneration and Local Services,Direct Services,021234,Catering - Locomotion,Supplies and Services,324117,Provisions E324,12-Feb-2019,000006213770184,WWW.ADELIEFOODS.CO.UK,5499,Catering costs - provisions,41.58,0.00,41.58
Regeneration and Local Services,Direct Services,021234,Catering - Locomotion,Supplies and Services,324117,Provisions E324,12-Feb-2019,000006213770206,WWW.ADELIEFOODS.CO.UK,5499,Catering costs - provisions,32.74,0.00,32.74
Regeneration and Local Services,Direct Services,021234,Catering - Locomotion,Supplies and Services,324117,Provisions E324,12-Feb-2019,000006213770216,WWW.ADELIEFOODS.CO.UK,5499,Catering costs - provisions,30.71,0.00,30.71
Regeneration and Local Services,Economic Development and Housing,030771,Durham Advance Flexible Fund,Transport,235057,Public Transport,12-Feb-2019,000006213770624,ARRIVA NORTH EAST,4131,Staff travelling,7.20,0.00,7.20
Children and Young Peoples Services,Head of Childrens Social Care,085333,Coxhoe Satelite Home,Supplies and Services,324117,Provisions E324,12-Feb-2019,000006213770658,CO-OP GROUP 310016,5411,Catering costs - provisions,4.90,0.00,4.90
Resources,Resources Management,069000,Resources Management,Supplies and Services,324117,Provisions E324,12-Feb-2019,000006213770674,CO-OP GROUP 310016,5411,Catering costs - provisions,20.52,0.00,20.52
Children and Young Peoples Services,Head of Childrens Social Care,085352,Tow Law CU,Supplies and Services,324117,Provisions E324,12-Feb-2019,000006213770762,TESCO STORES 2371,5411,Catering costs - provisions,124.86,0.00,124.86
Adult and Health Services,Head of Adults,055643,Hawthorn House LD Respite Unit,Supplies and Services,324117,Provisions E324,12-Feb-2019,000006213770926,JR HOLLAND FOODSERVICE,5499,Catering costs - provisions,17.38,0.00,17.38
Resources,Digital and Customer Services,065335,School Services - Implementations,Supplies and Services,304639,Equipment and Materials,12-Feb-2019,000006213771050,AMZN Mktp UK MI1VJ95T4,5942,Technicians-supplies,24.48,0.00,24.48
Resources,Digital and Customer Services,065335,School Services - Implementations,Supplies and Services,304639,Equipment and Materials,12-Feb-2019,000006213771056,AMZN MKTP UK MI8MP85B4,5942,Technicians-supplies,44.44,0.00,44.44
Resources,Digital and Customer Services,069010,Administration,Supplies and Services,364320,Grants to Voluntary Organisations,12-Feb-2019,000006213771158,MERCURE WALTON WARWICK,7011,Accommodation assistance,105.00,0.00,105.00
Regeneration and Local Services,Culture & Sport,054235,Bishop Auckland Town Hall Cafe,Supplies and Services,324117,Provisions E324,12-Feb-2019,000006213771186,JR HOLLAND FOODSERVICE,5499,Catering costs - provisions,59.19,0.00,59.19
Regeneration and Local Services,Direct Services,021324,Catering - Meadowfield,Supplies and Services,324117,Provisions E324,12-Feb-2019,000006213771228,JR HOLLAND FOODSERVICE,5499,Catering costs - provisions,20.33,0.00,20.33
Regeneration and Local Services,Direct Services,021324,Catering - Meadowfield,Supplies and Services,324117,Provisions E324,12-Feb-2019,000006213771242,JR HOLLAND FOODSERVICE,5499,Catering costs - provisions,14.19,0.00,14.19
Children and Young Peoples Services,"Head of Early Help, Inclusion and Vulnerable Children",085801,CDYOS - Support,Supplies and Services,324117,Provisions E324,12-Feb-2019,000006213771346,ASDA GROCERIES ONLINE,5411,Catering costs - provisions,50.20,0.00,50.20
Children and Young Peoples Services,Head of Childrens Social Care,085333,Coxhoe Satelite Home,Supplies and Services,324117,Provisions E324,12-Feb-2019,000006213771436,TESCO STORES 2916,5411,Catering costs - provisions,37.94,0.00,37.94
Children and Young Peoples Services,Head of Childrens Social Care,085380,Operations Manager Adoption & Fostering,Supplies and Services,324117,Provisions E324,12-Feb-2019,000006213771510,ASDA STORES,5411,Catering costs - provisions,22.70,0.00,22.70
Children and Young Peoples Services,Head of Childrens Social Care,085352,Tow Law CU,Supplies and Services,312011,Newspapers books and periodicals E312,12-Feb-2019,000006213771630,Amazon.co.uk MI2P095Y4,5969,Books-school library,94.92,0.00,94.92
Children and Young Peoples Services,Head of Childrens Social Care,085352,Tow Law CU,Supplies and Services,324117,Provisions E324,12-Feb-2019,000006213771644,ASDA SUPERSTORE,5411,Catering costs - provisions,9.60,0.00,9.60
Children and Young Peoples Services,Head of Childrens Social Care,085352,Tow Law CU,Supplies and Services,328041,Clothing uniforms and laundry E328,12-Feb-2019,000006213771658,CLEARANCE BARGAINS,5310,Clothing uniforms and laundry,185.97,0.00,185.97
Children and Young Peoples Services,Head of Education and Skills,076001,Music Service,Supplies and Services,324117,Provisions E324,12-Feb-2019,000006213771722,ASDA SUPERSTORE 4987,5411,Catering costs - provisions,25.36,0.00,25.36
Transformation and Partnerships,Partnerships & Community Engagement Div.,060472,Syrian Vulnerable Persons Scheme,Supplies and Services,308011,Furniture,12-Feb-2019,000006213771934,WILKO.COM,5399,Furniture repair and replacement,318.00,53.00,265.00
Transformation and Partnerships,Partnerships & Community Engagement Div.,060472,Syrian Vulnerable Persons Scheme,Supplies and Services,308011,Furniture,12-Feb-2019,000006213771958,WILKO DURHAM 426,5722,Furniture repair and replacement,196.00,32.67,163.33
Transformation and Partnerships,Partnerships & Community Engagement Div.,060472,Syrian Vulnerable Persons Scheme,Supplies and Services,308011,Furniture,12-Feb-2019,000006213771968,WILKO DURHAM 426,5722,Furniture repair and replacement,32.00,5.33,26.67
Children and Young Peoples Services,"Head of Early Help, Inclusion and Vulnerable Children",085810,CDYOS - Interventions Team,Supplies and Services,348037,Subsistence E348,12-Feb-2019,000006213772046,MCDONALDS,5812,Subsistence,20.40,0.00,20.40
Regeneration and Local Services,Economic Development and Housing,031576,B& B - Temp Accom,Supplies and Services,364320,Grants to Voluntary Organisations,12-Feb-2019,000006218788012,PREMIER INN,3811,Accommodation assistance,226.50,37.75,188.75
Regeneration and Local Services,Direct Services,021242,Catering - County Hall,Supplies and Services,324117,Provisions E324,12-Feb-2019,000006218788184,BATLEYS PERTH,5300,Catering costs - provisions,350.22,58.37,291.85
Regeneration and Local Services,Direct Services,021242,Catering - County Hall,Supplies and Services,324117,Provisions E324,12-Feb-2019,000006218788184 - 1,BATLEYS PERTH,5300,Catering costs - provisions,258.18,,258.18
Regeneration and Local Services,Culture & Sport,011060,Hardwick Park Catering,Supplies and Services,324117,Provisions E324,12-Feb-2019,000006218788510,BATLEYS PERTH,5300,Catering costs - provisions,259.14,43.19,215.95
Regeneration and Local Services,Culture & Sport,011060,Hardwick Park Catering,Supplies and Services,324117,Provisions E324,12-Feb-2019,000006218788510 - 1,BATLEYS PERTH,5300,Catering costs - provisions,150.45,,150.45
Regeneration and Local Services,Culture & Sport,011060,Hardwick Park Catering,Supplies and Services,324117,Provisions E324,12-Feb-2019,000006218788522,BATLEYS PERTH,5300,Catering costs - provisions,63.03,0.00,63.03
Regeneration and Local Services,Culture & Sport,011060,Hardwick Park Catering,Supplies and Services,324117,Provisions E324,12-Feb-2019,000006218788528,BATLEYS PERTH,5300,Catering costs - provisions,2.82,0.47,2.35
Regeneration and Local Services,Culture & Sport,011060,Hardwick Park Catering,Supplies and Services,324117,Provisions E324,12-Feb-2019,000006218788528 - 1,BATLEYS PERTH,5300,Catering costs - provisions,14.76,,14.76
Regeneration and Local Services,Direct Services,021234,Catering - Locomotion,Supplies and Services,324117,Provisions E324,12-Feb-2019,000006218788568,BATLEYS PERTH,5300,Catering costs - provisions,288.18,48.03,240.15
Regeneration and Local Services,Direct Services,021234,Catering - Locomotion,Supplies and Services,324117,Provisions E324,12-Feb-2019,000006218788568 - 1,BATLEYS PERTH,5300,Catering costs - provisions,63.17,,63.17
Regeneration and Local Services,Direct Services,021234,Catering - Locomotion,Supplies and Services,324117,Provisions E324,12-Feb-2019,000006218788580,BATLEYS PERTH,5300,Catering costs - provisions,18.16,0.00,18.16
Regeneration and Local Services,Direct Services,021234,Catering - Locomotion,Supplies and Services,324117,Provisions E324,12-Feb-2019,000006218788584,BATLEYS PERTH,5300,Catering costs - provisions,-59.40,0.00,-59.40
Regeneration and Local Services,Culture & Sport,054235,Bishop Auckland Town Hall Cafe,Supplies and Services,324117,Provisions E324,12-Feb-2019,000006218788818,BATLEYS PERTH,5300,Catering costs - provisions,65.70,10.95,54.75
Regeneration and Local Services,Culture & Sport,054235,Bishop Auckland Town Hall Cafe,Supplies and Services,324117,Provisions E324,12-Feb-2019,000006218788818 - 1,BATLEYS PERTH,5300,Catering costs - provisions,33.35,,33.35
Regeneration and Local Services,Direct Services,021324,Catering - Meadowfield,Supplies and Services,324117,Provisions E324,12-Feb-2019,000006218788848,BATLEYS PERTH,5300,Catering costs - provisions,86.04,14.34,71.70
Regeneration and Local Services,Direct Services,021324,Catering - Meadowfield,Supplies and Services,324117,Provisions E324,12-Feb-2019,000006218788848 - 1,BATLEYS PERTH,5300,Catering costs - provisions,127.43,,127.43
Regeneration and Local Services,Economic Development and Housing,031500,Housing Solutions - Core Team,Employees,040149,Recruitment Instruction and Training,12-Feb-2019,000006218788986,PREMIER INN,3811,Training-all costs,79.00,0.00,79.00
Children and Young Peoples Services,Childrens Services Operational Support,052986,CYPS - Locality and Operational Support,Supplies and Services,312011,Newspapers books and periodicals E312,12-Feb-2019,000006224102590,C.L.A.S.S,5251,Books-school library,69.84,0.00,69.84
Children and Young Peoples Services,Childrens Services Operational Support,052986,CYPS - Locality and Operational Support,Supplies and Services,304259,Equipment and Materials,12-Feb-2019,000006278050010,GEN REGISTER OFFICE,9399,Equipment-purchase and rental,-9.25,0.00,-9.25
Children and Young Peoples Services,"Head of Early Help, Inclusion and Vulnerable Children",085955,Auckland,Supplies and Services,304649,Equipment and Materials,13-Feb-2019,000006213769886,AMZN Mktp UK MI5L55HG4,5942,Toys,18.99,0.00,18.99
Children and Young Peoples Services,Head of Education and Skills,071801,Selby Cottage Childcare Centre,Supplies and Services,324117,Provisions E324,13-Feb-2019,000006218787970,TESCO STORES 2278,5411,Catering costs - provisions,12.60,0.00,12.60
Resources,Digital and Customer Services,065487,ICT Telephony Recharges,Supplies and Services,344033,Telephones,13-Feb-2019,000006218787982,AMZN Mktp UK MI4C68HW4,5942,Telephones general-all costs,37.90,0.00,37.90
Regeneration and Local Services,Direct Services,010913,Bldg Serv - Construction General,Employees,040029,Recruitment Instruction and Training,13-Feb-2019,000006218787986,AMZN Mktp UK MI9JF3524,5942,Interview expenses,32.82,0.00,32.82
Resources,Digital and Customer Services,065481,Technical Services,Supplies and Services,304335,Equipment and Materials,13-Feb-2019,000006218787990,Amazon.co.uk MI9G02HU4,5969,ICT supplies etc,149.00,0.00,149.00
Transformation and Partnerships,Partnerships & Community Engagement Div.,052707,Partnership Team,Supplies and Services,304403,Equipment and Materials,13-Feb-2019,000006218787996,WAYFAIR #2188159044,5965,Other consumables,39.27,0.00,39.27
Transformation and Partnerships,Partnerships & Community Engagement Div.,052707,Partnership Team,Supplies and Services,304403,Equipment and Materials,13-Feb-2019,000006218788002,ASDA GEORGE COM LEEDS,5411,Other consumables,64.95,0.00,64.95
Children and Young Peoples Services,Head of Childrens Social Care,085357,Bespoke Placements,Supplies and Services,352001,Conference Expenses,13-Feb-2019,000006218788030,HOTEL 52,7011,Conferencesseminars fees etc,100.00,16.67,83.33
Adult and Health Services,Head of Adults,055302,Durham Pathways,Supplies and Services,324117,Provisions E324,13-Feb-2019,000006218788066,ASDA STORES LTD 4313,5411,Catering costs - provisions,2.00,0.00,2.00
Regeneration and Local Services,Economic Development and Housing,030709,VCD - Product Development,Supplies and Services,304999,Equipment and Materials,13-Feb-2019,000006218788078,GOOGLE ADS1872075479,5968,Misc equipment tools and materials,500.00,0.00,500.00
Regeneration and Local Services,Direct Services,021242,Catering - County Hall,Premises,145009,Cleaning and Domestic Supplies,13-Feb-2019,000006218788168,ALLIANCE DISPOSABLES L,2842,Other cleaning and domestic costs,83.18,13.86,69.32
Regeneration and Local Services,Direct Services,021242,Catering - County Hall,Supplies and Services,324117,Provisions E324,13-Feb-2019,000006218788172,JR HOLLAND FOODSERVICE,5499,Catering costs - provisions,100.85,0.00,100.85
Regeneration and Local Services,Direct Services,021242,Catering - County Hall,Supplies and Services,324117,Provisions E324,13-Feb-2019,000006218788178,JR HOLLAND FOODSERVICE,5499,Catering costs - provisions,13.80,0.00,13.80
Regeneration and Local Services,Culture & Sport,054812,Gala Theatre - Catering etc,Supplies and Services,324117,Provisions E324,13-Feb-2019,000006218788206,JR HOLLAND FOODSERVICE,5499,Catering costs - provisions,52.02,0.00,52.02
Children and Young Peoples Services,Head of Childrens Social Care,085362,LAC & Permanence Team 2,Supplies and Services,384871,Miscellaneous Expenses,13-Feb-2019,000006218788258,PAYPAL GROUPONINTE,5310,Training-other activities,7.95,0.00,7.95
Children and Young Peoples Services,Head of Childrens Social Care,085333,Coxhoe Satelite Home,Supplies and Services,324117,Provisions E324,13-Feb-2019,000006218788266,HERON FOODS LTD,5499,Catering costs - provisions,3.69,0.00,3.69
Children and Young Peoples Services,Head of Childrens Social Care,085333,Coxhoe Satelite Home,Supplies and Services,344033,Telephones,13-Feb-2019,000006218788270,E E BROADBAND,4812,Telephones general-all costs,35.25,0.00,35.25
Children and Young Peoples Services,Childrens Services Operational Support,052986,CYPS - Locality and Operational Support,Supplies and Services,304259,Equipment and Materials,13-Feb-2019,000006218788296,SUNDERLAND CC,9399,Equipment-purchase and rental,10.00,0.00,10.00
Children and Young Peoples Services,Head of Education and Skills,071732,Dean Bank Childcare,Supplies and Services,312011,Newspapers books and periodicals E312,13-Feb-2019,000006218788314,HOME BARGAINS SPENNYMO,5251,Books-school library,18.05,0.00,18.05
Children and Young Peoples Services,Head of Childrens Social Care,085334,West Rainton Satelite Home,Supplies and Services,324117,Provisions E324,13-Feb-2019,000006218788338,SAINSBURYS SACAT 0776,5411,Catering costs - provisions,24.49,0.00,24.49
Children and Young Peoples Services,Head of Childrens Social Care,085334,West Rainton Satelite Home,Supplies and Services,324117,Provisions E324,13-Feb-2019,000006218788346,TESCO STORES 2371,5411,Catering costs - provisions,16.95,0.00,16.95
Children and Young Peoples Services,"Head of Early Help, Inclusion and Vulnerable Children",071445,Chester le Street One Point Hub,Supplies and Services,312011,Newspapers books and periodicals E312,13-Feb-2019,000006218788432,AMZN Mktp UK MI5VK4H24,5942,Books-school library,23.15,0.00,23.15
Children and Young Peoples Services,"Head of Early Help, Inclusion and Vulnerable Children",071445,Chester le Street One Point Hub,Supplies and Services,312011,Newspapers books and periodicals E312,13-Feb-2019,000006218788438,AMZN Mktp UK MI8I14HE4,5942,Books-school library,3.24,0.00,3.24
Children and Young Peoples Services,"Head of Early Help, Inclusion and Vulnerable Children",071445,Chester le Street One Point Hub,Supplies and Services,324117,Provisions E324,13-Feb-2019,000006218788446,WILKO.COM,5399,Catering costs - provisions,138.50,0.00,138.50
Children and Young Peoples Services,"Head of Early Help, Inclusion and Vulnerable Children",085955,Auckland,Supplies and Services,384871,Miscellaneous Expenses,13-Feb-2019,000006218788454,AMZN Mktp UK MI0B36H34,5942,Training-other activities,28.98,0.00,28.98
Children and Young Peoples Services,"Head of Early Help, Inclusion and Vulnerable Children",085955,Auckland,Supplies and Services,304649,Equipment and Materials,13-Feb-2019,000006218788462,AMZN Mktp UK MI31F95T4,5942,Toys,13.25,0.00,13.25
Children and Young Peoples Services,"Head of Early Help, Inclusion and Vulnerable Children",085955,Auckland,Supplies and Services,384871,Miscellaneous Expenses,13-Feb-2019,000006218788468,AMZN Mktp UK MI5NC25L4,5942,Training-other activities,13.86,2.31,11.55
Children and Young Peoples Services,"Head of Early Help, Inclusion and Vulnerable Children",085955,Auckland,Supplies and Services,384871,Miscellaneous Expenses,13-Feb-2019,000006218788468 - 1,AMZN Mktp UK MI5NC25L4,5942,Training-other activities,86.40,,86.40
Children and Young Peoples Services,"Head of Early Help, Inclusion and Vulnerable Children",085955,Auckland,Supplies and Services,304649,Equipment and Materials,13-Feb-2019,000006218788470,AMZN Mktp UK MI9531HK4,5942,Toys,13.93,2.32,11.61
Children and Young Peoples Services,"Head of Early Help, Inclusion and Vulnerable Children",085955,Auckland,Supplies and Services,324117,Provisions E324,13-Feb-2019,000006218788472,TESCO STORES 6329,5411,Catering costs - provisions,108.59,0.00,108.59
Children and Young Peoples Services,"Head of Early Help, Inclusion and Vulnerable Children",085954,Walworth,Supplies and Services,328041,Clothing uniforms and laundry E328,13-Feb-2019,000006218788476,WWW.FOOTLOCKER.EU,5661,Clothing uniforms and laundry,34.99,5.83,29.16
Regeneration and Local Services,Direct Services,010367,C&G - South Grounds Maintenance,Supplies and Services,304221,Equipment and Materials,13-Feb-2019,000006218788494,ARBOR TIMBER AND BUILD,5211,Direct materials,167.40,27.90,139.50
Regeneration and Local Services,Culture & Sport,011060,Hardwick Park Catering,Supplies and Services,324117,Provisions E324,13-Feb-2019,000006218788504,JR HOLLAND FOODSERVICE,5499,Catering costs - provisions,44.94,0.00,44.94
Regeneration and Local Services,Economic Development and Housing,030764,Work & Health Programme (Reed),Employees,040149,Recruitment Instruction and Training,13-Feb-2019,000006218788550,WWW.SFEP.ORG.UK,8699,Training-all costs,150.00,0.00,150.00
Regeneration and Local Services,Direct Services,021234,Catering - Locomotion,Supplies and Services,324117,Provisions E324,13-Feb-2019,000006218788566,JR HOLLAND FOODSERVICE,5499,Catering costs - provisions,63.33,0.00,63.33
Regeneration and Local Services,Economic Development and Housing,030554,International Relations,Transport,235057,Public Transport,13-Feb-2019,000006218788618,WALKERGATE CAR PAR,7523,Staff travelling,1.80,0.30,1.50
Children and Young Peoples Services,Head of Childrens Social Care,085561,Social Work Academy,Supplies and Services,304649,Equipment and Materials,13-Feb-2019,000006218788624,AMZN Mktp UK MI12275I4,5942,Toys,97.20,16.20,81.00
Children and Young Peoples Services,"Head of Early Help, Inclusion and Vulnerable Children",088108,Spennymoor & Shildon 0-19 Targeted Family Support,Supplies and Services,384999,Miscellaneous Expenses,13-Feb-2019,000006218788630,ASDA STORES,5411,Other expenses,2.69,0.00,2.69
Regeneration and Local Services,Economic Development and Housing,030771,Durham Advance Flexible Fund,Supplies and Services,304259,Equipment and Materials,13-Feb-2019,000006218788704,GEN REGISTER OFFICE,9399,Equipment-purchase and rental,9.25,0.00,9.25
Children and Young Peoples Services,Head of Childrens Social Care,085333,Coxhoe Satelite Home,Supplies and Services,328041,Clothing uniforms and laundry E328,13-Feb-2019,000006218788708,B & M RETAIL,5310,Clothing uniforms and laundry,39.15,0.00,39.15
Regeneration and Local Services,Direct Services,030691,"Catering - Durham Dales Centre			",Premises,145009,Cleaning and Domestic Supplies,13-Feb-2019,000006218788750,ALLIANCE DISPOSABLES L,2842,Other cleaning and domestic costs,26.94,4.49,22.45
Regeneration and Local Services,Direct Services,030691,"Catering - Durham Dales Centre			",Premises,145009,Cleaning and Domestic Supplies,13-Feb-2019,000006218788750 - 1,ALLIANCE DISPOSABLES L,2842,Other cleaning and domestic costs,25.41,,25.41
Regeneration and Local Services,Direct Services,010301,C&G - North Grounds Maintenance,Supplies and Services,304403,Equipment and Materials,13-Feb-2019,000006218788780,BESCOL,5231,Other consumables,21.92,3.65,18.27
Regeneration and Local Services,Direct Services,010301,C&G - North Grounds Maintenance,Supplies and Services,304403,Equipment and Materials,13-Feb-2019,000006218788786,BESCOL,5231,Other consumables,102.80,17.13,85.67
Children and Young Peoples Services,Head of Childrens Social Care,085342,9 Cedar Drive Aycliffe,Employees,040149,Recruitment Instruction and Training,13-Feb-2019,000006218788800,PARENTPAY E-COM R,8220,Training-all costs,44.36,0.00,44.36
Regeneration and Local Services,Transport and Contracted Services,031701,Care Connect All Localities,Supplies and Services,304245,Equipment and Materials,13-Feb-2019,000006218788826,AMZN Mktp UK MI8E085D4,5942,Materials,20.98,3.50,17.48
Regeneration and Local Services,Transport and Contracted Services,031701,Care Connect All Localities,Supplies and Services,344033,Telephones,13-Feb-2019,000006218788830,BT BILL PAYMENT 2,4812,Telephones general-all costs,116.75,19.46,97.29
Regeneration and Local Services,Transport and Contracted Services,031701,Care Connect All Localities,Supplies and Services,344033,Telephones,13-Feb-2019,000006218788834,BT BILL PAYMENT 2,4812,Telephones general-all costs,116.75,19.46,97.29
Regeneration and Local Services,Direct Services,010301,C&G - North Grounds Maintenance,Supplies and Services,304221,Equipment and Materials,13-Feb-2019,000006218788860,HEXHAM MACHINERY CENTR,5261,Direct materials,288.96,0.00,288.96
Regeneration and Local Services,Direct Services,010301,C&G - North Grounds Maintenance,Supplies and Services,304403,Equipment and Materials,13-Feb-2019,000006218788866,TIMPSON LTD,7251,Other consumables,22.00,0.00,22.00
Children and Young Peoples Services,Head of Childrens Social Care,085332,Middlestone Moor CU,Premises,115125,Repairs to Grounds,13-Feb-2019,000006218788968,WWW.LAMPSHOPONLINE.CO.,5072,General maintenance,17.24,2.87,14.37
Children and Young Peoples Services,Head of Childrens Social Care,085332,Middlestone Moor CU,Supplies and Services,304252,Equipment and Materials,13-Feb-2019,000006218788974,WWW.LAMPSHOPONLINE.CO.,5072,Equipment-repairsserviceinsurance,8.67,0.00,8.67
Children and Young Peoples Services,Head of Childrens Social Care,085352,Tow Law CU,Supplies and Services,312011,Newspapers books and periodicals E312,13-Feb-2019,000006218789040,AMZN Mktp UK MI1OH95N4,5942,Books-school library,11.87,0.00,11.87
Children and Young Peoples Services,Head of Childrens Social Care,085352,Tow Law CU,Supplies and Services,312011,Newspapers books and periodicals E312,13-Feb-2019,000006218789048,AMZN Mktp UK MI3C33HA4,5942,Books-school library,18.99,0.00,18.99
Children and Young Peoples Services,Head of Childrens Social Care,085352,Tow Law CU,Supplies and Services,324117,Provisions E324,13-Feb-2019,000006218789052,CO-OP GROUP 108247,5411,Catering costs - provisions,21.50,0.00,21.50
Adult and Health Services,Head of Adults,055309,Peterlee Pathways,Supplies and Services,328041,Clothing uniforms and laundry E328,13-Feb-2019,000006218789074,B&M RETAIL LTD,5310,Clothing uniforms and laundry,4.00,0.00,4.00
Children and Young Peoples Services,Head of Childrens Social Care,085363,LAC & Permanence Team 3,Supplies and Services,304259,Equipment and Materials,13-Feb-2019,000006218789090,SUNDERLAND CC,9399,Equipment-purchase and rental,10.00,0.00,10.00
Regeneration and Local Services,Economic Development and Housing,031576,B& B - Temp Accom,Supplies and Services,364320,Grants to Voluntary Organisations,13-Feb-2019,000006224102496,PREMIER INN,3811,Accommodation assistance,76.00,0.00,76.00
Children and Young Peoples Services,"Head of Early Help, Inclusion and Vulnerable Children",085801,CDYOS - Support,Supplies and Services,312011,Newspapers books and periodicals E312,13-Feb-2019,000006224102792,AMZN MKTP UK MI7X56HU4,5942,Books-school library,28.48,0.00,28.48
Regeneration and Local Services,Economic Development and Housing,031500,Housing Solutions - Core Team,Employees,040149,Recruitment Instruction and Training,13-Feb-2019,000006224102838,PREMIER INN,3811,Training-all costs,75.00,0.00,75.00
Children and Young Peoples Services,Head of Education and Skills,071801,Selby Cottage Childcare Centre,Supplies and Services,324117,Provisions E324,14-Feb-2019,000006224102488,TESCO STORES 2278,5411,Catering costs - provisions,43.55,0.00,43.55
Resources,Digital and Customer Services,065487,ICT Telephony Recharges,Supplies and Services,344033,Telephones,14-Feb-2019,000006224102498,AMZN Mktp UK MI46S3BR4,5942,Telephones general-all costs,29.90,0.00,29.90
Regeneration and Local Services,Technical Services,025121,Strategic Highways - Drainage and Coast Protection,Supplies and Services,342053,Computers and Communications,14-Feb-2019,000006224102500,UK CAA APPLY ONLINE,9399,Computer software,185.00,0.00,185.00
Transformation and Partnerships,Partnerships & Community Engagement Div.,052707,Partnership Team,Supplies and Services,304403,Equipment and Materials,14-Feb-2019,000006224102502,WWW.ARGOS.CO.UK,5310,Other consumables,77.93,0.00,77.93
Dedicated Schools Grant,DSG High Needs Block,077099,Special General,Transport,235057,Public Transport,14-Feb-2019,000006224102504,CAMPS INTERNATIONAL GR,4722,Staff travelling,700.00,0.00,700.00
Regeneration and Local Services,Direct Services,010383,C&G - South Street Cleansing,Supplies and Services,304221,Equipment and Materials,14-Feb-2019,000006224102518,AZTEC CHEMICALS LTD,5169,Direct materials,295.20,49.20,246.00
Children and Young Peoples Services,Head of Childrens Social Care,085332,Middlestone Moor CU,Supplies and Services,324117,Provisions E324,14-Feb-2019,000006224102520,TESCO STORES 2371,5411,Catering costs - provisions,155.59,0.00,155.59
Children and Young Peoples Services,Head of Childrens Social Care,085332,Middlestone Moor CU,Supplies and Services,324117,Provisions E324,14-Feb-2019,000006224102522,ALDI 74 774,5411,Catering costs - provisions,2.70,0.00,2.70
Regeneration and Local Services,Economic Development and Housing,030699,Business Growth and Innovation General,Supplies and Services,304999,Equipment and Materials,14-Feb-2019,000006224102524,MOZ,5817,Misc equipment tools and materials,140.11,0.00,140.11
Regeneration and Local Services,Direct Services,021242,Catering - County Hall,Premises,145009,Cleaning and Domestic Supplies,14-Feb-2019,000006224102542,ALLIANCE DISPOSABLES L,2842,Other cleaning and domestic costs,97.49,16.25,81.24
Regeneration and Local Services,Direct Services,021242,Catering - County Hall,Supplies and Services,324117,Provisions E324,14-Feb-2019,000006224102544,JR HOLLAND FOODSERVICE,5499,Catering costs - provisions,94.23,0.00,94.23
Regeneration and Local Services,Direct Services,021242,Catering - County Hall,Supplies and Services,324117,Provisions E324,14-Feb-2019,000006224102546,JR HOLLAND FOODSERVICE,5499,Catering costs - provisions,13.80,0.00,13.80
Children and Young Peoples Services,"Head of Early Help, Inclusion and Vulnerable Children",088106,Ferryhill & N.Aycliffe 0-19 Targeted Family Support,Supplies and Services,332002,Printing Stationery and Gen Off Exps,14-Feb-2019,000006224102550,CURRYS ONLINE,5732,Estab-purchase from donations,493.98,0.00,493.98
Regeneration and Local Services,Economic Development and Housing,030544,Rural Employability - Client Engagement,Supplies and Services,312011,Newspapers books and periodicals E312,14-Feb-2019,000006224102558,AMZN Mktp UK MI5RI1BU4,5942,Books-school library,41.08,6.85,34.23
Regeneration and Local Services,Economic Development and Housing,030544,Rural Employability - Client Engagement,Supplies and Services,312011,Newspapers books and periodicals E312,14-Feb-2019,000006224102560,AMZN Mktp UK MI6E83BF4,5942,Books-school library,99.00,16.50,82.50
Children and Young Peoples Services,Head of Childrens Social Care,085334,West Rainton Satelite Home,Supplies and Services,324117,Provisions E324,14-Feb-2019,000006224102584,TESCO STORES 2371,5411,Catering costs - provisions,48.31,0.00,48.31
Children and Young Peoples Services,Head of Childrens Social Care,085334,West Rainton Satelite Home,Supplies and Services,324117,Provisions E324,14-Feb-2019,000006224102586,TESCO STORES 2371,5411,Catering costs - provisions,8.45,0.00,8.45
Children and Young Peoples Services,Head of Childrens Social Care,085352,Tow Law CU,Supplies and Services,304259,Equipment and Materials,14-Feb-2019,000006224102588,GATESHEAD COUNCIL INT,9399,Equipment-purchase and rental,10.00,0.00,10.00
Children and Young Peoples Services,Head of Education and Skills,071732,Dean Bank Childcare,Supplies and Services,328041,Clothing uniforms and laundry E328,14-Feb-2019,000006224102600,W BOYES & CO LTD NEWTO,5310,Clothing uniforms and laundry,61.91,0.00,61.91
Regeneration and Local Services,Culture & Sport,011223,Operations Locality 1,Supplies and Services,312011,Newspapers books and periodicals E312,14-Feb-2019,000006224102602,AMZN Mktp UK MI2OZ4BL4,5942,Books-school library,6.99,0.00,6.99
Regeneration and Local Services,Spatial Policy Planning Assets & Environment,031221,North Pennines - Bowlees,Supplies and Services,312011,Newspapers books and periodicals E312,14-Feb-2019,000006224102606,AMZN Mktp UK MI9UI88H4,5942,Books-school library,10.48,0.00,10.48
Regeneration and Local Services,Spatial Policy Planning Assets & Environment,031221,North Pennines - Bowlees,Supplies and Services,304221,Equipment and Materials,14-Feb-2019,000006224102608,SCREWFIX DIRECT,5211,Direct materials,26.99,0.00,26.99
Regeneration and Local Services,Economic Development and Housing,031500,Housing Solutions - Core Team,Supplies and Services,352001,Conference Expenses,14-Feb-2019,000006224102636,HOTEL 52,7011,Conferencesseminars fees etc,280.00,0.00,280.00
